Workbook

Sheet 計算ツール
A1: 1 | B1: 2 | C1: 3 | D1: 4 | E1: 5 | F1: 6 | G1: 7 | H1: 8 | I1: 9 | J1: 10 | K1: 11 | L1: 12 | M1: 13 | N1: 14 | O1: 15 | P1: 16 | Q1: 17 | R1: 18 | S1: 19 | T1: 20 | U1: 21 | V1: 22 | W1: 23 | X1: 24 | Y1: 25 | AB1: 28 | AC1: 29 | AD1: 30 | AE1: 31 | AF1: 32 | AG1: 33 | AH1: 34
A2: 令和７年度適用（令和７年２月５日更新） | M2: ↓【手順２】都道府県を選ぶ
E3: 使用統計一覧 | I3: 職業安定業務統計の 新職業分類については こちらからご確認ください | N3: ↓【手順３】適用される特定最低賃金の業種を選ぶ（表示無ければ地域別最低賃金が適用） | Q3: ↓【手順４】使用する承認統計名を選ぶ | R3: ↓【手順６】公共職業安定所を選ぶ | U3: 公共職業 安定所 | V3: 地域指数 | W3: ↓【手順７】ボタンを押す
E4: 賃金構造基本統計調査：職種別平均賃金 | M4: 1 | N4: 1 | O4: 3 | Q4: 1 | R4: 1 | S4: 3 | U4: 北海道 | V4: 0.944
E5: 職業安定業務統計：職種別平均求人賃金
E6: --
B7: ↓【手順１】社内職務を隙間なく入力 | Q7: ↓【手順５】対応する通知職種(仮)を選ぶ
A8: 派遣労働者の社内職種と賃金 | M8: 最低賃金 | Q8: 一般労働者の職種等 | U8: 一般労働者の賃金 | AB8: 最低賃金
A9: 番号 | B9: 社内職務 | C9: 地域 | D9: 経験年数/ 等級等 | E9: 基本給・賞与等 | I9: 通勤手当 | J9: 退職金 | K9: 比較対象賃金 | M9: 地域別最低賃金 | N9: 特定最低賃金 | Q9: 通知職種 | R9: 能力・経験 調整指数 | S9: 通勤手当 実費支給状況 | T9: 退職費用上乗せ状況 | U9: 最低賃金 | V9: 基本給・賞与等 | W9: 通勤手当 | X9: 退職金 | Y9: 計 | AB9: 1 | AC9: 1.16 | AD9: 1.243 | AE9: 1.27 | AF9: 1.33 | AG9: 1.494 | AH9: 1.793
E10: 基本給 | F10: 手当 | G10: 賞与 | H10: 小計 | AB10: 基準値(0年） | AC10: １年 | AD10: 2年 | AE10: 3年 | AF10: 5年 | AG10: 10年 | AH10: ２０年
A11: 10001 | B11: プログラマー | C11: 北海道 | D11: Ａ | E11: 1000 | F11: 30 | G11: 500 | H11: =IF(SUM(E11:G11)=0,"",SUM(E11:G11)) -> 1530 | K11: =IF(AND(W11=0,X11=0),H11,IF(AND(W11>0,X11=0),H11+I11,IF(AND(W11=0,X11>0),H11+J11,H11+I11+J11))) -> 1530 | M11: 1010 | Y11: =IF(U11>0,SUM($V11:$X11),"") ->  | AB11: =ROUNDUP($U11*AB$9,0) -> 0 | AC11: =ROUNDUP($U11*AC$9,0) -> 0 | AD11: =ROUNDUP($U11*AD$9,0) -> 0 | AE11: =ROUNDUP($U11*AE$9,0) -> 0 | AF11: 0 | AG11: 0 | AH11: 0
A12: 10002 | B12: プログラマー | C12: 北海道 | D12: Ｂ | E12: 1000 | F12: 20 | G12: 300 | H12: 1320 | K12: =IF(AND(W12=0,X12=0),H12,IF(AND(W12>0,X12=0),H12+I12,IF(AND(W12=0,X12>0),H12+J12,H12+I12+J12))) -> 1320 | M12: 1010 | Y12: =IF(U12>0,SUM($V12:$X12),"") ->  | AB12: =ROUNDUP($U12*AB$9,0) -> 0 | AC12: 0 | AD12: 0 | AE12: 0 | AF12: 0 | AG12: 0 | AH12: 0
A13: 10003 | B13: プログラマー | C13: 北海道 | D13: Ｃ | E13: 1000 | F13: 10 | G13: 100 | H13: 1110 | K13: =IF(AND(W13=0,X13=0),H13,IF(AND(W13>0,X13=0),H13+I13,IF(AND(W13=0,X13>0),H13+J13,H13+I13+J13))) -> 1110 | M13: 1010 | AB13: =ROUNDUP($U13*AB$9,0) -> 0 | AC13: =ROUNDUP($U13*AC$9,0) -> 0 | AD13: 0 | AE13: 0 | AF13: 0 | AG13: 0 | AH13: 0
H14: =IF(SUM(E14:G14)=0,"",SUM(E14:G14)) ->  | K14: =IF(AND(W14=0,X14=0),H14,IF(AND(W14>0,X14=0),H14+I14,IF(AND(W14=0,X14>0),H14+J14,H14+I14+J14))) ->  | AB14: 0 | AC14: 0 | AD14: 0 | AE14: 0 | AF14: 0 | AG14: 0 | AH14: 0
Y15: =IF(U15>0,SUM($V15:$X15),"") ->  | AB15: 0 | AC15: 0 | AD15: 0 | AE15: 0 | AF15: 0 | AG15: 0 | AH15: 0
AB16: 0 | AC16: 0 | AD16: 0 | AE16: 0 | AF16: 0 | AG16: 0 | AH16: 0
AB17: 0 | AC17: 0 | AD17: 0 | AE17: 0 | AF17: 0 | AG17: 0 | AH17: 0
AB18: 0 | AC18: 0 | AD18: 0 | AE18: 0 | AF18: 0 | AG18: 0 | AH18: 0
AB19: 0 | AC19: 0 | AD19: 0 | AE19: 0 | AF19: 0 | AG19: 0 | AH19: 0
AB20: 0 | AC20: 0 | AD20: 0 | AE20: 0 | AF20: 0 | AG20: 0 | AH20: 0
AB21: 0 | AC21: 0 | AD21: 0 | AE21: 0 | AF21: 0 | AG21: 0 | AH21: 0
H22: =IF(SUM(E22:G22)=0,"",SUM(E22:G22)) ->  | AB22: 0 | AC22: 0 | AD22: 0 | AE22: 0 | AF22: 0 | AG22: 0 | AH22: 0
AB23: 0 | AC23: 0 | AD23: 0 | AE23: 0 | AF23: 0 | AG23: 0 | AH23: 0
AB24: 0 | AC24: 0 | AD24: 0 | AE24: 0 | AF24: 0 | AG24: 0 | AH24: 0
AB25: 0 | AC25: 0 | AD25: 0 | AE25: 0 | AF25: 0 | AG25: 0 | AH25: 0
AB26: 0 | AC26: 0 | AD26: 0 | AE26: 0 | AF26: 0 | AG26: 0 | AH26: 0
Y27: =IF(U27>0,SUM($V27:$X27),"") ->  | AB27: 0 | AC27: 0 | AD27: 0 | AE27: 0 | AF27: 0 | AG27: 0 | AH27: 0
AB28: 0 | AC28: 0 | AD28: 0 | AE28: 0 | AF28: 0 | AG28: 0 | AH28: 0
AB29: 0 | AC29: 0 | AD29: 0 | AE29: 0 | AF29: 0 | AG29: 0 | AH29: 0
AB30: 0 | AC30: 0 | AD30: 0 | AE30: 0 | AF30: 0 | AG30: 0 | AH30: 0
AB31: 0 | AC31: 0 | AD31: 0 | AE31: 0 | AF31: 0 | AG31: 0 | AH31: 0
AB32: 0 | AC32: 0 | AD32: 0 | AE32: 0 | AF32: 0 | AG32: 0 | AH32: 0
AB33: 0 | AC33: 0 | AD33: 0 | AE33: 0 | AF33: 0 | AG33: 0 | AH33: 0
AB34: 0 | AC34: 0 | AD34: 0 | AE34: 0 | AF34: 0 | AG34: 0 | AH34: 0
AB35: 0 | AC35: 0 | AD35: 0 | AE35: 0 | AF35: 0 | AG35: 0 | AH35: 0
AB36: 0 | AC36: 0 | AD36: 0 | AE36: 0 | AF36: 0 | AG36: 0 | AH36: 0
AB37: 0 | AC37: 0 | AD37: 0 | AE37: 0 | AF37: 0 | AG37: 0 | AH37: 0
AB38: 0 | AC38: 0 | AD38: 0 | AE38: 0 | AF38: 0 | AG38: 0 | AH38: 0
AB39: 0 | AC39: 0 | AD39: 0 | AE39: 0 | AF39: 0 | AG39: 0 | AH39: 0
AB40: 0 | AC40: 0 | AD40: 0 | AE40: 0 | AF40: 0 | AG40: 0 | AH40: 0
AB41: 0 | AC41: 0 | AD41: 0 | AE41: 0 | AF41: 0 | AG41: 0 | AH41: 0
AB42: 0 | AC42: 0 | AD42: 0 | AE42: 0 | AF42: 0 | AG42: 0 | AH42: 0
AB43: =ROUNDUP($U43*AB$9,0) -> 0 | AC43: 0 | AD43: 0 | AE43: 0 | AF43: 0 | AG43: 0 | AH43: 0
AB44: 0 | AC44: 0 | AD44: 0 | AE44: 0 | AF44: 0 | AG44: 0 | AH44: 0
AB45: 0 | AC45: 0 | AD45: 0 | AE45: 0 | AF45: 0 | AG45: 0 | AH45: 0
AB46: 0 | AC46: 0 | AD46: 0 | AE46: 0 | AF46: 0 | AG46: 0 | AH46: 0
AB47: 0 | AC47: 0 | AD47: 0 | AE47: 0 | AF47: 0 | AG47: 0 | AH47: 0
AB48: 0 | AC48: 0 | AD48: 0 | AE48: 0 | AF48: 0 | AG48: 0 | AH48: 0
AB49: 0 | AC49: 0 | AD49: 0 | AE49: 0 | AF49: 0 | AG49: 0 | AH49: 0
AB50: 0 | AC50: 0 | AD50: 0 | AE50: 0 | AF50: 0 | AG50: 0 | AH50: 0
AB51: 0 | AC51: 0 | AD51: 0 | AE51: 0 | AF51: 0 | AG51: 0 | AH51: 0
AB52: 0 | AC52: 0 | AD52: 0 | AE52: 0 | AF52: 0 | AG52: 0 | AH52: 0
AB53: 0 | AC53: 0 | AD53: 0 | AE53: 0 | AF53: 0 | AG53: 0 | AH53: 0
AB54: 0 | AC54: 0 | AD54: 0 | AE54: 0 | AF54: 0 | AG54: 0 | AH54: 0
AB55: 0 | AC55: 0 | AD55: 0 | AE55: 0 | AF55: 0 | AG55: 0 | AH55: 0
AB56: 0 | AC56: 0 | AD56: 0 | AE56: 0 | AF56: 0 | AG56: 0 | AH56: 0
AB57: 0 | AC57: 0 | AD57: 0 | AE57: 0 | AF57: 0 | AG57: 0 | AH57: 0
AB58: 0 | AC58: 0 | AD58: 0 | AE58: 0 | AF58: 0 | AG58: 0 | AH58: 0
AB59: 0 | AC59: 0 | AD59: 0 | AE59: 0 | AF59: 0 | AG59: 0 | AH59: 0
AB60: 0 | AC60: 0 | AD60: 0 | AE60: 0 | AF60: 0 | AG60: 0 | AH60: 0
AB61: 0 | AC61: 0 | AD61: 0 | AE61: 0 | AF61: 0 | AG61: 0 | AH61: 0
AB62: 0 | AC62: 0 | AD62: 0 | AE62: 0 | AF62: 0 | AG62: 0 | AH62: 0
AB63: 0 | AC63: 0 | AD63: 0 | AE63: 0 | AF63: 0 | AG63: 0 | AH63: 0
AB64: 0 | AC64: 0 | AD64: 0 | AE64: 0 | AF64: 0 | AG64: 0 | AH64: 0
AB65: 0 | AC65: 0 | AD65: 0 | AE65: 0 | AF65: 0 | AG65: 0 | AH65: 0
AB66: 0 | AC66: 0 | AD66: 0 | AE66: 0 | AF66: 0 | AG66: 0 | AH66: 0
AB67: 0 | AC67: 0 | AD67: 0 | AE67: 0 | AF67: 0 | AG67: 0 | AH67: 0
AB68: 0 | AC68: 0 | AD68: 0 | AE68: 0 | AF68: 0 | AG68: 0 | AH68: 0
AB69: 0 | AC69: 0 | AD69: 0 | AE69: 0 | AF69: 0 | AG69: 0 | AH69: 0
AB70: 0 | AC70: 0 | AD70: 0 | AE70: 0 | AF70: 0 | AG70: 0 | AH70: 0
AB71: 0 | AC71: 0 | AD71: 0 | AE71: 0 | AF71: 0 | AG71: 0 | AH71: 0
AB72: 0 | AC72: 0 | AD72: 0 | AE72: 0 | AF72: 0 | AG72: 0 | AH72: 0
AB73: 0 | AC73: 0 | AD73: 0 | AE73: 0 | AF73: 0 | AG73: 0 | AH73: 0
H74: =IF(SUM(E74:G74)=0,"",SUM(E74:G74)) ->  | AB74: 0 | AC74: 0 | AD74: 0 | AE74: 0 | AF74: 0 | AG74: 0 | AH74: 0
K75: =IF(AND(W75=0,X75=0),H75,IF(AND(W75>0,X75=0),H75+I75,IF(AND(W75=0,X75>0),H75+J75,H75+I75+J75))) ->  | Y75: =IF(U75>0,SUM($V75:$X75),"") ->  | AB75: =ROUNDUP($U75*AB$9,0) -> 0 | AC75: 0 | AD75: 0 | AE75: 0 | AF75: 0 | AG75: 0 | AH75: 0
AB76: 0 | AC76: 0 | AD76: 0 | AE76: 0 | AF76: 0 | AG76: 0 | AH76: 0
AB77: 0 | AC77: 0 | AD77: 0 | AE77: 0 | AF77: 0 | AG77: 0 | AH77: 0
AB78: 0 | AC78: 0 | AD78: 0 | AE78: 0 | AF78: 0 | AG78: 0 | AH78: 0
AB79: 0 | AC79: 0 | AD79: 0 | AE79: 0 | AF79: 0 | AG79: 0 | AH79: 0
AB80: 0 | AC80: 0 | AD80: 0 | AE80: 0 | AF80: 0 | AG80: 0 | AH80: 0
AB81: 0 | AC81: 0 | AD81: 0 | AE81: 0 | AF81: 0 | AG81: 0 | AH81: 0
AB82: 0 | AC82: 0 | AD82: 0 | AE82: 0 | AF82: 0 | AG82: 0 | AH82: 0
AB83: 0 | AC83: 0 | AD83: 0 | AE83: 0 | AF83: 0 | AG83: 0 | AH83: 0
AB84: 0 | AC84: 0 | AD84: 0 | AE84: 0 | AF84: 0 | AG84: 0 | AH84: 0
AB85: 0 | AC85: 0 | AD85: 0 | AE85: 0 | AF85: 0 | AG85: 0 | AH85: 0
AB86: 0 | AC86: 0 | AD86: 0 | AE86: 0 | AF86: 0 | AG86: 0 | AH86: 0
AB87: 0 | AC87: 0 | AD87: 0 | AE87: 0 | AF87: 0 | AG87: 0 | AH87: 0
AB88: 0 | AC88: 0 | AD88: 0 | AE88: 0 | AF88: 0 | AG88: 0 | AH88: 0
AB89: 0 | AC89: 0 | AD89: 0 | AE89: 0 | AF89: 0 | AG89: 0 | AH89: 0
AB90: 0 | AC90: 0 | AD90: 0 | AE90: 0 | AF90: 0 | AG90: 0 | AH90: 0
AB91: 0 | AC91: 0 | AD91: 0 | AE91: 0 | AF91: 0 | AG91: 0 | AH91: 0
AB92: 0 | AC92: 0 | AD92: 0 | AE92: 0 | AF92: 0 | AG92: 0 | AH92: 0
AB93: 0 | AC93: 0 | AD93: 0 | AE93: 0 | AF93: 0 | AG93: 0 | AH93: 0
AB94: 0 | AC94: 0 | AD94: 0 | AE94: 0 | AF94: 0 | AG94: 0 | AH94: 0
AB95: 0 | AC95: 0 | AD95: 0 | AE95: 0 | AF95: 0 | AG95: 0 | AH95: 0
AB96: 0 | AC96: 0 | AD96: 0 | AE96: 0 | AF96: 0 | AG96: 0 | AH96: 0
AB97: 0 | AC97: 0 | AD97: 0 | AE97: 0 | AF97: 0 | AG97: 0 | AH97: 0
AB98: 0 | AC98: 0 | AD98: 0 | AE98: 0 | AF98: 0 | AG98: 0 | AH98: 0
AB99: 0 | AC99: 0 | AD99: 0 | AE99: 0 | AF99: 0 | AG99: 0 | AH99: 0
AB100: 0 | AC100: 0 | AD100: 0 | AE100: 0 | AF100: 0 | AG100: 0 | AH100: 0
AB101: 0 | AC101: 0 | AD101: 0 | AE101: 0 | AF101: 0 | AG101: 0 | AH101: 0
AB102: 0 | AC102: 0 | AD102: 0 | AE102: 0 | AF102: 0 | AG102: 0 | AH102: 0
AB103: 0 | AC103: 0 | AD103: 0 | AE103: 0 | AF103: 0 | AG103: 0 | AH103: 0
AB104: 0 | AC104: 0 | AD104: 0 | AE104: 0 | AF104: 0 | AG104: 0 | AH104: 0
AB105: 0 | AC105: 0 | AD105: 0 | AE105: 0 | AF105: 0 | AG105: 0 | AH105: 0
AB106: 0 | AC106: 0 | AD106: 0 | AE106: 0 | AF106: 0 | AG106: 0 | AH106: 0
AB107: 0 | AC107: 0 | AD107: 0 | AE107: 0 | AF107: 0 | AG107: 0 | AH107: 0
AB108: 0 | AC108: 0 | AD108: 0 | AE108: 0 | AF108: 0 | AG108: 0 | AH108: 0
AB109: 0 | AC109: 0 | AD109: 0 | AE109: 0 | AF109: 0 | AG109: 0 | AH109: 0

Sheet 記載要領

Sheet 地域別最低賃金
B1: 地域別最低賃金の全国一覧
B7: 令和６年度地域別最低賃金改定状況
B10: 都道府県名 | C10: 最低賃金時間額【円】 | E10: 発効年月日
B11: 北海道 | C11: 1010 | D11: -960 | E11: 2024-10-01
B12: 青森 | C12: 953 | D12: -898 | E12: 2024-10-05
B13: 岩手 | C13: 952 | D13: -893 | E13: 2024-10-27
B14: 宮城 | C14: 973 | D14: -923 | E14: 2024-10-01
B15: 秋田 | C15: 951 | D15: -897 | E15: 2024-10-01
B16: 山形 | C16: 955 | D16: -900 | E16: 2024-10-19
B17: 福島 | C17: 955 | D17: -900 | E17: 2024-10-05
B18: 茨城 | C18: 1005 | D18: -953 | E18: 2024-10-01
B19: 栃木 | C19: 1004 | D19: -954 | E19: 2024-10-01
B20: 群馬 | C20: 985 | D20: -935 | E20: 2024-10-04
B21: 埼玉 | C21: 1078 | D21: -1028 | E21: 2024-10-01
B22: 千葉 | C22: 1076 | D22: -1026 | E22: 2024-10-01
B23: 東京 | C23: 1163 | D23: -1113 | E23: 2024-10-01
B24: 神奈川 | C24: 1162 | D24: -1112 | E24: 2024-10-01
B25: 新潟 | C25: 985 | D25: -931 | E25: 2024-10-01
B26: 富山 | C26: 998 | D26: -948 | E26: 2024-10-01
B27: 石川 | C27: 984 | D27: -933 | E27: 2024-10-05
B28: 福井 | C28: 984 | D28: -931 | E28: 2024-10-05
B29: 山梨 | C29: 988 | D29: -938 | E29: 2024-10-01
B30: 長野 | C30: 998 | D30: -948 | E30: 2024-10-01
B31: 岐阜 | C31: 1001 | D31: -950 | E31: 2024-10-01
B32: 静岡 | C32: 1034 | D32: -984 | E32: 2024-10-01
B33: 愛知 | C33: 1077 | D33: -1027 | E33: 2024-10-01
B34: 三重 | C34: 1023 | D34: -973 | E34: 2024-10-01
B35: 滋賀 | C35: 1017 | D35: -967 | E35: 2024-10-01
B36: 京都 | C36: 1058 | D36: -1008 | E36: 2024-10-01
B37: 大阪 | C37: 1114 | D37: -1064 | E37: 2024-10-01
B38: 兵庫 | C38: 1052 | D38: -1001 | E38: 2024-10-01
B39: 奈良 | C39: 986 | D39: -936 | E39: 2024-10-01
B40: 和歌山 | C40: 980 | D40: -929 | E40: 2024-10-01
B41: 鳥取 | C41: 957 | D41: -900 | E41: 2024-10-05
B42: 島根 | C42: 962 | D42: -904 | E42: 2024-10-12
B43: 岡山 | C43: 982 | D43: -932 | E43: 2024-10-02
B44: 広島 | C44: 1020 | D44: -970 | E44: 2024-10-01
B45: 山口 | C45: 979 | D45: -928 | E45: 2024-10-01
B46: 徳島 | C46: 980 | D46: -896 | E46: 2024-11-01
B47: 香川 | C47: 970 | D47: -918 | E47: 2024-10-02
B48: 愛媛 | C48: 956 | D48: -897 | E48: 2024-10-13
B49: 高知 | C49: 952 | D49: -897 | E49: 2024-10-09
B50: 福岡 | C50: 992 | D50: -941 | E50: 2024-10-05
B51: 佐賀 | C51: 956 | D51: -900 | E51: 2024-10-17
B52: 長崎 | C52: 953 | D52: -898 | E52: 2024-10-12
B53: 熊本 | C53: 952 | D53: -898 | E53: 2024-10-05
B54: 大分 | C54: 954 | D54: -899 | E54: 2024-10-05
B55: 宮崎 | C55: 952 | D55: -897 | E55: 2024-10-05
B56: 鹿児島 | C56: 953 | D56: -897 | E56: 2024-10-05
B57: 沖縄 | C57: 952 | D57: -896 | E57: 2024-10-09
B58: 全国加重平均額 | C58: 1055 | D58: -1004 | E58: ー
B60: ※括弧書きは、前年度地域別最低賃金

Sheet 特定最低賃金
B1: 特定最低賃金の全国一覧
B4: 都道府県名 | D4: 特定最低賃金 | E4: 日額 | F4: 時間額 | G4: 発効年月日
F5: （円）
B11: 北海道 | D11: --
D12: 処理牛乳・乳飲料、乳製品、糖類製造業 | F12: 1048 | G12: 2024-12-01
D13: 鉄鋼業 | F13: 1100 | G13: 2024-12-01
D14: 電子部品・デバイス・電子回路、電気機械器具、情報通信機械器具製造業 | F14: 1049 | G14: 2024-12-01
D15: 船舶製造・修理業、船体ブロック製造業 | F15: 1040 | G15: 2024-12-01
B16: 青森 | D16: --
D17: 鉄鋼業 | F17: 1045 | G17: 2024-12-21
D18: 電子部品・デバイス・電子回路、電気機械器具、情報通信機械器具製造業 | F18: 968 | G18: 2024-12-21
D19: 百貨店、総合スーパーマーケット、その他の各種商品小売業 | F19: 956 | G19: 2024-12-21
D20: 自動車小売業 | F20: 963 | G20: 2024-12-21
B21: 岩手 | D21: --
D22: 鉄鋼業、金属線製品、その他の金属製品製造業 | F22: 1008 | G22: 2025-01-22
D23: 電子部品・デバイス・電子回路、電気機械器具、情報通信機械器具製造業 | F23: 975 | G23: 2025-01-22
D24: 光学器械器具・レンズ、時計・同部分品製造業 | F24: 985 | G24: 2025-01-22
D25: 自動車小売業 | F25: 1004 | G25: 2025-01-22
B26: 宮城 | D26: --
D27: 鉄鋼業 | F27: 1059 | G27: 2024-12-15
D28: 電子部品・デバイス・電子回路、電気機械器具、情報通信機械器具製造業 | F28: 1012 | G28: 2024-12-15
D29: 自動車小売業 | F29: 1036 | G29: 2024-12-15
B30: 秋田 | D30: --
D31: 非鉄金属製錬・精製業 | F31: 1011 | G31: 2024-12-25
D32: 電子部品・デバイス・電子回路、電池、電子応用装置、その他の電気機械器具、映像・音響機械器具、電子計算機・同附属装置製造業 | F32: 958 | G32: 2024-12-25
D33: 自動車・同附属品製造業 | F33: 1020 | G33: 2024-12-25
D34: 自動車（新車）、自動車部分品・附属品小売業 | F34: 980 | G34: 2024-12-25
B35: 山形 | D35: --
D36: ポンプ・圧縮機器、一般産業用機械・装置、他に分類されないはん用機械・装置、化学機械・同装置、真空装置・真空機器製造業 | F36: 1012 | G36: 2024-12-25
D37: 電子部品・デバイス・電子回路、電気機械器具、情報通信機械器具製造業 | F37: 996 | G37: 2024-12-25
D38: 自動車・同附属品製造業 | F38: 1012 | G38: 2024-12-25
D39: 自動車整備業 | F39: 1017 | G39: 2024-12-25
B40: 福島 | D40: --
D41: 非鉄金属製造業 | F41: 996 | G41: 2025-01-04
D42: 輸送用機械器具製造業 | F42: 1005 | G42: 2024-12-21
D43: 自動車小売業 | F43: 1020 | G43: 2024-12-29
B44: 茨城 | D44: --
D45: 鉄鋼業 | F45: 1098 | G45: 2024-12-31
D46: はん用機械器具、生産用機械器具、業務用機械器具製造業 | F46: 1055 | G46: 2024-12-31
D47: 計量器・測定器・分析機器・試験機・理化学機械器具、医療用機械器具・医療用品、光学機械器具・レンズ、電子部品・デバイス・電子回路、電気機械器具、情報通信機械器具、時計・同部分品製造業 | F47: 1052 | G47: 2024-12-31
B48: 栃木 | D48: --
D49: 塗料製造業 | F49: 1109 | G49: 2024-12-31
D50: はん用機械器具、生産用機械器具、業務用機械器具製造業 | F50: 1055 | G50: 2024-12-31
D51: 計量器・測定器・分析機器・試験機・測量機械器具製造業、医療用機械器具・医療用品製造業、光学機械器具・レンズ製造業、医療用計測器製造業、時計・同部分品製造業 | F51: 1056 | G51: 2024-12-31
D52: 電子部品・デバイス・電子回路、電気機械器具、情報通信機械器具製造業 | F52: 1056 | G52: 2024-12-31
D53: 自動車・同附属品製造業 | F53: 1064 | G53: 2024-12-31
B54: 群馬 | D54: --
D55: 製鋼・製鋼圧延業、鉄素形材製造業 | F55: 1067 | G55: 2024-12-28
D56: ポンプ・圧縮機器、一般産業用機械・装置、その他のはん用機械・同部分品、金属加工機械、その他の生産用機械・同部分品、事務用機械器具、サービス用・娯楽用機械器具製造業 | F56: 1056 | G56: 2024-12-28
D57: 電子部品・デバイス・電子回路、電気機械器具、情報通信機械器具製造業 | F57: 1056 | G57: 2024-12-28
D58: 輸送用機械器具製造業 | F58: 1056 | G58: 2024-12-28
B59: 埼玉 | D59: --
D60: 非鉄金属製造業 | F60: 1098 | G60: 2024-12-01
D61: 電子部品・デバイス・電子回路、電気機械器具、情報通信機械器具製造業 | F61: 1105 | G61: 2024-12-01
D62: 輸送用機械器具製造業 | F62: 1102 | G62: 2024-12-01
D63: 光学機械器具・レンズ、時計・同部分品製造業 | F63: 1114 | G63: 2024-12-01
D64: 自動車小売業 | F64: 1089 | G64: 2024-12-01
B65: 千葉 | D65: --
D66: 鉄鋼業 | F66: 1147 | G66: 2024-12-25
D67: 電子部品・デバイス・電子回路、電気機械器具、情報通信機械器具製造業 | F67: 1105 | G67: 2024-12-25
B68: 東京 | D68: --
G69: --
B70: 神奈川 | D70: --
G71: --
B72: 新潟 | D72: --
D73: 電子部品・デバイス・電子回路、電気機械器具、情報通信機械器具製造業 | F73: 1005 | G73: 2023-12-27
D74: 自動車（新車）、自動車部分品・附属品小売業 | F74: 1015 | G74: 2024-12-08
B75: 富山 | D75: --
D76: 玉軸受・ころ軸受、他に分類されないはん用機械・装置、トラクタ、金属工作機械、機械工具、ロボット、自動車・同附属品製造業 | F76: 1035 | G76: 2024-12-27
D77: 電子部品・デバイス・電子回路、電気機械器具、情報通信機械器具製造業 | F77: 1002 | G77: 2024-12-26
D78: 百貨店，総合スーパー | F78: 1003 | G78: 2024-12-26
B79: 石川 | D79: --
D80: 金属素形材製品、ボルト・ナット・リベット・小ねじ・木ねじ等、その他の金属製品、はん用機械器具、生産用機械器具、発電用・送電用・配電用電気機械器具、産業用電気機械器具製造業 | F80: 1040 | G80: 2024-12-31
D81: 電子部品・デバイス・電子回路、民生用電気機械器具、電子応用装置、情報通信機械器具製造業 | F81: 1008 | G81: 2024-12-31
D82: 自動車・同附属品、自転車・同部分品製造業 | F82: 1040 | G82: 2024-12-31
D83: 百貨店、総合スーパーマーケット | F83: 994 | G83: 2024-12-31
B84: 福井 | D84: --
G85: --
B86: 山梨 | D86: --
D87: 電子部品・デバイス・電子回路、電気機械器具、情報通信機械器具製造業 | F87: 1047 | G87: 2024-12-27
D88: 自動車・同附属品製造業 | F88: 1029 | G88: 2025-01-03
B89: 長野 | D89: --
D90: はん用機械器具、生産用機械器具、業務用機械器具、自動車・同附属品、船舶製造・修理業，舶用機関製造業 | F90: 1043 | G90: 2024-12-12
D91: 計量器・測定器・分析機器・試験機、医療用機械器具・医療用品、光学機械器具・レンズ、電子部品・デバイス・電子回路、電気機械器具、情報通信機械器具、時計・同部分品、眼鏡製造業 | F91: 1032 | G91: 2025-01-01
B92: 岐阜 | D92: --
D93: 自動車・同附属品製造業 | F93: 1057 | G93: 2024-12-21
D94: 航空機・同附属品製造業 | F94: 1049 | G94: 2024-12-21
B95: 静岡 | D95: --
D96: 鉄鋼、非鉄金属製造業 | F96: 1057 | G96: 2024-12-21
D97: はん用機械器具、生産用機械器具、業務用機械器具、輸送用機械器具製造業 | F97: 1073 | G97: 2024-12-21
D98: 電子部品・デバイス・電子回路、電気機械器具、情報通信機械器具製造業 | F98: 1042 | G98: 2024-12-21
B99: 愛知 | D99: --
D100: 製鉄業、製鋼・製鋼圧延業、鋼材製造業 | F100: 1111 | G100: 2024-12-16
D101: 輸送用機械器具製造業 | F101: 1081 | G101: 2024-12-16
B102: 三重 | D102: --
D103: 電線・ケーブル製造業 | F103: 1033 | G103: 2023-12-21
D104: 電子部品・デバイス・電子回路、電気機械器具、情報通信機械器具製造業 | F104: 1031 | G104: 2023-12-21
D105: 建設機械・鉱山機械製造業、自動車・同附属品製造業、船舶製造・修理業，舶用機関製造業、産業用運搬車両・同部分品・附属品製造業、その他の輸送用機械器具製造業 | F105: 1047 | G105: 2023-12-21
B106: 滋賀 | D106: --
D107: ガラス・同製品、セメント・同製品、衛生陶器、炭素・黒鉛製品、炭素繊維製造業 | F107: 1046 | G107: 2024-12-31
D108: はん用機械器具、生産用機械器具、業務用機械器具製造業 | F108: 1060 | G108: 2024-12-31
D109: 計量器・測定器・分析機器・試験機、光学機械器具・レンズ、電子部品・デバイス・電子回路、電気機械器具、情報通信機械器具製造業 | F109: 1050 | G109: 2024-12-31
D110: 自動車・同附属品製造業 | F110: 1062 | G110: 2024-12-31
B111: 京都 | D111: -- | L111: -
D112: 電子部品・デバイス・電子回路、電気機械器具、情報通信機械器具製造業 | F112: 1074 | G112: 2025-01-19 | L112: -
D113: 輸送用機械器具、建設機械・鉱山機械製造業 | F113: 1076 | G113: 2025-01-19
B114: 大阪 | D114: --
D115: 塗料製造業 | F115: 1120 | G115: 2024-12-01
D116: 鉄鋼業 | F116: 1120 | G116: 2024-12-01
D117: はん用機械器具製造業、生産用機械器具製造業、業務用機械器具製造業、暖房装置・配管工事用附属品、金属線製品製造業、船舶製造・修理業，舶用機関製造業 | F117: 1127 | G117: 2024-12-01
D118: 電子部品・デバイス・電子回路、電気機械器具、情報通信機械器具製造業 | F118: 1127 | G118: 2024-12-01
D119: 自動車・同附属品製造業 | F119: 1119 | G119: 2024-12-01
B120: 兵庫 | D120: --
D121: 塗料製造業 | F121: 1099 | G121: 2024-12-01
D122: 鉄鋼業 | F122: 1116 | G122: 2024-12-01
D123: はん用機械器具製造業、生産用機械器具製造業、業務用機械器具製造業 | F123: 1087 | G123: 2024-12-01
D124: 計量器・測定器・分析機器・試験機・測量機械器具製造業 | F124: 1053 | G124: 2024-12-01
D125: 電子部品・デバイス・電子回路製造業、電気機械器具製造業、情報通信機械器具製造業 | F125: 1053 | G125: 2024-12-01
D126: 輸送用機械器具製造業 | F126: 1126 | G126: 2024-12-01
B127: 奈良 | D127: --
G128: --
B129: 和歌山 | D129: --
D130: 鉄鋼業 | F130: 1103 | G130: 2024-12-30
B131: 鳥取 | D131: --
D132: 電子部品・デバイス・電子回路、電気機械器具、情報通信機械器具製造業 | F132: 963 | G132: 2024-12-19
B133: 島根 | D133: --
D134: 製鋼・製鋼圧延業、鉄素形材製造業 | F134: 1092 | G134: 2024-11-28
D135: はん用機械器具、生産用機械器具、業務用機械器具製造業 | F135: 1068 | G135: 2024-12-05
D136: 電子部品・デバイス・電子回路、電気機械器具、情報通信機械器具製造業 | F136: 987 | G136: 2024-12-27
D137: 自動車・同附属品製造業 | F137: 1028 | G137: 2024-11-30
D138: 自動車（新車）小売業 | F138: 1000 | G138: 2024-12-05
B139: 岡山 | D139: --
D140: 耐火物製造業 | F140: 1026 | G140: 2024-12-28
D141: 鉄鋼業 | F141: 1102 | G141: 2024-12-08
D142: 空気圧縮機・ガス圧縮機・送風機、家庭用エレベータ、冷凍機・温湿調整装置、玉軸受・ころ軸受、農業用機械、縫製機械、生活関連産業用機械、基礎素材産業用機械、半導体・フラットパネルディスプレイ製造装置、真空装置・真空機器、他に分類されない生産用機械・同部分品、事務用機械器具、サービス用・娯楽用機械器具製造業 | F142: 1054 | G142: 2025-01-09
D143: 電子部品・デバイス・電子回路、電気機械器具、情報通信機械器具製造業 | F143: 1025 | G143: 2024-12-25
D144: 自動車・同附属品製造業 | F144: 1039 | G144: 2024-12-29
D145: 船舶製造・修理業，舶用機関製造業 | F145: 1094 | G145: 2024-12-28
B146: 広島 | D146: --
D147: 製鉄業、鋼材、銑鉄鋳物、可鍛鋳鉄製造業、その他の鉄鋼業 | F147: 1114 | G147: 2024-12-31
D148: はん用機械器具、生産用機械器具、業務用機械器具製造業 | F148: 1070 | G148: 2024-12-31
D149: 電子部品・デバイス・電子回路、電気機械器具、情報通信機械器具製造業 | F149: 1045 | G149: 2024-12-31
D150: 自動車・同附属品製造業 | F150: 1048 | G150: 2024-12-31
D151: （R7.2.21～）建設用・建築用金属製品、その他の金属製品製造業 | F151: 1052 | G151: 2025-02-21
D152: （～R7.2.20）建設用・建築用金属製品、その他の金属製品製造業 | F152: 1002 | G152: 2023-12-31
D153: （R7.2.21～）船舶製造・修理業，舶用機関製造業 | F153: 1080 | G153: 2025-02-21
D154: （～R7.2.20）船舶製造・修理業，舶用機関製造業 | F154: 1030 | G154: 2023-12-31
D155: （R7.2.21～）自動車小売業 | F155: 1038 | G155: 2025-02-21
D156: （～R7.2.20）自動車小売業 | F156: 993 | G156: 2023-12-31
B157: 山口 | D157: --
D158: 鉄鋼業、非鉄金属精錬・精製業、非鉄金属・同合金圧延業、非鉄金属素形材製造業 | F158: 1116 | G158: 2024-12-15
D159: 電子部品・デバイス・電子回路、電気機械器具、情報通信機械器具製造業 | F159: 1032 | G159: 2024-12-15
D160: 輸送用機械器具製造業 | F160: 1088 | G160: 2024-12-15
D161: 百貨店，総合スーパー | F161: 1000 | G161: 2024-12-15
B162: 徳島 | D162: --
D163: はん用機械器具、生産用機械器具、業務用機械器具製造業 | F163: 1070 | G163: 2024-12-21
D164: 電子部品・デバイス・電子回路、電気機械器具、情報通信機械器具製造業 | F164: 1038 | G164: 2024-12-21
B165: 香川 | D165: --
D166: はん用機械器具、生産用機械器具、業務用機械器具製造業 | F166: 1092 | G166: 2024-12-15
D167: 電子部品・デバイス・電子回路、電気機械器具、情報通信機械器具製造業 | F167: 1030 | G167: 2024-12-15
D168: 船舶製造・修理業，舶用機関製造業 | F168: 1093 | G168: 2025-01-08
B169: 愛媛 | D169: --
D170: パルプ、紙製造業 | F170: 1050 | G170: 2024-12-25
D171: はん用機械器具、生産用機械器具、業務用機械器具製造業 | F171: 1049 | G171: 2024-12-25
D172: 電子部品・デバイス・電子回路、電気機械器具、情報通信機械器具製造業 | F172: 1038 | G172: 2024-12-25
D173: 船舶製造・修理業，舶用機関製造業 | F173: 1070 | G173: 2024-12-25
B174: 高知 | D174: --
G175: --
B176: 福岡 | D176: --
D177: 製鉄業、製鋼・製鋼圧延業、鋼材製造業 | F177: 1106 | G177: 2024-12-10
D178: 電子部品・デバイス・電子回路、電気機械器具、情報通信機械器具製造業 | F178: 1071 | G178: 2024-12-10
D179: 輸送用機械器具製造業 | F179: 1081 | G179: 2024-12-10
D180: 百貨店、総合スーパー | F180: 1000 | G180: 2024-12-10
D181: 自動車(新車)小売業 | F181: 1066 | G181: 2024-12-10
B182: 佐賀 | D182: --
D183: 陶磁器・同関連製品製造業 | F183: 957 | G183: 2024-12-21
D184: ポンプ・圧縮機器、一般産業用機械・装置、その他のはん用機械・同部分品、農業用機械、建設機械・鉱山機械、生活関連産業用機械、基礎素材産業用機械、金属加工機械、半導体・フラットパネルディスプレイ製造装置、その他の生産用機械・同部分品製造業 | F184: 1010 | G184: 2024-12-20
D185: 発電用・送電用・配電用電気機械器具、産業用電気機械器具、電球・電気照明器具、電池、その他の電気機械器具、通信機械器具・同関連機械器具、電子計算機・同付属装置、電子デバイス、電子部品、記録メディア、電子回路、ユニット部品、その他の電子部品・デバイス・電子回路製造業 | F185: 996 | G185: 2024-12-19
B186: 長崎 | D186: --
G187: --
B188: 熊本 | D188: --
D189: 電子部品・デバイス・電子回路、電気機械器具、情報通信機械器具製造業 | F189: 996 | G189: 2024-12-15
D190: 自動車・同附属品製造業、船舶製造・修理業，舶用機関製造業 | F190: 1019 | G190: 2024-12-15
B191: 大分 | D191: --
D192: 鉄鋼業 | F192: 1106 | G192: 2024-12-25
D193: 非鉄金属製造業 | F193: 1053 | G193: 2024-12-25
D194: 電子部品・デバイス・電子回路、電気機械器具、情報通信機械器具製造業 | F194: 996 | G194: 2024-12-25
D195: 自動車・同附属品製造業、船舶製造・修理業，舶用機関製造業 | F195: 997 | G195: 2024-12-25
D196: 自動車（新車）小売業 | F196: 991 | G196: 2024-12-25
B197: 宮崎 | D197: --
G198: --
B199: 鹿児島 | D199: --
D200: 自動車(新車）小売業 | F200: 986 | G200: 2024-12-21
B201: 沖縄 | D201: --
G202: --

Sheet 職種別平均賃金
B3: 賃金構造基本統計調査による職種別平均賃金（時給換算）
B5: 無期雇用かつフルタイムの労働者について、（所定内給与＋特別給与÷１２）÷所定内時間で時給換算したものを特別集計
B6: 企業規模計 | K6: （円）
D7: 基準値 | E7: 基準値に能力・経験調整指数を乗じた値 | K7: 参考値(0年)
D8: （０年） | E8: １年 | F8: ２年 | G8: ３年 | H8: ５年 | I8: １０年 | J8: ２０年 | K8: (補正前）
B9: 産業計 | D9: 1320 | E9: 1531 | F9: 1641 | G9: 1676 | H9: 1756 | I9: 1972 | J9: 2367 | K9: 1583 | N9: =B9&"_"&C9 -> 産業計_
B10: 1031 | C10: 管理的職業従事者 | D10: 3102 | E10: 3598 | F10: 3856 | G10: 3940 | H10: 4126 | I10: 4634 | J10: 5562 | K10: 3622 | N10: =B10&"_"&C10 -> 1031_管理的職業従事者
B11: 1051 | C11: 研究者 | D11: 1721 | E11: 1996 | F11: 2139 | G11: 2186 | H11: 2289 | I11: 2571 | J11: 3086 | K11: 2042 | N11: 1051_研究者
B12: 1072 | C12: 電気・電子・電気通信技術者 （通信ネットワーク技術者を除く） | D12: 1561 | E12: 1811 | F12: 1940 | G12: 1982 | H12: 2076 | I12: 2332 | J12: 2799 | K12: 1859 | N12: 1072_電気・電子・電気通信技術者 （通信ネットワーク技術者を除く）
B13: 1073 | C13: 機械技術者 | D13: 1393 | E13: 1616 | F13: 1731 | G13: 1769 | H13: 1853 | I13: 2081 | J13: 2498 | K13: 1667 | N13: 1073_機械技術者
B14: 1074 | C14: 輸送用機器技術者 | D14: 1289 | E14: 1495 | F14: 1602 | G14: 1637 | H14: 1714 | I14: 1926 | J14: 2311 | K14: 1548 | N14: 1074_輸送用機器技術者
B15: 1076 | C15: 金属技術者 | D15: 1363 | E15: 1581 | F15: 1694 | G15: 1731 | H15: 1813 | I15: 2036 | J15: 2444 | K15: 1632 | N15: 1076_金属技術者
B16: 1077 | C16: 化学技術者 | D16: 1402 | E16: 1626 | F16: 1743 | G16: 1781 | H16: 1865 | I16: 2095 | J16: 2514 | K16: 1677 | N16: 1077_化学技術者
B17: 1091 | C17: 建築技術者 | D17: 1373 | E17: 1593 | F17: 1707 | G17: 1744 | H17: 1826 | I17: 2051 | J17: 2462 | K17: 1644 | N17: 1091_建築技術者
B18: 1092 | C18: 土木技術者 | D18: 1506 | E18: 1747 | F18: 1872 | G18: 1913 | H18: 2003 | I18: 2250 | J18: 2700 | K18: 1796 | N18: 1092_土木技術者
B19: 1093 | C19: 測量技術者 | D19: 1223 | E19: 1419 | F19: 1520 | G19: 1553 | H19: 1627 | I19: 1827 | J19: 2193 | K19: 1472 | N19: 1093_測量技術者
B20: 1101 | C20: システムコンサルタント・設計者 | D20: 1699 | E20: 1971 | F20: 2112 | G20: 2158 | H20: 2260 | I20: 2538 | J20: 3046 | K20: 2017 | N20: 1101_システムコンサルタント・設計者
B21: 1104 | C21: ソフトウェア作成者 | D21: 1444 | E21: 1675 | F21: 1795 | G21: 1834 | H21: 1921 | I21: 2157 | J21: 2589 | K21: 1725 | N21: 1104_ソフトウェア作成者
B22: 1109 | C22: その他の情報処理・通信技術者 | D22: 1427 | E22: 1655 | F22: 1774 | G22: 1812 | H22: 1898 | I22: 2132 | J22: 2559 | K22: 1706 | N22: 1109_その他の情報処理・通信技術者
B23: 1119 | C23: 他に分類されない技術者 | D23: 1361 | E23: 1579 | F23: 1692 | G23: 1728 | H23: 1810 | I23: 2033 | J23: 2440 | K23: 1630 | N23: 1119_他に分類されない技術者
B24: 1121 | C24: 医師 | D24: 4380 | E24: 5081 | F24: 5444 | G24: 5563 | H24: 5825 | I24: 6544 | J24: 7853 | K24: 5085 | N24: 1121_医師
B25: 1122 | C25: 歯科医師 | D25: - | E25: - | F25: - | G25: - | H25: - | I25: - | J25: - | K25: - | N25: 1122_歯科医師
B26: 1123 | C26: 獣医師 | D26: 1634 | E26: 1895 | F26: 2031 | G26: 2075 | H26: 2173 | I26: 2441 | J26: 2930 | K26: 1943 | N26: 1123_獣医師
B27: 1124 | C27: 薬剤師 | D27: 1710 | E27: 1984 | F27: 2126 | G27: 2172 | H27: 2274 | I27: 2555 | J27: 3066 | K27: 2030 | N27: =B27&"_"&C27 -> 1124_薬剤師
B28: 1131 | C28: 保健師 | D28: 1425 | E28: 1653 | F28: 1771 | G28: 1810 | H28: 1895 | I28: 2129 | J28: 2555 | K28: 1704 | N28: 1131_保健師
B29: 1132 | C29: 助産師 | D29: - | E29: - | F29: - | G29: - | H29: - | I29: - | J29: - | K29: - | N29: 1132_助産師
B30: 1133 | C30: 看護師 | D30: 1429 | E30: 1658 | F30: 1776 | G30: 1815 | H30: 1901 | I30: 2135 | J30: 2562 | K30: 1708 | N30: 1133_看護師
B31: 1134 | C31: 准看護師 | D31: 1206 | E31: 1399 | F31: 1499 | G31: 1532 | H31: 1604 | I31: 1802 | J31: 2162 | K31: 1453 | N31: 1134_准看護師
B32: 1141 | C32: 診療放射線技師 | D32: 1365 | E32: 1583 | F32: 1697 | G32: 1734 | H32: 1815 | I32: 2039 | J32: 2447 | K32: 1635 | N32: 1141_診療放射線技師
B33: 1143 | C33: 臨床検査技師 | D33: 1281 | E33: 1486 | F33: 1592 | G33: 1627 | H33: 1704 | I33: 1914 | J33: 2297 | K33: 1539 | N33: 1143_臨床検査技師
B34: 1144 | C34: 理学療法士，作業療法士，言語聴覚士，視能訓練士 | D34: 1294 | E34: 1501 | F34: 1608 | G34: 1643 | H34: 1721 | I34: 1933 | J34: 2320 | K34: 1554 | N34: 1144_理学療法士，作業療法士，言語聴覚士，視能訓練士
B35: 1146 | C35: 歯科衛生士 | D35: 1245 | E35: 1444 | F35: 1548 | G35: 1581 | H35: 1656 | I35: 1860 | J35: 2232 | K35: 1497 | N35: 1146_歯科衛生士
B36: 1147 | C36: 歯科技工士 | D36: - | E36: - | F36: - | G36: - | H36: - | I36: - | J36: - | K36: - | N36: 1147_歯科技工士
B37: 1151 | C37: 栄養士 | D37: 1140 | E37: 1322 | F37: 1417 | G37: 1448 | H37: 1516 | I37: 1703 | J37: 2044 | K37: 1377 | N37: 1151_栄養士
B38: 1159 | C38: その他の保健医療従事者 | D38: 1245 | E38: 1444 | F38: 1548 | G38: 1581 | H38: 1656 | I38: 1860 | J38: 2232 | K38: 1497 | N38: 1159_その他の保健医療従事者
B39: 1163 | C39: 保育士 | D39: 1186 | E39: 1376 | F39: 1474 | G39: 1506 | H39: 1577 | I39: 1772 | J39: 2126 | K39: 1430 | N39: 1163_保育士
B40: 1168 | C40: 介護支援専門員（ケアマネージャー） | D40: 1344 | E40: 1559 | F40: 1671 | G40: 1707 | H40: 1788 | I40: 2008 | J40: 2410 | K40: 1611 | N40: 1168_介護支援専門員（ケアマネージャー）
B41: 1169 | C41: その他の社会福祉専門職業従事者 | D41: 1207 | E41: 1400 | F41: 1500 | G41: 1533 | H41: 1605 | I41: 1803 | J41: 2164 | K41: 1454 | N41: 1169_その他の社会福祉専門職業従事者
B42: 1173 | C42: 法務従事者 | D42: - | E42: - | F42: - | G42: - | H42: - | I42: - | J42: - | K42: - | N42: 1173_法務従事者
B43: 1181 | C43: 公認会計士，税理士 | D43: - | E43: - | F43: - | G43: - | H43: - | I43: - | J43: - | K43: - | N43: 1181_公認会計士，税理士
B44: 1189 | C44: その他の経営・金融・保険専門職業従事者 | D44: - | E44: - | F44: - | G44: - | H44: - | I44: - | J44: - | K44: - | N44: 1189_その他の経営・金融・保険専門職業従事者
B45: 1191 | C45: 幼稚園教員，保育教諭 | D45: 1106 | E45: 1283 | F45: 1375 | G45: 1405 | H45: 1471 | I45: 1652 | J45: 1983 | K45: 1339 | N45: 1191_幼稚園教員，保育教諭
B46: 1192 | C46: 小・中学校教員 | D46: 2061 | E46: 2391 | F46: 2562 | G46: 2617 | H46: 2741 | I46: 3079 | J46: 3695 | K46: 2431 | N46: 1192_小・中学校教員
B47: 1194 | C47: 高等学校教員 | D47: 1605 | E47: 1862 | F47: 1995 | G47: 2038 | H47: 2135 | I47: 2398 | J47: 2878 | K47: 1909 | N47: 1194_高等学校教員
B48: 1196 | C48: 大学教授（高専含む） | D48: 3328 | E48: 3860 | F48: 4137 | G48: 4227 | H48: 4426 | I48: 4972 | J48: 5967 | K48: 3881 | N48: 1196_大学教授（高専含む）
B49: 1197 | C49: 大学准教授（高専含む） | D49: 2776 | E49: 3220 | F49: 3451 | G49: 3526 | H49: 3692 | I49: 4147 | J49: 4977 | K49: 3249 | N49: 1197_大学准教授（高専含む）
B50: 1198 | C50: 大学講師・助教（高専含む） | D50: 2163 | E50: 2509 | F50: 2689 | G50: 2747 | H50: 2877 | I50: 3232 | J50: 3878 | K50: 2548 | N50: 1198_大学講師・助教（高専含む）
B51: 1199 | C51: その他の教員 | D51: 1401 | E51: 1625 | F51: 1741 | G51: 1779 | H51: 1863 | I51: 2093 | J51: 2512 | K51: 1676 | N51: 1199_その他の教員
B52: 1201 | C52: 宗教家 | D52: 1116 | E52: 1295 | F52: 1387 | G52: 1417 | H52: 1484 | I52: 1667 | J52: 2001 | K52: 1350 | N52: 1201_宗教家
B53: 1211 | C53: 著述家，記者，編集者 | D53: - | E53: - | F53: - | G53: - | H53: - | I53: - | J53: - | K53: - | N53: 1211_著述家，記者，編集者
B54: 1221 | C54: 美術家，写真家，映像撮影者 | D54: 1058 | E54: 1227 | F54: 1315 | G54: 1344 | H54: 1407 | I54: 1581 | J54: 1897 | K54: 1283 | N54: 1221_美術家，写真家，映像撮影者
B55: 1224 | C55: デザイナー | D55: 1345 | E55: 1560 | F55: 1672 | G55: 1708 | H55: 1789 | I55: 2009 | J55: 2412 | K55: 1612 | N55: 1224_デザイナー
B56: 1231 | C56: 音楽家，舞台芸術家 | D56: 1259 | E56: 1460 | F56: 1565 | G56: 1599 | H56: 1674 | I56: 1881 | J56: 2257 | K56: 1514 | N56: 1231_音楽家，舞台芸術家
B57: 1244 | C57: 個人教師 | D57: 1101 | E57: 1277 | F57: 1369 | G57: 1398 | H57: 1464 | I57: 1645 | J57: 1974 | K57: 1333 | N57: 1244_個人教師
B58: 1249 | C58: 他に分類されない専門的職業従事者 | D58: 1479 | E58: 1716 | F58: 1838 | G58: 1878 | H58: 1967 | I58: 2210 | J58: 2652 | K58: 1765 | N58: 1249_他に分類されない専門的職業従事者
B59: 1251 | C59: 庶務・人事事務員 | D59: 1350 | E59: 1566 | F59: 1678 | G59: 1715 | H59: 1796 | I59: 2017 | J59: 2421 | K59: 1618 | N59: 1251_庶務・人事事務員
B60: 1253 | C60: 企画事務員 | D60: 1641 | E60: 1904 | F60: 2040 | G60: 2084 | H60: 2183 | I60: 2452 | J60: 2942 | K60: 1951 | N60: 1253_企画事務員
B61: 1254 | C61: 受付・案内事務員 | D61: 1034 | E61: 1199 | F61: 1285 | G61: 1313 | H61: 1375 | I61: 1545 | J61: 1854 | K61: 1256 | N61: 1254_受付・案内事務員
B62: 1255 | C62: 秘書 | D62: - | E62: - | F62: - | G62: - | H62: - | I62: - | J62: - | K62: - | N62: 1255_秘書
B63: 1256 | C63: 電話応接事務員 | D63: 1265 | E63: 1467 | F63: 1572 | G63: 1607 | H63: 1682 | I63: 1890 | J63: 2268 | K63: 1520 | N63: 1256_電話応接事務員
B64: 1257 | C64: 総合事務員 | D64: 1274 | E64: 1478 | F64: 1584 | G64: 1618 | H64: 1694 | I64: 1903 | J64: 2284 | K64: 1531 | N64: 1257_総合事務員
B65: 1259 | C65: その他の一般事務従事者 | D65: 1280 | E65: 1485 | F65: 1591 | G65: 1626 | H65: 1702 | I65: 1912 | J65: 2295 | K65: 1537 | N65: 1259_その他の一般事務従事者
B66: 1261 | C66: 会計事務従事者 | D66: 1283 | E66: 1488 | F66: 1595 | G66: 1629 | H66: 1706 | I66: 1917 | J66: 2300 | K66: 1541 | N66: 1261_会計事務従事者
B67: 1271 | C67: 生産関連事務従事者 | D67: 1161 | E67: 1347 | F67: 1443 | G67: 1474 | H67: 1544 | I67: 1735 | J67: 2082 | K67: 1401 | N67: 1271_生産関連事務従事者
B68: 1281 | C68: 営業・販売事務従事者 | D68: 1281 | E68: 1486 | F68: 1592 | G68: 1627 | H68: 1704 | I68: 1914 | J68: 2297 | K68: 1539 | N68: 1281_営業・販売事務従事者
B69: 1291 | C69: 外勤事務従事者 | D69: - | E69: - | F69: - | G69: - | H69: - | I69: - | J69: - | K69: - | N69: 1291_外勤事務従事者
B70: 1301 | C70: 運輸・郵便事務従事者 | D70: 1170 | E70: 1357 | F70: 1454 | G70: 1486 | H70: 1556 | I70: 1748 | J70: 2098 | K70: 1412 | N70: 1301_運輸・郵便事務従事者
B71: 1311 | C71: 事務用機器操作員 | D71: 1176 | E71: 1364 | F71: 1462 | G71: 1494 | H71: 1564 | I71: 1757 | J71: 2109 | K71: 1419 | N71: 1311_事務用機器操作員
B72: 1321 | C72: 販売店員 | D72: 1120 | E72: 1299 | F72: 1392 | G72: 1422 | H72: 1490 | I72: 1673 | J72: 2008 | K72: 1354 | N72: 1321_販売店員
B73: 1324 | C73: その他の商品販売従事者 | D73: 1342 | E73: 1557 | F73: 1668 | G73: 1704 | H73: 1785 | I73: 2005 | J73: 2406 | K73: 1608 | N73: 1324_その他の商品販売従事者
B74: 1331 | C74: 販売類似職業従事者 | D74: 1467 | E74: 1702 | F74: 1823 | G74: 1863 | H74: 1951 | I74: 2192 | J74: 2630 | K74: 1752 | N74: =B74&"_"&C74 -> 1331_販売類似職業従事者
B75: 1344 | C75: 自動車営業職業従事者 | D75: 1247 | E75: 1447 | F75: 1550 | G75: 1584 | H75: 1659 | I75: 1863 | J75: 2236 | K75: 1500 | N75: 1344_自動車営業職業従事者
B76: 1345 | C76: 機械器具・通信・システム営業職業従事者 （自動車を除く） | D76: 1460 | E76: 1694 | F76: 1815 | G76: 1854 | H76: 1942 | I76: 2181 | J76: 2618 | K76: 1743 | N76: 1345_機械器具・通信・システム営業職業従事者 （自動車を除く）
B77: 1346 | C77: 金融営業職業従事者 | D77: 1439 | E77: 1669 | F77: 1789 | G77: 1828 | H77: 1914 | I77: 2150 | J77: 2580 | K77: 1720 | N77: 1346_金融営業職業従事者
B78: 1347 | C78: 保険営業職業従事者 | D78: 1302 | E78: 1510 | F78: 1618 | G78: 1654 | H78: 1732 | I78: 1945 | J78: 2334 | K78: 1563 | N78: 1347_保険営業職業従事者
B79: 1349 | C79: その他の営業職業従事者 | D79: 1378 | E79: 1598 | F79: 1713 | G79: 1750 | H79: 1833 | I79: 2059 | J79: 2471 | K79: 1650 | N79: 1349_その他の営業職業従事者
B80: 1361 | C80: 介護職員（医療・福祉施設等） | D80: 1141 | E80: 1324 | F80: 1418 | G80: 1449 | H80: 1518 | I80: 1705 | J80: 2046 | K80: 1379 | N80: 1361_介護職員（医療・福祉施設等）
B81: 1362 | C81: 訪問介護従事者 | D81: 1276 | E81: 1480 | F81: 1586 | G81: 1621 | H81: 1697 | I81: 1906 | J81: 2288 | K81: 1533 | N81: 1362_訪問介護従事者
B82: 1371 | C82: 看護助手 | D82: 1025 | E82: 1189 | F82: 1274 | G82: 1302 | H82: 1363 | I82: 1531 | J82: 1838 | K82: 1246 | N82: 1371_看護助手
B83: 1379 | C83: その他の保健医療サービス職業従事者 | D83: 921 | E83: 1068 | F83: 1145 | G83: 1170 | H83: 1225 | I83: 1376 | J83: 1651 | K83: 1127 | N83: 1379_その他の保健医療サービス職業従事者
B84: 1381 | C84: 理容・美容師 | D84: 1032 | E84: 1197 | F84: 1283 | G84: 1311 | H84: 1373 | I84: 1542 | J84: 1850 | K84: 1254 | N84: 1381_理容・美容師
B85: 1383 | C85: 美容サービス・浴場従事者（美容師を除く） | D85: 1039 | E85: 1205 | F85: 1291 | G85: 1320 | H85: 1382 | I85: 1552 | J85: 1863 | K85: 1262 | N85: 1383_美容サービス・浴場従事者（美容師を除く）
B86: 1385 | C86: クリーニング職，洗張職 | D86: 923 | E86: 1071 | F86: 1147 | G86: 1172 | H86: 1228 | I86: 1379 | J86: 1655 | K86: 1129 | N86: 1385_クリーニング職，洗張職
B87: 1391 | C87: 飲食物調理従事者 | D87: 1065 | E87: 1235 | F87: 1324 | G87: 1353 | H87: 1416 | I87: 1591 | J87: 1910 | K87: 1291 | N87: 1391_飲食物調理従事者
B88: 1403 | C88: 飲食物給仕従事者 | D88: 1060 | E88: 1230 | F88: 1318 | G88: 1346 | H88: 1410 | I88: 1584 | J88: 1901 | K88: 1286 | N88: 1403_飲食物給仕従事者
B89: 1404 | C89: 航空機客室乗務員 | D89: 1472 | E89: 1708 | F89: 1830 | G89: 1869 | H89: 1958 | I89: 2199 | J89: 2639 | K89: 1757 | N89: 1404_航空機客室乗務員
B90: 1405 | C90: 身の回り世話従事者 | D90: 1023 | E90: 1187 | F90: 1272 | G90: 1299 | H90: 1361 | I90: 1528 | J90: 1834 | K90: 1244 | N90: 1405_身の回り世話従事者
B91: 1406 | C91: 娯楽場等接客員 | D91: 1119 | E91: 1298 | F91: 1391 | G91: 1421 | H91: 1488 | I91: 1672 | J91: 2006 | K91: 1353 | N91: 1406_娯楽場等接客員
B92: 1411 | C92: 居住施設・ビル等管理人 | D92: 1290 | E92: 1496 | F92: 1603 | G92: 1638 | H92: 1716 | I92: 1927 | J92: 2313 | K92: 1549 | N92: 1411_居住施設・ビル等管理人
B93: 1421 | C93: その他のサービス職業従事者 | D93: 1102 | E93: 1278 | F93: 1370 | G93: 1400 | H93: 1466 | I93: 1646 | J93: 1976 | K93: 1334 | N93: 1421_その他のサービス職業従事者
B94: 1453 | C94: 警備員 | D94: 1080 | E94: 1253 | F94: 1342 | G94: 1372 | H94: 1436 | I94: 1614 | J94: 1936 | K94: 1309 | N94: 1453_警備員
B95: 1459 | C95: その他の保安職業従事者 | D95: 1100 | E95: 1276 | F95: 1367 | G95: 1397 | H95: 1463 | I95: 1643 | J95: 1972 | K95: 1332 | N95: 1459_その他の保安職業従事者
B96: 1461 | C96: 農林漁業従事者 | D96: 1075 | E96: 1247 | F96: 1336 | G96: 1365 | H96: 1430 | I96: 1606 | J96: 1927 | K96: 1303 | N96: 1461_農林漁業従事者
B97: 1491 | C97: 製銑・製鋼・非鉄金属製錬従事者 | D97: 1105 | E97: 1282 | F97: 1374 | G97: 1403 | H97: 1470 | I97: 1651 | J97: 1981 | K97: 1337 | N97: 1491_製銑・製鋼・非鉄金属製錬従事者
B98: 1492 | C98: 鋳物製造・鍛造従事者 | D98: 1151 | E98: 1335 | F98: 1431 | G98: 1462 | H98: 1531 | I98: 1720 | J98: 2064 | K98: 1390 | N98: 1492_鋳物製造・鍛造従事者
B99: 1493 | C99: 金属工作機械作業従事者 | D99: 1109 | E99: 1286 | F99: 1378 | G99: 1408 | H99: 1475 | I99: 1657 | J99: 1988 | K99: 1342 | N99: 1493_金属工作機械作業従事者
B100: 1494 | C100: 金属プレス従事者 | D100: 1047 | E100: 1215 | F100: 1301 | G100: 1330 | H100: 1393 | I100: 1564 | J100: 1877 | K100: 1271 | N100: 1494_金属プレス従事者
B101: 1495 | C101: 鉄工，製缶従事者 | D101: 1146 | E101: 1329 | F101: 1424 | G101: 1455 | H101: 1524 | I101: 1712 | J101: 2055 | K101: 1384 | N101: 1495_鉄工，製缶従事者
B102: 1496 | C102: 板金従事者 | D102: 1065 | E102: 1235 | F102: 1324 | G102: 1353 | H102: 1416 | I102: 1591 | J102: 1910 | K102: 1291 | N102: 1496_板金従事者
B103: 1497 | C103: 金属彫刻・表面処理従事者 | D103: 1107 | E103: 1284 | F103: 1376 | G103: 1406 | H103: 1472 | I103: 1654 | J103: 1985 | K103: 1340 | N103: 1497_金属彫刻・表面処理従事者
B104: 1498 | C104: 金属溶接・溶断従事者 | D104: 1127 | E104: 1307 | F104: 1401 | G104: 1431 | H104: 1499 | I104: 1684 | J104: 2021 | K104: 1362 | N104: 1498_金属溶接・溶断従事者
B105: 1499 | C105: その他の製品製造・加工処理従事者（金属製品） | D105: 1098 | E105: 1274 | F105: 1365 | G105: 1394 | H105: 1460 | I105: 1640 | J105: 1969 | K105: 1329 | N105: 1499_その他の製品製造・加工処理従事者（金属製品）
B106: 1501 | C106: 化学製品製造従事者 | D106: 1191 | E106: 1382 | F106: 1480 | G106: 1513 | H106: 1584 | I106: 1779 | J106: 2135 | K106: 1436 | N106: 1501_化学製品製造従事者
B107: 1502 | C107: 窯業・土石製品製造従事者 | D107: 1089 | E107: 1263 | F107: 1354 | G107: 1383 | H107: 1448 | I107: 1627 | J107: 1953 | K107: 1319 | N107: 1502_窯業・土石製品製造従事者
B108: 1503 | C108: 食料品・飲料・たばこ製造従事者 | D108: 1036 | E108: 1202 | F108: 1288 | G108: 1316 | H108: 1378 | I108: 1548 | J108: 1858 | K108: 1258 | N108: 1503_食料品・飲料・たばこ製造従事者
B109: 1505 | C109: 紡織・衣服・繊維製品製造従事者 | D109: 926 | E109: 1074 | F109: 1151 | G109: 1176 | H109: 1232 | I109: 1383 | J109: 1660 | K109: 1132 | N109: 1505_紡織・衣服・繊維製品製造従事者
B110: 1506 | C110: 木・紙製品製造従事者 | D110: 1063 | E110: 1233 | F110: 1321 | G110: 1350 | H110: 1414 | I110: 1588 | J110: 1906 | K110: 1289 | N110: 1506_木・紙製品製造従事者
B111: 1507 | C111: 印刷・製本従事者 | D111: 1014 | E111: 1176 | F111: 1260 | G111: 1288 | H111: 1349 | I111: 1515 | J111: 1818 | K111: 1233 | N111: 1507_印刷・製本従事者
B112: 1508 | C112: ゴム・プラスチック製品製造従事者 | D112: 1052 | E112: 1220 | F112: 1308 | G112: 1336 | H112: 1399 | I112: 1572 | J112: 1886 | K112: 1277 | N112: 1508_ゴム・プラスチック製品製造従事者
B113: 1509 | C113: その他の製品製造・加工処理従事者 （金属製品を除く） | D113: 1132 | E113: 1313 | F113: 1407 | G113: 1438 | H113: 1506 | I113: 1691 | J113: 2030 | K113: 1368 | N113: 1509_その他の製品製造・加工処理従事者 （金属製品を除く）
B114: 1511 | C114: はん用・生産用・業務用機械器具組立従事者 | D114: 1037 | E114: 1203 | F114: 1289 | G114: 1317 | H114: 1379 | I114: 1549 | J114: 1859 | K114: 1259 | N114: 1511_はん用・生産用・業務用機械器具組立従事者
B115: 1512 | C115: 電気機械器具組立従事者 | D115: 1060 | E115: 1230 | F115: 1318 | G115: 1346 | H115: 1410 | I115: 1584 | J115: 1901 | K115: 1286 | N115: 1512_電気機械器具組立従事者
B116: 1513 | C116: 自動車組立従事者 | D116: 1079 | E116: 1252 | F116: 1341 | G116: 1370 | H116: 1435 | I116: 1612 | J116: 1935 | K116: 1307 | N116: 1513_自動車組立従事者
B117: 1514 | C117: その他の機械組立従事者 | D117: 1069 | E117: 1240 | F117: 1329 | G117: 1358 | H117: 1422 | I117: 1597 | J117: 1917 | K117: 1296 | N117: =B117&"_"&C117 -> 1514_その他の機械組立従事者
B118: 1551 | C118: はん用・生産用・業務用機械器具・ 電気機械器具整備・修理従事者 | D118: 1164 | E118: 1350 | F118: 1447 | G118: 1478 | H118: 1548 | I118: 1739 | J118: 2087 | K118: 1405 | N118: 1551_はん用・生産用・業務用機械器具・ 電気機械器具整備・修理従事者
B119: 1553 | C119: 自動車整備・修理従事者 | D119: 1155 | E119: 1340 | F119: 1436 | G119: 1467 | H119: 1536 | I119: 1726 | J119: 2071 | K119: 1394 | N119: 1553_自動車整備・修理従事者
B120: 1554 | C120: その他の機械整備・修理従事者 | D120: 1271 | E120: 1474 | F120: 1580 | G120: 1614 | H120: 1690 | I120: 1899 | J120: 2279 | K120: 1527 | N120: 1554_その他の機械整備・修理従事者
B121: 1561 | C121: 製品検査従事者（金属製品） | D121: 1119 | E121: 1298 | F121: 1391 | G121: 1421 | H121: 1488 | I121: 1672 | J121: 2006 | K121: 1353 | N121: 1561_製品検査従事者（金属製品）
B122: 1571 | C122: 製品検査従事者（金属製品を除く） | D122: 1127 | E122: 1307 | F122: 1401 | G122: 1431 | H122: 1499 | I122: 1684 | J122: 2021 | K122: 1363 | N122: 1571_製品検査従事者（金属製品を除く）
B123: 1581 | C123: 機械検査従事者 | D123: 1159 | E123: 1344 | F123: 1441 | G123: 1472 | H123: 1541 | I123: 1732 | J123: 2078 | K123: 1399 | N123: 1581_機械検査従事者
B124: 1591 | C124: 画工，塗装・看板制作従事者 | D124: 1183 | E124: 1372 | F124: 1470 | G124: 1502 | H124: 1573 | I124: 1767 | J124: 2121 | K124: 1427 | N124: 1591_画工，塗装・看板制作従事者
B125: 1592 | C125: 製図その他生産関連・生産類似作業従事者 | D125: 1190 | E125: 1380 | F125: 1479 | G125: 1511 | H125: 1583 | I125: 1778 | J125: 2134 | K125: 1435 | N125: 1592_製図その他生産関連・生産類似作業従事者
B126: 1601 | C126: 鉄道運転従事者 | D126: 1219 | E126: 1414 | F126: 1515 | G126: 1548 | H126: 1621 | I126: 1821 | J126: 2186 | K126: 1468 | N126: 1601_鉄道運転従事者
B127: 1611 | C127: バス運転者 | D127: 1109 | E127: 1286 | F127: 1378 | G127: 1408 | H127: 1475 | I127: 1657 | J127: 1988 | K127: 1342 | N127: 1611_バス運転者
B128: 1612 | C128: タクシー運転者 | D128: 1409 | E128: 1634 | F128: 1751 | G128: 1789 | H128: 1874 | I128: 2105 | J128: 2526 | K128: 1685 | N128: 1612_タクシー運転者
B129: 1613 | C129: 乗用自動車運転者（タクシー運転者を除く） | D129: 988 | E129: 1146 | F129: 1228 | G129: 1255 | H129: 1314 | I129: 1476 | J129: 1771 | K129: 1204 | N129: 1613_乗用自動車運転者（タクシー運転者を除く）
B130: 1614 | C130: 営業用大型貨物自動車運転者 | D130: 1263 | E130: 1465 | F130: 1570 | G130: 1604 | H130: 1680 | I130: 1887 | J130: 2265 | K130: 1518 | N130: 1614_営業用大型貨物自動車運転者
B131: 1615 | C131: 営業用貨物自動車運転者（大型車を除く） | D131: 1088 | E131: 1262 | F131: 1352 | G131: 1382 | H131: 1447 | I131: 1625 | J131: 1951 | K131: 1318 | N131: 1615_営業用貨物自動車運転者（大型車を除く）
B132: 1616 | C132: 自家用貨物自動車運転者 | D132: 1152 | E132: 1336 | F132: 1432 | G132: 1463 | H132: 1532 | I132: 1721 | J132: 2066 | K132: 1391 | N132: 1616_自家用貨物自動車運転者
B133: 1619 | C133: その他の自動車運転従事者 | D133: 1224 | E133: 1420 | F133: 1521 | G133: 1554 | H133: 1628 | I133: 1829 | J133: 2195 | K133: 1474 | N133: 1619_その他の自動車運転従事者
B134: 1624 | C134: 航空機操縦士 | D134: - | E134: - | F134: - | G134: - | H134: - | I134: - | J134: - | K134: - | N134: 1624_航空機操縦士
B135: 1631 | C135: 車掌 | D135: - | E135: - | F135: - | G135: - | H135: - | I135: - | J135: - | K135: - | N135: 1631_車掌
B136: 1639 | C136: 他に分類されない輸送従事者 | D136: 1090 | E136: 1264 | F136: 1355 | G136: 1384 | H136: 1450 | I136: 1628 | J136: 1954 | K136: 1320 | N136: 1639_他に分類されない輸送従事者
B137: 1641 | C137: 発電員，変電員 | D137: 1114 | E137: 1292 | F137: 1385 | G137: 1415 | H137: 1482 | I137: 1664 | J137: 1997 | K137: 1348 | N137: 1641_発電員，変電員
B138: 1643 | C138: クレーン・ウインチ運転従事者 | D138: 1432 | E138: 1661 | F138: 1780 | G138: 1819 | H138: 1905 | I138: 2139 | J138: 2568 | K138: 1711 | N138: 1643_クレーン・ウインチ運転従事者
B139: 1645 | C139: 建設・さく井機械運転従事者 | D139: 1318 | E139: 1529 | F139: 1638 | G139: 1674 | H139: 1753 | I139: 1969 | J139: 2363 | K139: 1581 | N139: 1645_建設・さく井機械運転従事者
B140: 1649 | C140: その他の定置・建設機械運転従事者 | D140: 1169 | E140: 1356 | F140: 1453 | G140: 1485 | H140: 1555 | I140: 1746 | J140: 2096 | K140: 1411 | N140: 1649_その他の定置・建設機械運転従事者
B141: 1651 | C141: 建設躯体工事従事者 | D141: 1338 | E141: 1552 | F141: 1663 | G141: 1699 | H141: 1780 | I141: 1999 | J141: 2399 | K141: 1604 | N141: 1651_建設躯体工事従事者
B142: 1661 | C142: 大工 | D142: - | E142: - | F142: - | G142: - | H142: - | I142: - | J142: - | K142: - | N142: 1661_大工
B143: 1666 | C143: 配管従事者 | D143: 1327 | E143: 1539 | F143: 1649 | G143: 1685 | H143: 1765 | I143: 1983 | J143: 2379 | K143: 1591 | N143: 1666_配管従事者
B144: 1669 | C144: その他の建設従事者 | D144: 1212 | E144: 1406 | F144: 1507 | G144: 1539 | H144: 1612 | I144: 1811 | J144: 2173 | K144: 1460 | N144: =B144&"_"&C144 -> 1669_その他の建設従事者
B145: 1671 | C145: 電気工事従事者 | D145: 1193 | E145: 1384 | F145: 1483 | G145: 1515 | H145: 1587 | I145: 1782 | J145: 2139 | K145: 1438 | N145: =B145&"_"&C145 -> 1671_電気工事従事者
B146: 1681 | C146: 土木従事者，鉄道線路工事従事者 | D146: 1259 | E146: 1460 | F146: 1565 | G146: 1599 | H146: 1674 | I146: 1881 | J146: 2257 | K146: 1514 | N146: 1681_土木従事者，鉄道線路工事従事者
B147: 1691 | C147: ダム・トンネル掘削従事者，採掘従事者 | D147: 1382 | E147: 1603 | F147: 1718 | G147: 1755 | H147: 1838 | I147: 2065 | J147: 2478 | K147: 1654 | N147: 1691_ダム・トンネル掘削従事者，採掘従事者
B148: 1702 | C148: 船内・沿岸荷役従事者 | D148: 1342 | E148: 1557 | F148: 1668 | G148: 1704 | H148: 1785 | I148: 2005 | J148: 2406 | K148: 1609 | N148: 1702_船内・沿岸荷役従事者
B149: 1703 | C149: その他の運搬従事者 | D149: 1109 | E149: 1286 | F149: 1378 | G149: 1408 | H149: 1475 | I149: 1657 | J149: 1988 | K149: 1342 | N149: 1703_その他の運搬従事者
B150: 1711 | C150: ビル・建物清掃員 | D150: 996 | E150: 1155 | F150: 1238 | G150: 1265 | H150: 1325 | I150: 1488 | J150: 1786 | K150: 1213 | N150: 1711_ビル・建物清掃員
B151: 1712 | C151: 清掃員（ビル・建物を除く），廃棄物処理従事者 | D151: 1123 | E151: 1303 | F151: 1396 | G151: 1426 | H151: 1494 | I151: 1678 | J151: 2014 | K151: 1358 | N151: 1712_清掃員（ビル・建物を除く），廃棄物処理従事者
B152: 1721 | C152: 包装従事者 | D152: 958 | E152: 1111 | F152: 1191 | G152: 1217 | H152: 1274 | I152: 1431 | J152: 1718 | K152: 1169 | N152: 1721_包装従事者
B153: 1739 | C153: 他に分類されない運搬・清掃・包装等従事者 | D153: 1047 | E153: 1215 | F153: 1301 | G153: 1330 | H153: 1393 | I153: 1564 | J153: 1877 | K153: 1271 | N153: =B153&"_"&C153 -> 1739_他に分類されない運搬・清掃・包装等従事者

Sheet 職種別平均求人賃金
A3: 職業安定業務統計の求人賃金を基準値とした一般基本給・賞与等の額（時給換算）
A5: 無期雇用かつフルタイム労働者の平均求人賃金（月額×１２÷５２÷４０で時給換算）に
A6: 賃金構造基本統計調査の賞与指数と能力・経験調整指数を掛けて計算 | K6: （円）
D7: 基準値 | E7: 基準値に能力・経験調整指数を乗じた値 | K7: 参考値(0年)
D8: （０年） | E8: 1年 | F8: 2年 | G8: 3年 | H8: 5年 | I8: 10年 | J8: 20年
A9: 職業計 | D9: 1248 | E9: 1448 | F9: 1551 | G9: 1585 | H9: 1660 | I9: 1865 | J9: 2238 | K9: 1460 | N9: =IF(A9="","_"&B9&C9,A9&B9&B9) -> 職業計
A10: 01管理的職業 | D10: 1551 | E10: 1799 | F10: 1928 | G10: 1970 | H10: 2063 | I10: 2317 | J10: 2781 | K10: 1788 | N10: =IF(A10="","_"&B10&C10,A10&B10&B10) -> 01管理的職業
B11: 001法人・団体役員 | D11: 1878 | E11: 2178 | F11: 2334 | G11: 2385 | H11: 2498 | I11: 2806 | J11: 3367 | K11: 2216 | N11: =IF(A11="","_"&B11&C11,A11&B11&B11) -> _001法人・団体役員
C12: 00101会社役員 | D12: 2075 | E12: 2407 | F12: 2579 | G12: 2635 | H12: 2760 | I12: 3100 | J12: 3720 | K12: 2537 | N12: =IF(A12="","_"&B12&C12,A12&B12&B12) -> _00101会社役員
C13: 00199その他の法人・団体役員 | D13: 1563 | E13: 1813 | F13: 1943 | G13: 1985 | H13: 2079 | I13: 2335 | J13: 2802 | K13: 1704 | N13: =IF(A13="","_"&B13&C13,A13&B13&B13) -> _00199その他の法人・団体役員
B14: 002法人・団体管理職員 | D14: 1594 | E14: 1849 | F14: 1981 | G14: 2024 | H14: 2120 | I14: 2381 | J14: 2858 | K14: 1838 | N14: _002法人・団体管理職員
C15: 00201会社管理職員 | D15: 1601 | E15: 1857 | F15: 1990 | G15: 2033 | H15: 2129 | I15: 2392 | J15: 2871 | K15: 1851 | N15: _00201会社管理職員
C16: 00299その他の法人・団体管理職員 | D16: 1524 | E16: 1768 | F16: 1894 | G16: 1935 | H16: 2027 | I16: 2277 | J16: 2733 | K16: 1721 | N16: _00299その他の法人・団体管理職員
B17: 003その他の管理的職業 | D17: 1422 | E17: 1650 | F17: 1768 | G17: 1806 | H17: 1891 | I17: 2124 | J17: 2550 | K17: 1637 | N17: _003その他の管理的職業
C18: 00301管理的公務員 | D18: 1166 | E18: 1353 | F18: 1449 | G18: 1481 | H18: 1551 | I18: 1742 | J18: 2091 | K18: 1380 | N18: _00301管理的公務員
C19: 00399他に分類されない管理的職業 | D19: 1429 | E19: 1658 | F19: 1776 | G19: 1815 | H19: 1901 | I19: 2135 | J19: 2562 | K19: 1644 | N19: _00399他に分類されない管理的職業
A20: 02研究・技術の職業 | D20: 1423 | E20: 1651 | F20: 1769 | G20: 1807 | H20: 1893 | I20: 2126 | J20: 2551 | K20: 1869 | N20: 02研究・技術の職業
B21: 004研究者 | D21: 1333 | E21: 1546 | F21: 1657 | G21: 1693 | H21: 1773 | I21: 1992 | J21: 2390 | K21: 1631 | N21: _004研究者
C22: 00401自然科学系研究者 | D22: 1335 | E22: 1549 | F22: 1659 | G22: 1695 | H22: 1776 | I22: 1994 | J22: 2394 | K22: 1634 | N22: _00401自然科学系研究者
C23: 00402人文・社会科学系等研究者 | D23: - | E23: - | F23: - | G23: - | H23: - | I23: - | J23: - | K23: - | N23: _00402人文・社会科学系等研究者
B24: 005農林水産技術者 | D24: 1117 | E24: 1296 | F24: 1388 | G24: 1419 | H24: 1486 | I24: 1669 | J24: 2003 | K24: 1283 | N24: _005農林水産技術者
C25: 00501農林水産技術者 | D25: 1117 | E25: 1296 | F25: 1388 | G25: 1419 | H25: 1486 | I25: 1669 | J25: 2003 | K25: 1283 | N25: _00501農林水産技術者
B26: 006開発技術者 | D26: 1305 | E26: 1514 | F26: 1622 | G26: 1657 | H26: 1736 | I26: 1950 | J26: 2340 | K26: 1683 | N26: _006開発技術者
C27: 00601食品開発技術者 | D27: 1229 | E27: 1426 | F27: 1528 | G27: 1561 | H27: 1635 | I27: 1836 | J27: 2204 | K27: 1438 | N27: _00601食品開発技術者
C28: 00602電気・電子・電気通信開発技術者（通信ネットワークを除く） | D28: 1329 | E28: 1542 | F28: 1652 | G28: 1688 | H28: 1768 | I28: 1986 | J28: 2383 | K28: 1724 | N28: _00602電気・電子・電気通信開発技術者（通信ネットワークを除く）
C29: 00603機械開発技術者 | D29: 1290 | E29: 1496 | F29: 1603 | G29: 1638 | H29: 1716 | I29: 1927 | J29: 2313 | K29: 1670 | N29: _00603機械開発技術者
C30: 00604自動車開発技術者 | D30: 1278 | E30: 1482 | F30: 1589 | G30: 1623 | H30: 1700 | I30: 1909 | J30: 2291 | K30: 1678 | N30: _00604自動車開発技術者
C31: 00605輸送用機器開発技術者（自動車を除く） | D31: 1174 | E31: 1362 | F31: 1459 | G31: 1491 | H31: 1561 | I31: 1754 | J31: 2105 | K31: 1499 | N31: _00605輸送用機器開発技術者（自動車を除く）
C32: 00606金属製錬・材料開発技術者 | D32: 1285 | E32: 1491 | F32: 1597 | G32: 1632 | H32: 1709 | I32: 1920 | J32: 2304 | K32: 1595 | N32: _00606金属製錬・材料開発技術者
C33: 00607化学製品開発技術者 | D33: 1320 | E33: 1531 | F33: 1641 | G33: 1676 | H33: 1756 | I33: 1972 | J33: 2367 | K33: 1613 | N33: _00607化学製品開発技術者
C34: 00699その他の開発技術者 | D34: 1315 | E34: 1525 | F34: 1635 | G34: 1670 | H34: 1749 | I34: 1965 | J34: 2358 | K34: 1611 | N34: _00699その他の開発技術者
B35: 007製造技術者 | D35: 1297 | E35: 1505 | F35: 1612 | G35: 1647 | H35: 1725 | I35: 1938 | J35: 2326 | K35: 1641 | N35: _007製造技術者
C36: 00701食品製造技術者 | D36: 1191 | E36: 1382 | F36: 1480 | G36: 1513 | H36: 1584 | I36: 1779 | J36: 2135 | K36: 1371 | N36: _00701食品製造技術者
C37: 00702電気・電子・電気通信製造技術者（通信ネットワーク・電気工事技術者を除く） | D37: 1289 | E37: 1495 | F37: 1602 | G37: 1637 | H37: 1714 | I37: 1926 | J37: 2311 | K37: 1624 | N37: _00702電気・電子・電気通信製造技術者（通信ネットワーク・電気工事技術者を除く）
C38: 00703電気工事技術者 | D38: 1389 | E38: 1611 | F38: 1727 | G38: 1764 | H38: 1847 | I38: 2075 | J38: 2490 | K38: 1821 | N38: _00703電気工事技術者
C39: 00704機械製造技術者 | D39: 1252 | E39: 1452 | F39: 1556 | G39: 1590 | H39: 1665 | I39: 1870 | J39: 2245 | K39: 1587 | N39: _00704機械製造技術者
C40: 00705自動車製造技術者 | D40: 1228 | E40: 1424 | F40: 1526 | G40: 1560 | H40: 1633 | I40: 1835 | J40: 2202 | K40: 1529 | N40: _00705自動車製造技術者
C41: 00706輸送用機器製造技術者（自動車を除く） | D41: 1162 | E41: 1348 | F41: 1444 | G41: 1476 | H41: 1545 | I41: 1736 | J41: 2083 | K41: 1437 | N41: _00706輸送用機器製造技術者（自動車を除く）
C42: 00707金属製錬・材料製造技術者 | D42: 1195 | E42: 1386 | F42: 1485 | G42: 1518 | H42: 1589 | I42: 1785 | J42: 2143 | K42: 1457 | N42: _00707金属製錬・材料製造技術者
C43: 00708化学製品製造技術者 | D43: 1239 | E43: 1437 | F43: 1540 | G43: 1574 | H43: 1648 | I43: 1851 | J43: 2222 | K43: 1484 | N43: _00708化学製品製造技術者
C44: 00799その他の製造技術者 | D44: 1191 | E44: 1382 | F44: 1480 | G44: 1513 | H44: 1584 | I44: 1779 | J44: 2135 | K44: 1430 | N44: _00799その他の製造技術者
B45: 008建築・土木・測量技術者 | D45: 1489 | E45: 1727 | F45: 1851 | G45: 1891 | H45: 1980 | I45: 2225 | J45: 2670 | K45: 1935 | N45: _008建築・土木・測量技術者
C46: 00801建築設計技術者 | D46: 1425 | E46: 1653 | F46: 1771 | G46: 1810 | H46: 1895 | I46: 2129 | J46: 2555 | K46: 1894 | N46: _00801建築設計技術者
C47: 00802建築施工管理技術者 | D47: 1467 | E47: 1702 | F47: 1823 | G47: 1863 | H47: 1951 | I47: 2192 | J47: 2630 | K47: 1922 | N47: _00802建築施工管理技術者
C48: 00803建築技術者（設計・施工管理を除く） | D48: 1310 | E48: 1520 | F48: 1628 | G48: 1664 | H48: 1742 | I48: 1957 | J48: 2349 | K48: 1779 | N48: _00803建築技術者（設計・施工管理を除く）
C49: 00804土木設計技術者 | D49: 1525 | E49: 1769 | F49: 1896 | G49: 1937 | H49: 2028 | I49: 2278 | J49: 2734 | K49: 2010 | N49: _00804土木設計技術者
C50: 00805土木施工管理技術者 | D50: 1587 | E50: 1841 | F50: 1973 | G50: 2015 | H50: 2111 | I50: 2371 | J50: 2845 | K50: 2005 | N50: _00805土木施工管理技術者
C51: 00806土木技術者（設計・施工管理を除く） | D51: 1575 | E51: 1827 | F51: 1958 | G51: 2000 | H51: 2095 | I51: 2353 | J51: 2824 | K51: 1998 | N51: _00806土木技術者（設計・施工管理を除く）
C52: 00807測量技術者 | D52: 1255 | E52: 1456 | F52: 1560 | G52: 1594 | H52: 1669 | I52: 1875 | J52: 2250 | K52: 1628 | N52: _00807測量技術者
B53: 009情報処理・通信技術者（ソフトウェア開発） | D53: 1424 | E53: 1652 | F53: 1770 | G53: 1808 | H53: 1894 | I53: 2127 | J53: 2553 | K53: 1961 | N53: _009情報処理・通信技術者（ソフトウェア開発）
C54: 00901ソフトウェア開発技術者（ＷＥＢ・オープン系） | D54: 1457 | E54: 1690 | F54: 1811 | G54: 1850 | H54: 1938 | I54: 2177 | J54: 2612 | K54: 2030 | N54: _00901ソフトウェア開発技術者（ＷＥＢ・オープン系）
C55: 00902ソフトウェア開発技術者（組込・制御系） | D55: 1389 | E55: 1611 | F55: 1727 | G55: 1764 | H55: 1847 | I55: 2075 | J55: 2490 | K55: 1915 | N55: _00902ソフトウェア開発技術者（組込・制御系）
C56: 00903プログラマー | D56: 1361 | E56: 1579 | F56: 1692 | G56: 1728 | H56: 1810 | I56: 2033 | J56: 2440 | K56: 1839 | N56: _00903プログラマー
C57: 00999その他の情報処理・通信技術者（ソフトウェア開発） | D57: 1483 | E57: 1720 | F57: 1843 | G57: 1883 | H57: 1972 | I57: 2216 | J57: 2659 | K57: 2013 | N57: _00999その他の情報処理・通信技術者（ソフトウェア開発）
B58: 010情報処理・通信技術者（ソフトウェア開発を除く） | D58: 1410 | E58: 1636 | F58: 1753 | G58: 1791 | H58: 1875 | I58: 2107 | J58: 2528 | K58: 1894 | N58: _010情報処理・通信技術者（ソフトウェア開発を除く）
C59: 01001ＩＴコンサルタント | D59: 1428 | E59: 1656 | F59: 1775 | G59: 1814 | H59: 1899 | I59: 2133 | J59: 2560 | K59: 2015 | N59: _01001ＩＴコンサルタント
C60: 01002ＩＴシステム設計技術者 | D60: 1436 | E60: 1666 | F60: 1785 | G60: 1824 | H60: 1910 | I60: 2145 | J60: 2575 | K60: 1984 | N60: _01002ＩＴシステム設計技術者
C61: 01003ＩＴプロジェクトマネージャ | D61: 1754 | E61: 2035 | F61: 2180 | G61: 2228 | H61: 2333 | I61: 2620 | J61: 3145 | K61: 2275 | N61: _01003ＩＴプロジェクトマネージャ
C62: 01004ＩＴシステム運用管理者 | D62: 1344 | E62: 1559 | F62: 1671 | G62: 1707 | H62: 1788 | I62: 2008 | J62: 2410 | K62: 1733 | N62: _01004ＩＴシステム運用管理者
C63: 01005ＩＴヘルプデスク | D63: 1275 | E63: 1479 | F63: 1585 | G63: 1619 | H63: 1696 | I63: 1905 | J63: 2286 | K63: 1608 | N63: _01005ＩＴヘルプデスク
C64: 01006通信ネットワーク技術者 | D64: 1393 | E64: 1616 | F64: 1731 | G64: 1769 | H64: 1853 | I64: 2081 | J64: 2498 | K64: 1883 | N64: _01006通信ネットワーク技術者
C65: 01099その他の情報処理・通信技術者（ソフトウェア開発を除く） | D65: 1376 | E65: 1596 | F65: 1710 | G65: 1748 | H65: 1830 | I65: 2056 | J65: 2467 | K65: 1784 | N65: _01099その他の情報処理・通信技術者（ソフトウェア開発を除く）
B66: 011その他の技術の職業 | D66: 1248 | E66: 1448 | F66: 1551 | G66: 1585 | H66: 1660 | I66: 1865 | J66: 2238 | K66: 1521 | N66: _011その他の技術の職業
C67: 01101通信機器操作員 | D67: 1151 | E67: 1335 | F67: 1431 | G67: 1462 | H67: 1531 | I67: 1720 | J67: 2064 | K67: 1374 | N67: _01101通信機器操作員
C68: 01199他に分類されない技術の職業 | D68: 1253 | E68: 1453 | F68: 1557 | G68: 1591 | H68: 1666 | I68: 1872 | J68: 2247 | K68: 1527 | N68: _01199他に分類されない技術の職業
A69: 03法務・経営・文化芸術等の専門的職業 | D69: 1289 | E69: 1495 | F69: 1602 | G69: 1637 | H69: 1714 | I69: 1926 | J69: 2311 | K69: 1572 | N69: 03法務・経営・文化芸術等の専門的職業
B70: 012法務の職業 | D70: 1421 | E70: 1648 | F70: 1766 | G70: 1805 | H70: 1890 | I70: 2123 | J70: 2548 | K70: 1798 | N70: _012法務の職業
C71: 01201裁判官、検察官、弁護士 | D71: - | E71: - | F71: - | G71: - | H71: - | I71: - | J71: - | K71: - | N71: _01201裁判官、検察官、弁護士
C72: 01202弁理士 | D72: 1389 | E72: 1611 | F72: 1727 | G72: 1764 | H72: 1847 | I72: 2075 | J72: 2490 | K72: 2268 | N72: _01202弁理士
C73: 01203司法書士 | D73: 1514 | E73: 1756 | F73: 1882 | G73: 1923 | H73: 2014 | I73: 2262 | J73: 2715 | K73: 1802 | N73: _01203司法書士
C74: 01299その他の法務の職業 | D74: 1352 | E74: 1568 | F74: 1681 | G74: 1717 | H74: 1798 | I74: 2020 | J74: 2424 | K74: 1669 | N74: _01299その他の法務の職業
B75: 013経営・金融・保険の専門的職業 | D75: 1415 | E75: 1641 | F75: 1759 | G75: 1797 | H75: 1882 | I75: 2114 | J75: 2537 | K75: 1774 | N75: =IF(A75="","_"&B75&C75,A75&B75&B75) -> _013経営・金融・保険の専門的職業
C76: 01301公認会計士 | D76: 1863 | E76: 2161 | F76: 2316 | G76: 2366 | H76: 2478 | I76: 2783 | J76: 3340 | K76: 2450 | N76: _01301公認会計士
C77: 01302税理士 | D77: 1527 | E77: 1771 | F77: 1898 | G77: 1939 | H77: 2031 | I77: 2281 | J77: 2738 | K77: 2037 | N77: _01302税理士
C78: 01303社会保険労務士 | D78: 1367 | E78: 1586 | F78: 1699 | G78: 1736 | H78: 1818 | I78: 2042 | J78: 2451 | K78: 1645 | N78: _01303社会保険労務士
C79: 01399その他の経営・金融・保険の専門的職業 | D79: 1336 | E79: 1550 | F79: 1661 | G79: 1697 | H79: 1777 | I79: 1996 | J79: 2395 | K79: 1615 | N79: _01399その他の経営・金融・保険の専門的職業
B80: 014宗教家 | D80: 1246 | E80: 1445 | F80: 1549 | G80: 1582 | H80: 1657 | I80: 1862 | J80: 2234 | K80: 1398 | N80: _014宗教家
C81: 01401宗教家 | D81: 1246 | E81: 1445 | F81: 1549 | G81: 1582 | H81: 1657 | I81: 1862 | J81: 2234 | K81: 1398 | N81: _01401宗教家
B82: 015著述家、記者、編集者 | D82: 1228 | E82: 1424 | F82: 1526 | G82: 1560 | H82: 1633 | I82: 1835 | J82: 2202 | K82: 1489 | N82: _015著述家、記者、編集者
C83: 01501著述家（翻訳家を除く） | D83: 1234 | E83: 1431 | F83: 1534 | G83: 1567 | H83: 1641 | I83: 1844 | J83: 2213 | K83: 1539 | N83: _01501著述家（翻訳家を除く）
C84: 01502翻訳家 | D84: 1263 | E84: 1465 | F84: 1570 | G84: 1604 | H84: 1680 | I84: 1887 | J84: 2265 | K84: 1884 | N84: _01502翻訳家
C85: 01503記者、編集者 | D85: 1223 | E85: 1419 | F85: 1520 | G85: 1553 | H85: 1627 | I85: 1827 | J85: 2193 | K85: 1434 | N85: _01503記者、編集者
B86: 016美術家、写真家、映像撮影者 | D86: 1158 | E86: 1343 | F86: 1439 | G86: 1471 | H86: 1540 | I86: 1730 | J86: 2076 | K86: 1333 | N86: _016美術家、写真家、映像撮影者
C87: 01601美術家、イラストレーター | D87: 1141 | E87: 1324 | F87: 1418 | G87: 1449 | H87: 1518 | I87: 1705 | J87: 2046 | K87: 1341 | N87: _01601美術家、イラストレーター
C88: 01602写真家、映像撮影者 | D88: 1159 | E88: 1344 | F88: 1441 | G88: 1472 | H88: 1541 | I88: 1732 | J88: 2078 | K88: 1332 | N88: _01602写真家、映像撮影者
B89: 017デザイナー | D89: 1243 | E89: 1442 | F89: 1545 | G89: 1579 | H89: 1653 | I89: 1857 | J89: 2229 | K89: 1527 | N89: _017デザイナー
C90: 01701ウェブデザイナー | D90: 1257 | E90: 1458 | F90: 1562 | G90: 1596 | H90: 1672 | I90: 1878 | J90: 2254 | K90: 1572 | N90: _01701ウェブデザイナー
C91: 01702グラフィックデザイナー | D91: 1200 | E91: 1392 | F91: 1492 | G91: 1524 | H91: 1596 | I91: 1793 | J91: 2152 | K91: 1450 | N91: _01702グラフィックデザイナー
C92: 01799その他のデザイナー | D92: 1260 | E92: 1462 | F92: 1566 | G92: 1600 | H92: 1676 | I92: 1882 | J92: 2259 | K92: 1533 | N92: _01799その他のデザイナー
B93: 018音楽家、舞台芸術家 | D93: 1189 | E93: 1379 | F93: 1478 | G93: 1510 | H93: 1581 | I93: 1776 | J93: 2132 | K93: 1459 | N93: _018音楽家、舞台芸術家
C94: 01801音楽家 | D94: 1131 | E94: 1312 | F94: 1406 | G94: 1436 | H94: 1504 | I94: 1690 | J94: 2028 | K94: 1358 | N94: _01801音楽家
C95: 01802舞踊家、俳優、演芸家 | D95: 1119 | E95: 1298 | F95: 1391 | G95: 1421 | H95: 1488 | I95: 1672 | J95: 2006 | K95: 1343 | N95: _01802舞踊家、俳優、演芸家
C96: 01803プロデューサー、演出家 | D96: 1216 | E96: 1411 | F96: 1511 | G96: 1544 | H96: 1617 | I96: 1817 | J96: 2180 | K96: 1503 | N96: _01803プロデューサー、演出家
B97: 019図書館司書、学芸員、カウンセラー（医療・福祉施設を除く） | D97: 1303 | E97: 1511 | F97: 1620 | G97: 1655 | H97: 1733 | I97: 1947 | J97: 2336 | K97: 1452 | N97: _019図書館司書、学芸員、カウンセラー（医療・福祉施設を除く）
C98: 01901図書館司書 | D98: 1164 | E98: 1350 | F98: 1447 | G98: 1478 | H98: 1548 | I98: 1739 | J98: 2087 | K98: 1271 | N98: _01901図書館司書
C99: 01902学芸員 | D99: 1175 | E99: 1363 | F99: 1461 | G99: 1492 | H99: 1563 | I99: 1755 | J99: 2107 | K99: 1269 | N99: _01902学芸員
C100: 01903カウンセラー（医療・福祉施設を除く） | D100: 1324 | E100: 1536 | F100: 1646 | G100: 1681 | H100: 1761 | I100: 1978 | J100: 2374 | K100: 1482 | N100: _01903カウンセラー（医療・福祉施設を除く）
B101: 020その他の法務・経営・文化芸術等の専門的職業 | D101: 1297 | E101: 1505 | F101: 1612 | G101: 1647 | H101: 1725 | I101: 1938 | J101: 2326 | K101: 1557 | N101: _020その他の法務・経営・文化芸術等の専門的職業
C102: 02001職業スポーツ家 | D102: - | E102: - | F102: - | G102: - | H102: - | I102: - | J102: - | K102: - | N102: _02001職業スポーツ家
C103: 02002通訳 | D103: 1211 | E103: 1405 | F103: 1505 | G103: 1538 | H103: 1611 | I103: 1809 | J103: 2171 | K103: 1392 | N103: _02002通訳
C104: 02099他に分類されない法務・経営・文化芸術等の専門的職業 | D104: 1322 | E104: 1534 | F104: 1643 | G104: 1679 | H104: 1758 | I104: 1975 | J104: 2370 | K104: 1602 | N104: _02099他に分類されない法務・経営・文化芸術等の専門的職業
A105: 04医療・看護・保健の職業 | D105: 1325 | E105: 1537 | F105: 1647 | G105: 1683 | H105: 1762 | I105: 1980 | J105: 2376 | K105: 1492 | N105: 04医療・看護・保健の職業
B106: 021医師、歯科医師、獣医師、薬剤師 | D106: 1876 | E106: 2176 | F106: 2332 | G106: 2383 | H106: 2495 | I106: 2803 | J106: 3364 | K106: 2231 | N106: _021医師、歯科医師、獣医師、薬剤師
C107: 02101医師 | D107: 5586 | E107: 6480 | F107: 6943 | G107: 7094 | H107: 7429 | I107: 8345 | J107: 10016 | K107: 6509 | N107: _02101医師
C108: 02102歯科医師 | D108: 2600 | E108: 3016 | F108: 3232 | G108: 3302 | H108: 3458 | I108: 3884 | J108: 4662 | K108: 3687 | N108: _02102歯科医師
C109: 02103獣医師 | D109: 1636 | E109: 1898 | F109: 2034 | G109: 2078 | H109: 2176 | I109: 2444 | J109: 2933 | K109: 1967 | N109: _02103獣医師
C110: 02104薬剤師 | D110: 1781 | E110: 2066 | F110: 2214 | G110: 2262 | H110: 2369 | I110: 2661 | J110: 3193 | K110: 2086 | N110: _02104薬剤師
B111: 022保健師、助産師 | D111: 1386 | E111: 1608 | F111: 1723 | G111: 1760 | H111: 1843 | I111: 2071 | J111: 2485 | K111: 1572 | N111: _022保健師、助産師
C112: 02201保健師 | D112: 1335 | E112: 1549 | F112: 1659 | G112: 1695 | H112: 1776 | I112: 1994 | J112: 2394 | K112: 1503 | N112: _02201保健師
C113: 02202助産師 | D113: 1493 | E113: 1732 | F113: 1856 | G113: 1896 | H113: 1986 | I113: 2231 | J113: 2677 | K113: 1714 | N113: _02202助産師
B114: 023看護師、准看護師 | D114: 1343 | E114: 1558 | F114: 1669 | G114: 1706 | H114: 1786 | I114: 2006 | J114: 2408 | K114: 1507 | N114: _023看護師、准看護師
C115: 02301看護師・准看護師（病院・診療所） | D115: 1276 | E115: 1480 | F115: 1586 | G115: 1621 | H115: 1697 | I115: 1906 | J115: 2288 | K115: 1456 | N115: _02301看護師・准看護師（病院・診療所）
C116: 02302看護師・准看護師（介護施設） | D116: 1326 | E116: 1538 | F116: 1648 | G116: 1684 | H116: 1764 | I116: 1981 | J116: 2378 | K116: 1479 | N116: _02302看護師・准看護師（介護施設）
C117: 02303看護師・准看護師（訪問看護） | D117: 1560 | E117: 1810 | F117: 1939 | G117: 1981 | H117: 2075 | I117: 2331 | J117: 2797 | K117: 1716 | N117: _02303看護師・准看護師（訪問看護）
C118: 02399その他の看護師・准看護師 | D118: 1345 | E118: 1560 | F118: 1672 | G118: 1708 | H118: 1789 | I118: 2009 | J118: 2412 | K118: 1473 | N118: _02399その他の看護師・准看護師
B119: 024医療技術者 | D119: 1336 | E119: 1550 | F119: 1661 | G119: 1697 | H119: 1777 | I119: 1996 | J119: 2395 | K119: 1506 | N119: _024医療技術者
C120: 02401診療放射線技師 | D120: 1311 | E120: 1521 | F120: 1630 | G120: 1665 | H120: 1744 | I120: 1959 | J120: 2351 | K120: 1499 | N120: _02401診療放射線技師
C121: 02402臨床工学技士 | D121: 1242 | E121: 1441 | F121: 1544 | G121: 1577 | H121: 1652 | I121: 1856 | J121: 2227 | K121: 1428 | N121: _02402臨床工学技士
C122: 02403臨床検査技師 | D122: 1241 | E122: 1440 | F122: 1543 | G122: 1576 | H122: 1651 | I122: 1854 | J122: 2225 | K122: 1417 | N122: _02403臨床検査技師
C123: 02404理学療法士 | D123: 1396 | E123: 1619 | F123: 1735 | G123: 1773 | H123: 1857 | I123: 2086 | J123: 2503 | K123: 1560 | N123: _02404理学療法士
C124: 02405作業療法士 | D124: 1365 | E124: 1583 | F124: 1697 | G124: 1734 | H124: 1815 | I124: 2039 | J124: 2447 | K124: 1524 | N124: _02405作業療法士
C125: 02406視能訓練士 | D125: 1259 | E125: 1460 | F125: 1565 | G125: 1599 | H125: 1674 | I125: 1881 | J125: 2257 | K125: 1424 | N125: _02406視能訓練士
C126: 02407言語聴覚士 | D126: 1368 | E126: 1587 | F126: 1700 | G126: 1737 | H126: 1819 | I126: 2044 | J126: 2453 | K126: 1526 | N126: _02407言語聴覚士
C127: 02408歯科衛生士 | D127: 1303 | E127: 1511 | F127: 1620 | G127: 1655 | H127: 1733 | I127: 1947 | J127: 2336 | K127: 1469 | N127: _02408歯科衛生士
C128: 02409歯科技工士 | D128: 1255 | E128: 1456 | F128: 1560 | G128: 1594 | H128: 1669 | I128: 1875 | J128: 2250 | K128: 1618 | N128: _02409歯科技工士
B129: 025栄養士、管理栄養士 | D129: 1171 | E129: 1358 | F129: 1456 | G129: 1487 | H129: 1557 | I129: 1749 | J129: 2100 | K129: 1294 | N129: _025栄養士、管理栄養士
C130: 02501栄養士 | D130: 1167 | E130: 1354 | F130: 1451 | G130: 1482 | H130: 1552 | I130: 1743 | J130: 2092 | K130: 1288 | N130: _02501栄養士
C131: 02502管理栄養士 | D131: 1180 | E131: 1369 | F131: 1467 | G131: 1499 | H131: 1569 | I131: 1763 | J131: 2116 | K131: 1305 | N131: _02502管理栄養士
B132: 026あん摩マッサージ指圧師、はり師、きゅう師、柔道整復師 | D132: 1331 | E132: 1544 | F132: 1654 | G132: 1690 | H132: 1770 | I132: 1989 | J132: 2386 | K132: 1564 | N132: _026あん摩マッサージ指圧師、はり師、きゅう師、柔道整復師
C133: 02601あん摩マッサージ指圧師、はり師、きゅう師 | D133: 1315 | E133: 1525 | F133: 1635 | G133: 1670 | H133: 1749 | I133: 1965 | J133: 2358 | K133: 1551 | N133: _02601あん摩マッサージ指圧師、はり師、きゅう師
C134: 02602柔道整復師 | D134: 1350 | E134: 1566 | F134: 1678 | G134: 1715 | H134: 1796 | I134: 2017 | J134: 2421 | K134: 1577 | N134: _02602柔道整復師
B135: 027その他の医療・看護・保健の専門的職業 | D135: 1280 | E135: 1485 | F135: 1591 | G135: 1626 | H135: 1702 | I135: 1912 | J135: 2295 | K135: 1431 | N135: _027その他の医療・看護・保健の専門的職業
C136: 02799その他の医療・看護・保健の専門的職業 | D136: 1280 | E136: 1485 | F136: 1591 | G136: 1626 | H136: 1702 | I136: 1912 | J136: 2295 | K136: 1431 | N136: _02799その他の医療・看護・保健の専門的職業
B137: 028保健医療関係助手 | D137: 1028 | E137: 1192 | F137: 1278 | G137: 1306 | H137: 1367 | I137: 1536 | J137: 1843 | K137: 1123 | N137: _028保健医療関係助手
C138: 02801看護助手 | D138: 991 | E138: 1150 | F138: 1232 | G138: 1259 | H138: 1318 | I138: 1481 | J138: 1777 | K138: 1076 | N138: _02801看護助手
C139: 02802歯科助手 | D139: 1068 | E139: 1239 | F139: 1328 | G139: 1356 | H139: 1420 | I139: 1596 | J139: 1915 | K139: 1174 | N139: =IF(A139="","_"&B139&C139,A139&B139&B139) -> _02802歯科助手
C140: 02899その他の保健医療関係助手 | D140: 1042 | E140: 1209 | F140: 1295 | G140: 1323 | H140: 1386 | I140: 1557 | J140: 1868 | K140: 1140 | N140: _02899その他の保健医療関係助手
A141: 05保育・教育の職業 | D141: 1210 | E141: 1404 | F141: 1504 | G141: 1537 | H141: 1609 | I141: 1808 | J141: 2170 | K141: 1340 | N141: 05保育・教育の職業
B142: 029保育士、幼稚園教員 | D142: 1212 | E142: 1406 | F142: 1507 | G142: 1539 | H142: 1612 | I142: 1811 | J142: 2173 | K142: 1333 | N142: _029保育士、幼稚園教員
C143: 02901保育士 | D143: 1214 | E143: 1408 | F143: 1509 | G143: 1542 | H143: 1615 | I143: 1814 | J143: 2177 | K143: 1336 | N143: _02901保育士
C144: 02902幼稚園教員 | D144: 1191 | E144: 1382 | F144: 1480 | G144: 1513 | H144: 1584 | I144: 1779 | J144: 2135 | K144: 1298 | N144: _02902幼稚園教員
C145: 02903保育教諭 | D145: 1172 | E145: 1360 | F145: 1457 | G145: 1488 | H145: 1559 | I145: 1751 | J145: 2101 | K145: 1294 | N145: _02903保育教諭
B146: 030学童保育等指導員、保育補助者、家庭的保育者 | D146: 1149 | E146: 1333 | F146: 1428 | G146: 1459 | H146: 1528 | I146: 1717 | J146: 2060 | K146: 1241 | N146: _030学童保育等指導員、保育補助者、家庭的保育者
C147: 03001学童保育指導員 | D147: 1154 | E147: 1339 | F147: 1434 | G147: 1466 | H147: 1535 | I147: 1724 | J147: 2069 | K147: 1246 | N147: _03001学童保育指導員
C148: 03002児童館指導員 | D148: 1200 | E148: 1392 | F148: 1492 | G148: 1524 | H148: 1596 | I148: 1793 | J148: 2152 | K148: 1294 | N148: _03002児童館指導員
C149: 03003保育補助者、家庭的保育者 | D149: 1078 | E149: 1250 | F149: 1340 | G149: 1369 | H149: 1434 | I149: 1611 | J149: 1933 | K149: 1170 | N149: _03003保育補助者、家庭的保育者
B150: 031学校等教員 | D150: 1233 | E150: 1430 | F150: 1533 | G150: 1566 | H150: 1640 | I150: 1842 | J150: 2211 | K150: 1438 | N150: _031学校等教員
C151: 03101小学校教員 | D151: 1213 | E151: 1407 | F151: 1508 | G151: 1541 | H151: 1613 | I151: 1812 | J151: 2175 | K151: 1385 | N151: _03101小学校教員
C152: 03102中学校教員 | D152: 1178 | E152: 1366 | F152: 1464 | G152: 1496 | H152: 1567 | I152: 1760 | J152: 2112 | K152: 1384 | N152: _03102中学校教員
C153: 03103義務教育学校教員 | D153: - | E153: - | F153: - | G153: - | H153: - | I153: - | J153: - | K153: - | N153: _03103義務教育学校教員
C154: 03104高等学校教員 | D154: 1220 | E154: 1415 | F154: 1516 | G154: 1549 | H154: 1623 | I154: 1823 | J154: 2187 | K154: 1411 | N154: _03104高等学校教員
C155: 03105中等教育学校教員 | D155: - | E155: - | F155: - | G155: - | H155: - | I155: - | J155: - | K155: - | N155: _03105中等教育学校教員
C156: 03106特別支援学校教員 | D156: 1199 | E156: 1391 | F156: 1490 | G156: 1523 | H156: 1595 | I156: 1791 | J156: 2150 | K156: 1397 | N156: _03106特別支援学校教員
C157: 03107高等専門学校教員、大学教員 | D157: 1417 | E157: 1644 | F157: 1761 | G157: 1800 | H157: 1885 | I157: 2117 | J157: 2541 | K157: 1690 | N157: _03107高等専門学校教員、大学教員
C158: 03199その他の学校等教員 | D158: 1232 | E158: 1429 | F158: 1531 | G158: 1565 | H158: 1639 | I158: 1841 | J158: 2209 | K158: 1438 | N158: _03199その他の学校等教員
B159: 032習い事指導等教育関連の職業 | D159: 1214 | E159: 1408 | F159: 1509 | G159: 1542 | H159: 1615 | I159: 1814 | J159: 2177 | K159: 1353 | N159: _032習い事指導等教育関連の職業
C160: 03201学習・語学指導教師 | D160: 1246 | E160: 1445 | F160: 1549 | G160: 1582 | H160: 1657 | I160: 1862 | J160: 2234 | K160: 1417 | N160: _03201学習・語学指導教師
C161: 03202スポーツ・舞踊指導員 | D161: 1180 | E161: 1369 | F161: 1467 | G161: 1499 | H161: 1569 | I161: 1763 | J161: 2116 | K161: 1293 | N161: _03202スポーツ・舞踊指導員
C162: 03203趣味・習い事指導教師 | D162: 1215 | E162: 1409 | F162: 1510 | G162: 1543 | H162: 1616 | I162: 1815 | J162: 2178 | K162: 1325 | N162: _03203趣味・習い事指導教師
A163: 06事務的職業 | D163: 1142 | E163: 1325 | F163: 1420 | G163: 1450 | H163: 1519 | I163: 1706 | J163: 2048 | K163: 1301 | N163: 06事務的職業
B164: 033総務・人事・企画事務の職業 | D164: 1224 | E164: 1420 | F164: 1521 | G164: 1554 | H164: 1628 | I164: 1829 | J164: 2195 | K164: 1416 | N164: _033総務・人事・企画事務の職業
C165: 03301総務事務員 | D165: 1167 | E165: 1354 | F165: 1451 | G165: 1482 | H165: 1552 | I165: 1743 | J165: 2092 | K165: 1340 | N165: _03301総務事務員
C166: 03302人事事務員 | D166: 1297 | E166: 1505 | F166: 1612 | G166: 1647 | H166: 1725 | I166: 1938 | J166: 2326 | K166: 1499 | N166: _03302人事事務員
C167: 03303企画・調査事務員 | D167: 1298 | E167: 1506 | F167: 1613 | G167: 1648 | H167: 1726 | I167: 1939 | J167: 2327 | K167: 1537 | N167: _03303企画・調査事務員
B168: 034一般事務・秘書・受付の職業 | D168: 1088 | E168: 1262 | F168: 1352 | G168: 1382 | H168: 1447 | I168: 1625 | J168: 1951 | K168: 1214 | N168: _034一般事務・秘書・受付の職業
C169: 03401一般事務員 | D169: 1082 | E169: 1255 | F169: 1345 | G169: 1374 | H169: 1439 | I169: 1617 | J169: 1940 | K169: 1204 | N169: _03401一般事務員
C170: 03402秘書 | D170: 1273 | E170: 1477 | F170: 1582 | G170: 1617 | H170: 1693 | I170: 1902 | J170: 2282 | K170: 1499 | N170: _03402秘書
C171: 03403受付・案内事務員 | D171: 1113 | E171: 1291 | F171: 1383 | G171: 1414 | H171: 1480 | I171: 1663 | J171: 1996 | K171: 1251 | N171: _03403受付・案内事務員
B172: 035その他の総務等事務の職業 | D172: 1197 | E172: 1389 | F172: 1488 | G172: 1520 | H172: 1592 | I172: 1788 | J172: 2146 | K172: 1381 | N172: _035その他の総務等事務の職業
C173: 03501法務・広報・知的財産事務の職業 | D173: 1282 | E173: 1487 | F173: 1594 | G173: 1628 | H173: 1705 | I173: 1915 | J173: 2299 | K173: 1531 | N173: _03501法務・広報・知的財産事務の職業
C174: 03599他に分類されない総務等事務の職業 | D174: 1178 | E174: 1366 | F174: 1464 | G174: 1496 | H174: 1567 | I174: 1760 | J174: 2112 | K174: 1346 | N174: _03599他に分類されない総務等事務の職業
B175: 036電話・インターネットによる応接事務の職業 | D175: 1202 | E175: 1394 | F175: 1494 | G175: 1527 | H175: 1599 | I175: 1796 | J175: 2155 | K175: 1364 | N175: _036電話・インターネットによる応接事務の職業
C176: 03601コールセンターオペレーター | D176: 1212 | E176: 1406 | F176: 1507 | G176: 1539 | H176: 1612 | I176: 1811 | J176: 2173 | K176: 1376 | N176: _03601コールセンターオペレーター
C177: 03602テレフォンアポインター | D177: 1245 | E177: 1444 | F177: 1548 | G177: 1581 | H177: 1656 | I177: 1860 | J177: 2232 | K177: 1380 | N177: _03602テレフォンアポインター
C178: 03603他の電話応接事務の職業 | D178: 1135 | E178: 1317 | F178: 1411 | G178: 1441 | H178: 1510 | I178: 1696 | J178: 2035 | K178: 1267 | N178: _03603他の電話応接事務の職業
C179: 03604インターネット応接等事務員 | D179: 1200 | E179: 1392 | F179: 1492 | G179: 1524 | H179: 1596 | I179: 1793 | J179: 2152 | K179: 1377 | N179: _03604インターネット応接等事務員
B180: 037医療・介護事務の職業 | D180: 1036 | E180: 1202 | F180: 1288 | G180: 1316 | H180: 1378 | I180: 1548 | J180: 1858 | K180: 1137 | N180: _037医療・介護事務の職業
C181: 03701医療事務員（調剤薬局を除く） | D181: 1037 | E181: 1203 | F181: 1289 | G181: 1317 | H181: 1379 | I181: 1549 | J181: 1859 | K181: 1142 | N181: _03701医療事務員（調剤薬局を除く）
C182: 03702調剤薬局事務員 | D182: 1020 | E182: 1183 | F182: 1268 | G182: 1295 | H182: 1357 | I182: 1524 | J182: 1829 | K182: 1113 | N182: _03702調剤薬局事務員
C183: 03703介護事務員 | D183: 1076 | E183: 1248 | F183: 1337 | G183: 1367 | H183: 1431 | I183: 1608 | J183: 1929 | K183: 1171 | N183: _03703介護事務員
B184: 038会計事務の職業 | D184: 1215 | E184: 1409 | F184: 1510 | G184: 1543 | H184: 1616 | I184: 1815 | J184: 2178 | K184: 1435 | N184: _038会計事務の職業
C185: 03801現金出納事務員 | D185: 1092 | E185: 1267 | F185: 1357 | G185: 1387 | H185: 1452 | I185: 1631 | J185: 1958 | K185: 1218 | N185: _03801現金出納事務員
C186: 03802預・貯金窓口事務員 | D186: 1028 | E186: 1192 | F186: 1278 | G186: 1306 | H186: 1367 | I186: 1536 | J186: 1843 | K186: 1212 | N186: _03802預・貯金窓口事務員
C187: 03803経理事務員 | D187: 1208 | E187: 1401 | F187: 1502 | G187: 1534 | H187: 1607 | I187: 1805 | J187: 2166 | K187: 1418 | N187: _03803経理事務員
C188: 03899その他の会計事務の職業 | D188: 1301 | E188: 1509 | F188: 1617 | G188: 1652 | H188: 1730 | I188: 1944 | J188: 2333 | K188: 1619 | N188: _03899その他の会計事務の職業
B189: 039生産関連事務の職業 | D189: 1177 | E189: 1365 | F189: 1463 | G189: 1495 | H189: 1565 | I189: 1758 | J189: 2110 | K189: 1385 | N189: _039生産関連事務の職業
C190: 03901生産現場事務員 | D190: 1191 | E190: 1382 | F190: 1480 | G190: 1513 | H190: 1584 | I190: 1779 | J190: 2135 | K190: 1424 | N190: _03901生産現場事務員
C191: 03902出荷・受荷係事務員 | D191: 1153 | E191: 1337 | F191: 1433 | G191: 1464 | H191: 1533 | I191: 1723 | J191: 2067 | K191: 1313 | N191: _03902出荷・受荷係事務員
B192: 040営業・販売関連事務の職業 | D192: 1205 | E192: 1398 | F192: 1498 | G192: 1530 | H192: 1603 | I192: 1800 | J192: 2161 | K192: 1378 | N192: _040営業・販売関連事務の職業
C193: 04001営業事務員 | D193: 1170 | E193: 1357 | F193: 1454 | G193: 1486 | H193: 1556 | I193: 1748 | J193: 2098 | K193: 1331 | N193: _04001営業事務員
C194: 04002貿易事務員 | D194: 1289 | E194: 1495 | F194: 1602 | G194: 1637 | H194: 1714 | I194: 1926 | J194: 2311 | K194: 1502 | N194: _04002貿易事務員
C195: 04099その他の営業・販売関連事務の職業 | D195: 1264 | E195: 1466 | F195: 1571 | G195: 1605 | H195: 1681 | I195: 1888 | J195: 2266 | K195: 1457 | N195: _04099その他の営業・販売関連事務の職業
B196: 041外勤事務の職業 | D196: 1111 | E196: 1289 | F196: 1381 | G196: 1411 | H196: 1478 | I196: 1660 | J196: 1992 | K196: 1284 | N196: _041外勤事務の職業
C197: 04101集金人 | D197: 1084 | E197: 1257 | F197: 1347 | G197: 1377 | H197: 1442 | I197: 1619 | J197: 1944 | K197: 1275 | N197: _04101集金人
C198: 04102調査員 | D198: 1191 | E198: 1382 | F198: 1480 | G198: 1513 | H198: 1584 | I198: 1779 | J198: 2135 | K198: 1325 | N198: _04102調査員
C199: 04199その他の外勤事務の職業 | D199: 1116 | E199: 1295 | F199: 1387 | G199: 1417 | H199: 1484 | I199: 1667 | J199: 2001 | K199: 1283 | N199: _04199その他の外勤事務の職業
B200: 042運輸・郵便事務の職業 | D200: 1241 | E200: 1440 | F200: 1543 | G200: 1576 | H200: 1651 | I200: 1854 | J200: 2225 | K200: 1404 | N200: _042運輸・郵便事務の職業
C201: 04201旅客・貨物係事務員 | D201: 1086 | E201: 1260 | F201: 1350 | G201: 1379 | H201: 1444 | I201: 1622 | J201: 1947 | K201: 1205 | N201: _04201旅客・貨物係事務員
C202: 04202運行管理事務員 | D202: 1259 | E202: 1460 | F202: 1565 | G202: 1599 | H202: 1674 | I202: 1881 | J202: 2257 | K202: 1427 | N202: _04202運行管理事務員
C203: 04203郵便事務員 | D203: 1027 | E203: 1191 | F203: 1277 | G203: 1304 | H203: 1366 | I203: 1534 | J203: 1841 | K203: 1064 | N203: =IF(A203="","_"&B203&C203,A203&B203&B203) -> _04203郵便事務員
... 360 more rows

Sheet 地域指数マスタ
A1: No. | B1: 都道府県コード | C1: 都道 | D1: 市町村コード | E1: 支庁市郡 | F1: 区 | G1: 町村 | H1: 区分（細） | I1: よみがな | J1: 公共職業安定所_伝送用宛先番号 | K1: 公共職業安定所 | L1: ハローワーク別地域指数（%） | P1: Ｊ＋Ｋ変換 | Q1: Ｐ列の値と 完全一致するＶ列 | R1: Ｐ＝Ｑ （Ｐ＝Ｖ）
N2: 1
C3: 北海道 | K3: 北海道 | L3: =VLOOKUP(P3,$T:$V,3,FALSE)/100 -> 0.944 | M3: 北海道 | N3: 2 | P3: =IF(J3="","",MID(J3,1,2)&" ")&K3&IF(J3="","","計") -> 北海道 | Q3: =VLOOKUP(P3,T:T,1,FALSE) -> 北海道 | R3: =P3=Q3 -> TRUE | T3: =IF(LEN(U3)<=3,U3,LEFT(U3,2)&MID(U3,5,8)) -> 0 | V3: ハローワーク別地域指数（※）
A4: 1 | B4: 1 | C4: 北海道 | D4: 1101 | E4: 札幌市 | F4: 中央区 | I4: ちゅうおうく | J4: 01010 | K4: 札幌 | L4: 1.004 | M4: =E4&F4&G4&H4 -> 札幌市中央区 | N4: 3 | P4: 01 札幌計 | Q4: 01 札幌計 | R4: TRUE | T4: 0
A5: 2 | B5: 1 | C5: 北海道 | D5: 1102 | E5: 札幌市 | F5: 北区 | I5: きたく | J5: 01240 | K5: 札幌北 | L5: 0.969 | M5: 札幌市北区 | N5: 4 | P5: 01 札幌北計 | Q5: 01 札幌北計 | R5: TRUE | T5: 全国計 | U5: 全国計 | V5: 100
A6: 3 | B6: 1 | C6: 北海道 | D6: 1103 | E6: 札幌市 | F6: 東区 | I6: ひがしく | J6: 01240 | K6: 札幌北 | L6: 0.969 | M6: 札幌市東区 | N6: 5 | P6: 01 札幌北計 | Q6: 01 札幌北計 | R6: TRUE | T6: 0
A7: 4 | B7: 1 | C7: 北海道 | D7: 1104 | E7: 札幌市 | F7: 白石区 | I7: しろいしく | J7: 01230 | K7: 札幌東 | L7: 0.947 | M7: 札幌市白石区 | N7: 6 | P7: 01 札幌東計 | Q7: 01 札幌東計 | R7: TRUE | T7: 北海道 | U7: 北海道 | V7: 94.4
A8: 5 | B8: 1 | C8: 北海道 | D8: 1105 | E8: 札幌市 | F8: 豊平区 | I8: とよひらく | J8: 01230 | K8: 札幌東 | L8: 0.947 | M8: 札幌市豊平区 | N8: 7 | P8: 01 札幌東計 | Q8: 01 札幌東計 | R8: TRUE | T8: 01 札幌計 | U8: 0101 札幌計 | V8: 100.4
A9: 6 | B9: 1 | C9: 北海道 | D9: 1106 | E9: 札幌市 | F9: 南区 | I9: みなみく | J9: 01010 | K9: 札幌 | L9: 1.004 | M9: 札幌市南区 | N9: 8 | P9: 01 札幌計 | Q9: 01 札幌計 | R9: TRUE | T9: 01 函館計 | U9: 0102 函館計 | V9: 90.8
A10: 7 | B10: 1 | C10: 北海道 | D10: 1107 | E10: 札幌市 | F10: 西区 | I10: にしく | J10: 01010 | K10: 札幌 | L10: 1.004 | M10: 札幌市西区 | N10: 9 | P10: 01 札幌計 | Q10: 01 札幌計 | R10: TRUE | T10: 01 旭川計 | U10: 0103 旭川計 | V10: 89.8
A11: 8 | B11: 1 | C11: 北海道 | D11: 1108 | E11: 札幌市 | F11: 厚別区 | I11: あつべつく | J11: 01230 | K11: 札幌東 | L11: 0.947 | M11: 札幌市厚別区 | N11: 10 | P11: 01 札幌東計 | Q11: 01 札幌東計 | R11: TRUE | T11: 01 帯広計 | U11: 0104 帯広計 | V11: 94.6
A12: 9 | B12: 1 | C12: 北海道 | D12: 1109 | E12: 札幌市 | F12: 手稲区 | I12: ていねく | J12: 01010 | K12: 札幌 | L12: 1.004 | M12: 札幌市手稲区 | N12: 11 | P12: 01 札幌計 | Q12: 01 札幌計 | R12: TRUE | T12: 01 北見計 | U12: 0105 北見計 | V12: 90.2
A13: 10 | B13: 1 | C13: 北海道 | D13: 1110 | E13: 札幌市 | F13: 清田区 | I13: きよたく | J13: 01230 | K13: 札幌東 | L13: 0.947 | M13: 札幌市清田区 | N13: 12 | P13: 01 札幌東計 | Q13: 01 札幌東計 | R13: TRUE | T13: 01 紋別計 | U13: 0106 紋別計 | V13: 90
A14: 11 | B14: 1 | C14: 北海道 | D14: 1202 | E14: 函館市 | I14: はこだてし | J14: 01020 | K14: 函館 | L14: 0.908 | M14: 函館市 | N14: 13 | P14: 01 函館計 | Q14: 01 函館計 | R14: TRUE | T14: 01 小樽計 | U14: 0107 小樽計 | V14: 88.1
A15: 12 | B15: 1 | C15: 北海道 | D15: 1203 | E15: 小樽市 | I15: おたるし | J15: 01070 | K15: 小樽 | L15: 0.881 | M15: 小樽市 | N15: 14 | P15: 01 小樽計 | Q15: 01 小樽計 | R15: TRUE | T15: 01 滝川計 | U15: 0108 滝川計 | V15: 89.3
A16: 13 | B16: 1 | C16: 北海道 | D16: 1204 | E16: 旭川市 | I16: あさひかわし | J16: 01030 | K16: 旭川 | L16: 0.898 | M16: 旭川市 | N16: 15 | P16: 01 旭川計 | Q16: 01 旭川計 | R16: TRUE | T16: 01 釧路計 | U16: 0109 釧路計 | V16: 90.2
A17: 14 | B17: 1 | C17: 北海道 | D17: 1205 | E17: 室蘭市 | I17: むろらんし | J17: 01100 | K17: 室蘭 | L17: 0.927 | M17: 室蘭市 | N17: 16 | P17: 01 室蘭計 | Q17: 01 室蘭計 | R17: TRUE | T17: 01 室蘭計 | U17: 0110 室蘭計 | V17: 92.7
A18: 15 | B18: 1 | C18: 北海道 | D18: 1206 | E18: 釧路市 | I18: くしろし | J18: 01090 | K18: 釧路 | L18: 0.902 | M18: 釧路市 | N18: 17 | P18: 01 釧路計 | Q18: 01 釧路計 | R18: TRUE | T18: 01 岩見沢計 | U18: 0111 岩見沢計 | V18: 91.9
A19: 16 | B19: 1 | C19: 北海道 | D19: 1207 | E19: 帯広市 | I19: おびひろし | J19: 01040 | K19: 帯広 | L19: 0.946 | M19: 帯広市 | N19: 18 | P19: 01 帯広計 | Q19: 01 帯広計 | R19: TRUE | T19: 01 稚内計 | U19: 0112 稚内計 | V19: 91.4
A20: 17 | B20: 1 | C20: 北海道 | D20: 1208 | E20: 北見市 | G20: 常呂町 | I20: - | J20: 01180 | K20: 網走 | L20: 0.9 | M20: 北見市常呂町 | N20: 19 | P20: 01 網走計 | Q20: 01 網走計 | R20: TRUE | T20: 01 岩内計 | U20: 0113 岩内計 | V20: 95.6
A21: 18 | B21: 1 | C21: 北海道 | D21: 1208 | E21: 北見市 | G21: その他 | I21: きたみし | J21: 01050 | K21: 北見 | L21: 0.902 | M21: 北見市その他 | N21: 20 | P21: 01 北見計 | Q21: 01 北見計 | R21: TRUE | T21: 01 留萌計 | U21: 0114 留萌計 | V21: 89.7
A22: 19 | B22: 1 | C22: 北海道 | D22: 1209 | E22: 夕張市 | I22: ゆうばりし | J22: 01250 | K22: 千歳 | L22: 0.94 | M22: 夕張市 | N22: 21 | P22: 01 千歳計 | Q22: 01 千歳計 | R22: TRUE | T22: 01 名寄計 | U22: 0115 名寄計 | V22: 91.8
A23: 20 | B23: 1 | C23: 北海道 | D23: 1210 | E23: 岩見沢市 | I23: いわみざわし | J23: 01110 | K23: 岩見沢 | L23: 0.919 | M23: 岩見沢市 | N23: 22 | P23: 01 岩見沢計 | Q23: 01 岩見沢計 | R23: TRUE | T23: 01 浦河計 | U23: 0116 浦河計 | V23: 93.1
A24: 21 | B24: 1 | C24: 北海道 | D24: 1211 | E24: 網走市 | I24: あばしりし | J24: 01180 | K24: 網走 | L24: 0.9 | M24: 網走市 | N24: 23 | P24: 01 網走計 | Q24: 01 網走計 | R24: TRUE | T24: 01 網走計 | U24: 0118 網走計 | V24: 90
A25: 22 | B25: 1 | C25: 北海道 | D25: 1212 | E25: 留萌市 | I25: るもいし | J25: 01140 | K25: 留萌 | L25: 0.897 | M25: 留萌市 | N25: 24 | P25: 01 留萌計 | Q25: 01 留萌計 | R25: TRUE | T25: 01 苫小牧計 | U25: 0119 苫小牧計 | V25: 94.4
A26: 23 | B26: 1 | C26: 北海道 | D26: 1213 | E26: 苫小牧市 | I26: とまこまいし | J26: 01190 | K26: 苫小牧 | L26: 0.944 | M26: 苫小牧市 | N26: 25 | P26: 01 苫小牧計 | Q26: 01 苫小牧計 | R26: TRUE | T26: 01 根室計 | U26: 0120 根室計 | V26: 90.4
A27: 24 | B27: 1 | C27: 北海道 | D27: 1214 | E27: 稚内市 | I27: わっかないし | J27: 01120 | K27: 稚内 | L27: 0.914 | M27: 稚内市 | N27: 26 | P27: 01 稚内計 | Q27: 01 稚内計 | R27: TRUE | T27: 01 札幌東計 | U27: 0123 札幌東計 | V27: 94.7
A28: 25 | B28: 1 | C28: 北海道 | D28: 1215 | E28: 美唄市 | I28: びばいし | J28: 01110 | K28: 岩見沢 | L28: 0.919 | M28: 美唄市 | N28: 27 | P28: 01 岩見沢計 | Q28: 01 岩見沢計 | R28: TRUE | T28: 01 札幌北計 | U28: 0124 札幌北計 | V28: 96.9
A29: 26 | B29: 1 | C29: 北海道 | D29: 1216 | E29: 芦別市 | I29: あしべつし | J29: 01080 | K29: 滝川 | L29: 0.893 | M29: 芦別市 | N29: 28 | P29: 01 滝川計 | Q29: 01 滝川計 | R29: TRUE | T29: 01 千歳計 | U29: 0125 千歳計 | V29: 94
A30: 27 | B30: 1 | C30: 北海道 | D30: 1217 | E30: 江別市 | I30: えべつし | J30: 01230 | K30: 札幌東 | L30: 0.947 | M30: 江別市 | N30: 29 | P30: 01 札幌東計 | Q30: 01 札幌東計 | R30: TRUE | T30: 0
A31: 28 | B31: 1 | C31: 北海道 | D31: 1218 | E31: 赤平市 | I31: あかびらし | J31: 01080 | K31: 滝川 | L31: 0.893 | M31: 赤平市 | N31: 30 | P31: 01 滝川計 | Q31: 01 滝川計 | R31: TRUE | T31: 青森 | U31: 青森 | V31: 84.9
A32: 29 | B32: 1 | C32: 北海道 | D32: 1219 | E32: 紋別市 | I32: もんべつし | J32: 01060 | K32: 紋別 | L32: 0.9 | M32: 紋別市 | N32: 31 | P32: 01 紋別計 | Q32: 01 紋別計 | R32: TRUE | T32: 02 青森計 | U32: 0201 青森計 | V32: 85.3
A33: 30 | B33: 1 | C33: 北海道 | D33: 1220 | E33: 士別市 | I33: しべつし | J33: 01150 | K33: 名寄 | L33: 0.918 | M33: 士別市 | N33: 32 | P33: 01 名寄計 | Q33: 01 名寄計 | R33: TRUE | T33: 02 八戸計 | U33: 0202 八戸計 | V33: 85.8
A34: 31 | B34: 1 | C34: 北海道 | D34: 1221 | E34: 名寄市 | I34: なよろし | J34: 01150 | K34: 名寄 | L34: 0.918 | M34: 名寄市 | N34: 33 | P34: 01 名寄計 | Q34: 01 名寄計 | R34: TRUE | T34: 02 弘前計 | U34: 0203 弘前計 | V34: 83.1
A35: 32 | B35: 1 | C35: 北海道 | D35: 1222 | E35: 三笠市 | I35: みかさし | J35: 01110 | K35: 岩見沢 | L35: 0.919 | M35: 三笠市 | N35: 34 | P35: 01 岩見沢計 | Q35: 01 岩見沢計 | R35: TRUE | T35: 02 むつ計 | U35: 0204 むつ計 | V35: 86.1
A36: 33 | B36: 1 | C36: 北海道 | D36: 1223 | E36: 根室市 | I36: ねむろし | J36: 01200 | K36: 根室 | L36: 0.904 | M36: =E36&F36&G36&H36 -> 根室市 | N36: 35 | P36: 01 根室計 | Q36: 01 根室計 | R36: TRUE | T36: 02 野辺地計 | U36: 0205 野辺地計 | V36: 86.4
A37: 34 | B37: 1 | C37: 北海道 | D37: 1224 | E37: 千歳市 | I37: ちとせし | J37: 01250 | K37: 千歳 | L37: 0.94 | M37: 千歳市 | N37: 36 | P37: 01 千歳計 | Q37: 01 千歳計 | R37: TRUE | T37: 02 五所川原計 | U37: 0206 五所川原計 | V37: 79.8
A38: 35 | B38: 1 | C38: 北海道 | D38: 1225 | E38: 滝川市 | I38: たきかわし | J38: 01080 | K38: 滝川 | L38: 0.893 | M38: 滝川市 | N38: 37 | P38: 01 滝川計 | Q38: 01 滝川計 | R38: TRUE | T38: 02 三沢計 | U38: 0208 三沢計 | V38: 86.4
A39: 36 | B39: 1 | C39: 北海道 | D39: 1226 | E39: 砂川市 | I39: すながわし | J39: 01080 | K39: 滝川 | L39: 0.893 | M39: 砂川市 | N39: 38 | P39: 01 滝川計 | Q39: 01 滝川計 | R39: TRUE | T39: 02 黒石計 | U39: 0209 黒石計 | V39: 81.4
A40: 37 | B40: 1 | C40: 北海道 | D40: 1227 | E40: 歌志内市 | I40: うたしないし | J40: 01080 | K40: 滝川 | L40: 0.893 | M40: 歌志内市 | N40: 39 | P40: 01 滝川計 | Q40: 01 滝川計 | R40: TRUE | T40: 0
A41: 38 | B41: 1 | C41: 北海道 | D41: 1228 | E41: 深川市 | I41: ふかがわし | J41: 01080 | K41: 滝川 | L41: 0.893 | M41: 深川市 | N41: 40 | P41: 01 滝川計 | Q41: 01 滝川計 | R41: TRUE | T41: 岩手 | U41: 岩手 | V41: 87.4
A42: 39 | B42: 1 | C42: 北海道 | D42: 1229 | E42: 富良野市 | I42: ふらのし | J42: 01030 | K42: 旭川 | L42: 0.898 | M42: 富良野市 | N42: 41 | P42: 01 旭川計 | Q42: 01 旭川計 | R42: TRUE | T42: 03 盛岡計 | U42: 0301 盛岡計 | V42: 88.7
A43: 40 | B43: 1 | C43: 北海道 | D43: 1230 | E43: 登別市 | I43: のぼりべつし | J43: 01100 | K43: 室蘭 | L43: 0.927 | M43: 登別市 | N43: 42 | P43: 01 室蘭計 | Q43: 01 室蘭計 | R43: TRUE | T43: 03 釜石計 | U43: 0302 釜石計 | V43: 82.4
A44: 41 | B44: 1 | C44: 北海道 | D44: 1231 | E44: 恵庭市 | I44: えにわし | J44: 01250 | K44: 千歳 | L44: 0.94 | M44: 恵庭市 | N44: 43 | P44: 01 千歳計 | Q44: 01 千歳計 | R44: TRUE | T44: 03 宮古計 | U44: 0303 宮古計 | V44: 83.6
A45: 42 | B45: 1 | C45: 北海道 | D45: 1233 | E45: 伊達市 | I45: だてし | J45: 01100 | K45: 室蘭 | L45: 0.927 | M45: 伊達市 | N45: 44 | P45: 01 室蘭計 | Q45: 01 室蘭計 | R45: TRUE | T45: 03 花巻計 | U45: 0304 花巻計 | V45: 88.8
A46: 43 | B46: 1 | C46: 北海道 | D46: 1234 | E46: 北広島市 | I46: きたひろしまし | J46: 01230 | K46: 札幌東 | L46: 0.947 | M46: 北広島市 | N46: 45 | P46: 01 札幌東計 | Q46: 01 札幌東計 | R46: TRUE | T46: 03 一関計 | U46: 0305 一関計 | V46: 88.4
A47: 44 | B47: 1 | C47: 北海道 | D47: 1235 | E47: 石狩市 | F47: 浜益区 | I47: - | J47: 01080 | K47: 滝川 | L47: 0.893 | M47: 石狩市浜益区 | N47: 46 | P47: 01 滝川計 | Q47: 01 滝川計 | R47: TRUE | T47: 03 水沢計 | U47: 0306 水沢計 | V47: 86.3
A48: 45 | B48: 1 | C48: 北海道 | D48: 1235 | E48: 石狩市 | F48: その他 | I48: いしかりし | J48: 01240 | K48: 札幌北 | L48: 0.969 | M48: 石狩市その他 | N48: 47 | P48: 01 札幌北計 | Q48: 01 札幌北計 | R48: TRUE | T48: 03 北上計 | U48: 0307 北上計 | V48: 89.7
A49: 46 | B49: 1 | C49: 北海道 | D49: 1236 | E49: 北斗市 | I49: ほくとし | J49: 01020 | K49: 函館 | L49: 0.908 | M49: 北斗市 | N49: 48 | P49: 01 函館計 | Q49: 01 函館計 | R49: TRUE | T49: 03 大船渡計 | U49: 0308 大船渡計 | V49: 86
A50: 47 | B50: 1 | C50: 北海道 | D50: 1303 | E50: 石狩振興局 | G50: 当別町 | I50: とうべつちょう | J50: 01240 | K50: 札幌北 | L50: 0.969 | M50: 石狩振興局当別町 | N50: 49 | P50: 01 札幌北計 | Q50: 01 札幌北計 | R50: TRUE | T50: 03 二戸計 | U50: 0309 二戸計 | V50: 82.6
A51: 48 | B51: 1 | C51: 北海道 | D51: 1304 | E51: 石狩振興局 | G51: 新篠津村 | I51: しんしのつむら | J51: 01230 | K51: 札幌東 | L51: 0.947 | M51: 石狩振興局新篠津村 | N51: 50 | P51: 01 札幌東計 | Q51: 01 札幌東計 | R51: TRUE | T51: 03 久慈計 | U51: 0310 久慈計 | V51: 83.1
A52: 49 | B52: 1 | C52: 北海道 | D52: 1331 | E52: 渡島総合振興局 | G52: 松前町 | I52: まつまえちょう | J52: 01020 | K52: 函館 | L52: 0.908 | M52: 渡島総合振興局松前町 | N52: 51 | P52: 01 函館計 | Q52: 01 函館計 | R52: TRUE | T52: 0
A53: 50 | B53: 1 | C53: 北海道 | D53: 1332 | E53: 渡島総合振興局 | G53: 福島町 | I53: ふくしまちょう | J53: 01020 | K53: 函館 | L53: 0.908 | M53: 渡島総合振興局福島町 | N53: 52 | P53: 01 函館計 | Q53: 01 函館計 | R53: TRUE | T53: 宮城 | U53: 宮城 | V53: 96.7
A54: 51 | B54: 1 | C54: 北海道 | D54: 1333 | E54: 渡島総合振興局 | G54: 知内町 | I54: しりうちちょう | J54: 01020 | K54: 函館 | L54: 0.908 | M54: 渡島総合振興局知内町 | N54: 53 | P54: 01 函館計 | Q54: 01 函館計 | R54: TRUE | T54: 04 仙台計 | U54: 0401 仙台計 | V54: 100.2
A55: 52 | B55: 1 | C55: 北海道 | D55: 1334 | E55: 渡島総合振興局 | G55: 木古内町 | I55: きこないちょう | J55: 01020 | K55: 函館 | L55: 0.908 | M55: 渡島総合振興局木古内町 | N55: 54 | P55: 01 函館計 | Q55: 01 函館計 | R55: TRUE | T55: 04 石巻計 | U55: 0402 石巻計 | V55: 89.8
A56: 53 | B56: 1 | C56: 北海道 | D56: 1337 | E56: 渡島総合振興局 | G56: 七飯町 | I56: ななえちょう | J56: 01020 | K56: 函館 | L56: 0.908 | M56: 渡島総合振興局七飯町 | N56: 55 | P56: 01 函館計 | Q56: 01 函館計 | R56: TRUE | T56: 04 塩釜計 | U56: 0403 塩釜計 | V56: 94.5
A57: 54 | B57: 1 | C57: 北海道 | D57: 1343 | E57: 渡島総合振興局 | G57: 鹿部町 | I57: しかべちょう | J57: 01020 | K57: 函館 | L57: 0.908 | M57: 渡島総合振興局鹿部町 | N57: 56 | P57: 01 函館計 | Q57: 01 函館計 | R57: TRUE | T57: 04 古川計 | U57: 0404 古川計 | V57: 90.5
A58: 55 | B58: 1 | C58: 北海道 | D58: 1345 | E58: 渡島総合振興局 | G58: 森町 | I58: もりまち | J58: 01020 | K58: 函館 | L58: 0.908 | M58: 渡島総合振興局森町 | N58: 57 | P58: 01 函館計 | Q58: 01 函館計 | R58: TRUE | T58: 04 大河原計 | U58: 0405 大河原計 | V58: 89.3
A59: 56 | B59: 1 | C59: 北海道 | D59: 1346 | E59: 渡島総合振興局 | G59: 八雲町 | I59: やくもちょう | J59: 01020 | K59: 函館 | L59: 0.908 | M59: 渡島総合振興局八雲町 | N59: 58 | P59: 01 函館計 | Q59: 01 函館計 | R59: TRUE | T59: 04 築館計 | U59: 0406 築館計 | V59: 89.1
A60: 57 | B60: 1 | C60: 北海道 | D60: 1347 | E60: 渡島総合振興局 | G60: 長万部町 | I60: おしゃまんべちょう | J60: 01020 | K60: 函館 | L60: 0.908 | M60: 渡島総合振興局長万部町 | N60: 59 | P60: 01 函館計 | Q60: 01 函館計 | R60: TRUE | T60: 04 迫計 | U60: 0407 迫計 | V60: 86.9
A61: 58 | B61: 1 | C61: 北海道 | D61: 1361 | E61: 檜山振興局 | G61: 江差町 | I61: えさしちょう | J61: 01020 | K61: 函館 | L61: 0.908 | M61: 檜山振興局江差町 | N61: 60 | P61: 01 函館計 | Q61: 01 函館計 | R61: TRUE | T61: 04 気仙沼計 | U61: 0408 気仙沼計 | V61: 87.3
A62: 59 | B62: 1 | C62: 北海道 | D62: 1362 | E62: 檜山振興局 | G62: 上ノ国町 | I62: かみのくにちょう | J62: 01020 | K62: 函館 | L62: 0.908 | M62: 檜山振興局上ノ国町 | N62: 61 | P62: 01 函館計 | Q62: 01 函館計 | R62: TRUE | T62: 0
A63: 60 | B63: 1 | C63: 北海道 | D63: 1363 | E63: 檜山振興局 | G63: 厚沢部町 | I63: あっさぶちょう | J63: 01020 | K63: 函館 | L63: 0.908 | M63: 檜山振興局厚沢部町 | N63: 62 | P63: 01 函館計 | Q63: 01 函館計 | R63: TRUE | T63: 秋田 | U63: 秋田 | V63: 86.9
A64: 61 | B64: 1 | C64: 北海道 | D64: 1364 | E64: 檜山振興局 | G64: 乙部町 | I64: おとべちょう | J64: 01020 | K64: 函館 | L64: 0.908 | M64: 檜山振興局乙部町 | N64: 63 | P64: 01 函館計 | Q64: 01 函館計 | R64: TRUE | T64: 05 秋田計 | U64: 0501 秋田計 | V64: 89.2
A65: 62 | B65: 1 | C65: 北海道 | D65: 1367 | E65: 檜山振興局 | G65: 奥尻町 | I65: おくしりちょう | J65: 01020 | K65: 函館 | L65: 0.908 | M65: 檜山振興局奥尻町 | N65: 64 | P65: 01 函館計 | Q65: 01 函館計 | R65: TRUE | T65: 05 能代計 | U65: 0502 能代計 | V65: 87.9
A66: 63 | B66: 1 | C66: 北海道 | D66: 1370 | E66: 檜山振興局 | G66: 今金町 | I66: いまかねちょう | J66: 01020 | K66: 函館 | L66: 0.908 | M66: 檜山振興局今金町 | N66: 65 | P66: 01 函館計 | Q66: 01 函館計 | R66: TRUE | T66: 05 大館計 | U66: 0503 大館計 | V66: 84.2
A67: 64 | B67: 1 | C67: 北海道 | D67: 1371 | E67: 檜山振興局 | G67: せたな町 | I67: せたなちょう | J67: 01020 | K67: 函館 | L67: =VLOOKUP(P67,$T:$V,3,FALSE)/100 -> 0.908 | M67: 檜山振興局せたな町 | N67: 66 | P67: =IF(J67="","",MID(J67,1,2)&" ")&K67&IF(J67="","","計") -> 01 函館計 | Q67: =VLOOKUP(P67,T:T,1,FALSE) -> 01 函館計 | R67: =P67=Q67 -> TRUE | T67: =IF(LEN(U67)<=3,U67,LEFT(U67,2)&MID(U67,5,8)) -> 05 大曲計 | U67: 0504 大曲計 | V67: 85.9
A68: 65 | B68: 1 | C68: 北海道 | D68: 1391 | E68: 後志総合振興局 | G68: 島牧村 | I68: しままきむら | J68: 01130 | K68: 岩内 | L68: 0.956 | M68: =E68&F68&G68&H68 -> 後志総合振興局島牧村 | N68: 67 | P68: 01 岩内計 | Q68: 01 岩内計 | R68: TRUE | T68: 05 本荘計 | U68: 0505 本荘計 | V68: 87.2
A69: 66 | B69: 1 | C69: 北海道 | D69: 1392 | E69: 後志総合振興局 | G69: 寿都町 | I69: すっつちょう | J69: 01130 | K69: 岩内 | L69: 0.956 | M69: 後志総合振興局寿都町 | N69: 68 | P69: 01 岩内計 | Q69: 01 岩内計 | R69: TRUE | T69: 05 横手計 | U69: 0506 横手計 | V69: 84
A70: 67 | B70: 1 | C70: 北海道 | D70: 1393 | E70: 後志総合振興局 | G70: 黒松内町 | I70: くろまつないちょう | J70: 01130 | K70: 岩内 | L70: 0.956 | M70: 後志総合振興局黒松内町 | N70: 69 | P70: 01 岩内計 | Q70: 01 岩内計 | R70: TRUE | T70: 05 湯沢計 | U70: 0507 湯沢計 | V70: 83.2
A71: 68 | B71: 1 | C71: 北海道 | D71: 1394 | E71: 後志総合振興局 | G71: 蘭越町 | I71: らんこしちょう | J71: 01130 | K71: 岩内 | L71: 0.956 | M71: 後志総合振興局蘭越町 | N71: 70 | P71: 01 岩内計 | Q71: 01 岩内計 | R71: TRUE | T71: 05 鹿角計 | U71: 0508 鹿角計 | V71: 84
A72: 69 | B72: 1 | C72: 北海道 | D72: 1395 | E72: 後志総合振興局 | G72: ニセコ町 | I72: にせこちょう | J72: 01130 | K72: 岩内 | L72: 0.956 | M72: 後志総合振興局ニセコ町 | N72: 71 | P72: 01 岩内計 | Q72: 01 岩内計 | R72: TRUE | T72: 0
A73: 70 | B73: 1 | C73: 北海道 | D73: 1396 | E73: 後志総合振興局 | G73: 真狩村 | I73: まっかりむら | J73: 01130 | K73: 岩内 | L73: 0.956 | M73: 後志総合振興局真狩村 | N73: 72 | P73: 01 岩内計 | Q73: 01 岩内計 | R73: TRUE | T73: 山形 | U73: 山形 | V73: 89.4
A74: 71 | B74: 1 | C74: 北海道 | D74: 1397 | E74: 後志総合振興局 | G74: 留寿都村 | I74: るすつむら | J74: 01130 | K74: 岩内 | L74: 0.956 | M74: 後志総合振興局留寿都村 | N74: 73 | P74: 01 岩内計 | Q74: 01 岩内計 | R74: TRUE | T74: 06 山形計 | U74: 0601 山形計 | V74: 91
A75: 72 | B75: 1 | C75: 北海道 | D75: 1398 | E75: 後志総合振興局 | G75: 喜茂別町 | I75: きもべつちょう | J75: 01130 | K75: 岩内 | L75: 0.956 | M75: 後志総合振興局喜茂別町 | N75: 74 | P75: 01 岩内計 | Q75: 01 岩内計 | R75: TRUE | T75: 06 米沢計 | U75: 0602 米沢計 | V75: 89.5
A76: 73 | B76: 1 | C76: 北海道 | D76: 1399 | E76: 後志総合振興局 | G76: 京極町 | I76: きょうごくちょう | J76: 01130 | K76: 岩内 | L76: 0.956 | M76: 後志総合振興局京極町 | N76: 75 | P76: 01 岩内計 | Q76: 01 岩内計 | R76: TRUE | T76: 06 酒田計 | U76: 0603 酒田計 | V76: 88.7
A77: 74 | B77: 1 | C77: 北海道 | D77: 1400 | E77: 後志総合振興局 | G77: 倶知安町 | I77: くっちゃんちょう | J77: 01130 | K77: 岩内 | L77: 0.956 | M77: 後志総合振興局倶知安町 | N77: 76 | P77: 01 岩内計 | Q77: 01 岩内計 | R77: TRUE | T77: 06 鶴岡計 | U77: 0604 鶴岡計 | V77: 88.9
A78: 75 | B78: 1 | C78: 北海道 | D78: 1401 | E78: 後志総合振興局 | G78: 共和町 | I78: きょうわちょう | J78: 01130 | K78: 岩内 | L78: 0.956 | M78: 後志総合振興局共和町 | N78: 77 | P78: 01 岩内計 | Q78: 01 岩内計 | R78: TRUE | T78: 06 新庄計 | U78: 0605 新庄計 | V78: 87.7
A79: 76 | B79: 1 | C79: 北海道 | D79: 1402 | E79: 後志総合振興局 | G79: 岩内町 | I79: いわないちょう | J79: 01130 | K79: 岩内 | L79: 0.956 | M79: 後志総合振興局岩内町 | N79: 78 | P79: 01 岩内計 | Q79: 01 岩内計 | R79: TRUE | T79: 06 長井計 | U79: 0606 長井計 | V79: 85.8
A80: 77 | B80: 1 | C80: 北海道 | D80: 1403 | E80: 後志総合振興局 | G80: 泊村 | I80: とまりむら | J80: 01130 | K80: 岩内 | L80: 0.956 | M80: 後志総合振興局泊村 | N80: 79 | P80: 01 岩内計 | Q80: 01 岩内計 | R80: TRUE | T80: 06 村山計 | U80: 0607 村山計 | V80: 90.4
A81: 78 | B81: 1 | C81: 北海道 | D81: 1404 | E81: 後志総合振興局 | G81: 神恵内村 | I81: かもえないむら | J81: 01130 | K81: 岩内 | L81: 0.956 | M81: 後志総合振興局神恵内村 | N81: 80 | P81: 01 岩内計 | Q81: 01 岩内計 | R81: TRUE | T81: 06 寒河江計 | U81: 0608 寒河江計 | V81: 89.2
A82: 79 | B82: 1 | C82: 北海道 | D82: 1405 | E82: 後志総合振興局 | G82: 積丹町 | I82: しゃこたんちょう | J82: 01070 | K82: 小樽 | L82: 0.881 | M82: 後志総合振興局積丹町 | N82: 81 | P82: 01 小樽計 | Q82: 01 小樽計 | R82: TRUE | T82: 0
A83: 80 | B83: 1 | C83: 北海道 | D83: 1406 | E83: 後志総合振興局 | G83: 古平町 | I83: ふるびらちょう | J83: 01070 | K83: 小樽 | L83: 0.881 | M83: 後志総合振興局古平町 | N83: 82 | P83: 01 小樽計 | Q83: 01 小樽計 | R83: TRUE | T83: 福島 | U83: 福島 | V83: 93
A84: 81 | B84: 1 | C84: 北海道 | D84: 1407 | E84: 後志総合振興局 | G84: 仁木町 | I84: にきちょう | J84: 01070 | K84: 小樽 | L84: 0.881 | M84: 後志総合振興局仁木町 | N84: 83 | P84: 01 小樽計 | Q84: 01 小樽計 | R84: TRUE | T84: 07 福島計 | U84: 0701 福島計 | V84: 89.7
A85: 82 | B85: 1 | C85: 北海道 | D85: 1408 | E85: 後志総合振興局 | G85: 余市町 | I85: よいちちょう | J85: 01070 | K85: 小樽 | L85: 0.881 | M85: 後志総合振興局余市町 | N85: 84 | P85: 01 小樽計 | Q85: 01 小樽計 | R85: TRUE | T85: 07 いわき計 | U85: 0702 いわき計 | V85: 94
A86: 83 | B86: 1 | C86: 北海道 | D86: 1409 | E86: 後志総合振興局 | G86: 赤井川村 | I86: あかいがわむら | J86: 01070 | K86: 小樽 | L86: 0.881 | M86: 後志総合振興局赤井川村 | N86: 85 | P86: 01 小樽計 | Q86: 01 小樽計 | R86: TRUE | T86: 07 会津若松計 | U86: 0703 会津若松計 | V86: 87.1
A87: 84 | B87: 1 | C87: 北海道 | D87: 1423 | E87: 空知総合振興局 | G87: 南幌町 | I87: なんぽろちょう | J87: 01110 | K87: 岩見沢 | L87: 0.919 | M87: 空知総合振興局南幌町 | N87: 86 | P87: 01 岩見沢計 | Q87: 01 岩見沢計 | R87: TRUE | T87: 07 郡山計 | U87: 0704 郡山計 | V87: 97.5
A88: 85 | B88: 1 | C88: 北海道 | D88: 1424 | E88: 空知総合振興局 | G88: 奈井江町 | I88: ないえちょう | J88: 01080 | K88: 滝川 | L88: 0.893 | M88: 空知総合振興局奈井江町 | N88: 87 | P88: 01 滝川計 | Q88: 01 滝川計 | R88: TRUE | T88: 07 白河計 | U88: 0705 白河計 | V88: 90.4
A89: 86 | B89: 1 | C89: 北海道 | D89: 1425 | E89: 空知総合振興局 | G89: 上砂川町 | I89: かみすながわちょう | J89: 01080 | K89: 滝川 | L89: 0.893 | M89: 空知総合振興局上砂川町 | N89: 88 | P89: 01 滝川計 | Q89: 01 滝川計 | R89: TRUE | T89: 07 須賀川計 | U89: 0706 須賀川計 | V89: 91.3
A90: 87 | B90: 1 | C90: 北海道 | D90: 1427 | E90: 空知総合振興局 | G90: 由仁町 | I90: ゆにちょう | J90: 01250 | K90: 千歳 | L90: 0.94 | M90: 空知総合振興局由仁町 | N90: 89 | P90: 01 千歳計 | Q90: 01 千歳計 | R90: TRUE | T90: 07 二本松計 | U90: 0708 二本松計 | V90: 90.6
A91: 88 | B91: 1 | C91: 北海道 | D91: 1428 | E91: 空知総合振興局 | G91: 長沼町 | I91: ながぬまちょう | J91: 01250 | K91: 千歳 | L91: 0.94 | M91: 空知総合振興局長沼町 | N91: 90 | P91: 01 千歳計 | Q91: 01 千歳計 | R91: TRUE | T91: 07 相双計 | U91: 0712 相双計 | V91: 96.5
A92: 89 | B92: 1 | C92: 北海道 | D92: 1429 | E92: 空知総合振興局 | G92: 栗山町 | I92: くりやまちょう | J92: 01250 | K92: 千歳 | L92: 0.94 | M92: 空知総合振興局栗山町 | N92: 91 | P92: 01 千歳計 | Q92: 01 千歳計 | R92: TRUE | T92: 0
A93: 90 | B93: 1 | C93: 北海道 | D93: 1430 | E93: 空知総合振興局 | G93: 月形町 | I93: つきがたちょう | J93: 01110 | K93: 岩見沢 | L93: 0.919 | M93: 空知総合振興局月形町 | N93: 92 | P93: 01 岩見沢計 | Q93: 01 岩見沢計 | R93: TRUE | T93: 茨城 | U93: 茨城 | V93: 101.1
A94: 91 | B94: 1 | C94: 北海道 | D94: 1431 | E94: 空知総合振興局 | G94: 浦臼町 | I94: うらうすちょう | J94: 01110 | K94: 岩見沢 | L94: 0.919 | M94: 空知総合振興局浦臼町 | N94: 93 | P94: 01 岩見沢計 | Q94: 01 岩見沢計 | R94: TRUE | T94: 08 水戸計 | U94: 0801 水戸計 | V94: 98.9
A95: 92 | B95: 1 | C95: 北海道 | D95: 1432 | E95: 空知総合振興局 | G95: 新十津川町 | I95: しんとつかわちょう | J95: 01080 | K95: 滝川 | L95: 0.893 | M95: 空知総合振興局新十津川町 | N95: 94 | P95: 01 滝川計 | Q95: 01 滝川計 | R95: TRUE | T95: 08 日立計 | U95: 0802 日立計 | V95: 98.4
A96: 93 | B96: 1 | C96: 北海道 | D96: 1433 | E96: 空知総合振興局 | G96: 妹背牛町 | I96: もせうしちょう | J96: 01080 | K96: 滝川 | L96: 0.893 | M96: 空知総合振興局妹背牛町 | N96: 95 | P96: 01 滝川計 | Q96: 01 滝川計 | R96: TRUE | T96: 08 筑西計 | U96: 0803 筑西計 | V96: 98.3
A97: 94 | B97: 1 | C97: 北海道 | D97: 1434 | E97: 空知総合振興局 | G97: 秩父別町 | I97: ちっぷべつちょう | J97: 01080 | K97: 滝川 | L97: 0.893 | M97: 空知総合振興局秩父別町 | N97: 96 | P97: 01 滝川計 | Q97: 01 滝川計 | R97: TRUE | T97: 08 土浦計 | U97: 0804 土浦計 | V97: 102.8
A98: 95 | B98: 1 | C98: 北海道 | D98: 1436 | E98: 空知総合振興局 | G98: 雨竜町 | I98: うりゅうちょう | J98: 01080 | K98: 滝川 | L98: 0.893 | M98: 空知総合振興局雨竜町 | N98: 97 | P98: 01 滝川計 | Q98: 01 滝川計 | R98: TRUE | T98: 08 古河計 | U98: 0805 古河計 | V98: 107
A99: 96 | B99: 1 | C99: 北海道 | D99: 1437 | E99: 空知総合振興局 | G99: 北竜町 | I99: ほくりゅうちょう | J99: 01080 | K99: 滝川 | L99: 0.893 | M99: 空知総合振興局北竜町 | N99: 98 | P99: 01 滝川計 | Q99: 01 滝川計 | R99: TRUE | T99: 08 常総計 | U99: 0806 常総計 | V99: 102.7
A100: 97 | B100: 1 | C100: 北海道 | D100: 1438 | E100: 空知総合振興局 | G100: 沼田町 | I100: ぬまたちょう | J100: 01080 | K100: 滝川 | L100: 0.893 | M100: =E100&F100&G100&H100 -> 空知総合振興局沼田町 | N100: 99 | P100: 01 滝川計 | Q100: 01 滝川計 | R100: TRUE | T100: 08 石岡計 | U100: 0808 石岡計 | V100: 98.4
A101: 98 | B101: 1 | C101: 北海道 | D101: 1452 | E101: 上川総合振興局 | G101: 鷹栖町 | I101: たかすちょう | J101: 01030 | K101: 旭川 | L101: 0.898 | M101: 上川総合振興局鷹栖町 | N101: 100 | P101: 01 旭川計 | Q101: 01 旭川計 | R101: TRUE | T101: 08 常陸大宮計 | U101: 0809 常陸大宮計 | V101: 93.7
A102: 99 | B102: 1 | C102: 北海道 | D102: 1453 | E102: 上川総合振興局 | G102: 東神楽町 | I102: ひがしかぐらちょう | J102: 01030 | K102: 旭川 | L102: 0.898 | M102: 上川総合振興局東神楽町 | N102: 101 | P102: 01 旭川計 | Q102: 01 旭川計 | R102: TRUE | T102: 08 龍ケ崎計 | U102: 0810 龍ケ崎計 | V102: 103.4
A103: 100 | B103: 1 | C103: 北海道 | D103: 1454 | E103: 上川総合振興局 | G103: 当麻町 | I103: とうまちょう | J103: 01030 | K103: 旭川 | L103: 0.898 | M103: 上川総合振興局当麻町 | N103: 102 | P103: 01 旭川計 | Q103: 01 旭川計 | R103: TRUE | T103: 08 高萩計 | U103: 0811 高萩計 | V103: 91.5
A104: 101 | B104: 1 | C104: 北海道 | D104: 1455 | E104: 上川総合振興局 | G104: 比布町 | I104: ぴっぷちょう | J104: 01030 | K104: 旭川 | L104: 0.898 | M104: 上川総合振興局比布町 | N104: 103 | P104: 01 旭川計 | Q104: 01 旭川計 | R104: TRUE | T104: 08 常陸鹿嶋計 | U104: 0812 常陸鹿嶋計 | V104: 101.7
A105: 102 | B105: 1 | C105: 北海道 | D105: 1456 | E105: 上川総合振興局 | G105: 愛別町 | I105: あいベつちょう | J105: 01030 | K105: 旭川 | L105: 0.898 | M105: 上川総合振興局愛別町 | N105: 104 | P105: 01 旭川計 | Q105: 01 旭川計 | R105: TRUE | T105: 0
A106: 103 | B106: 1 | C106: 北海道 | D106: 1457 | E106: 上川総合振興局 | G106: 上川町 | I106: かみかわちょう | J106: 01030 | K106: 旭川 | L106: 0.898 | M106: 上川総合振興局上川町 | N106: 105 | P106: 01 旭川計 | Q106: 01 旭川計 | R106: TRUE | T106: 栃木 | U106: 栃木 | V106: 99.5
A107: 104 | B107: 1 | C107: 北海道 | D107: 1458 | E107: 上川総合振興局 | G107: 東川町 | I107: ひがしかわちょう | J107: 01030 | K107: 旭川 | L107: 0.898 | M107: 上川総合振興局東川町 | N107: 106 | P107: 01 旭川計 | Q107: 01 旭川計 | R107: TRUE | T107: 09 宇都宮計 | U107: 0901 宇都宮計 | V107: 100.5
A108: 105 | B108: 1 | C108: 北海道 | D108: 1459 | E108: 上川総合振興局 | G108: 美瑛町 | I108: びえいちょう | J108: 01030 | K108: 旭川 | L108: 0.898 | M108: 上川総合振興局美瑛町 | N108: 107 | P108: 01 旭川計 | Q108: 01 旭川計 | R108: TRUE | T108: 09 鹿沼計 | U108: 0902 鹿沼計 | V108: 103.6
A109: 106 | B109: 1 | C109: 北海道 | D109: 1460 | E109: 上川総合振興局 | G109: 上富良野町 | I109: かみふらのちょう | J109: 01030 | K109: 旭川 | L109: 0.898 | M109: 上川総合振興局上富良野町 | N109: 108 | P109: 01 旭川計 | Q109: 01 旭川計 | R109: TRUE | T109: 09 栃木計 | U109: 0903 栃木計 | V109: 98.4
A110: 107 | B110: 1 | C110: 北海道 | D110: 1461 | E110: 上川総合振興局 | G110: 中富良野町 | I110: なかふらのちょう | J110: 01030 | K110: 旭川 | L110: 0.898 | M110: 上川総合振興局中富良野町 | N110: 109 | P110: 01 旭川計 | Q110: 01 旭川計 | R110: TRUE | T110: 09 佐野計 | U110: 0904 佐野計 | V110: 98.3
A111: 108 | B111: 1 | C111: 北海道 | D111: 1462 | E111: 上川総合振興局 | G111: 南富良野町 | I111: みなみふらのちょう | J111: 01030 | K111: 旭川 | L111: 0.898 | M111: 上川総合振興局南富良野町 | N111: 110 | P111: 01 旭川計 | Q111: 01 旭川計 | R111: TRUE | T111: 09 足利計 | U111: 0905 足利計 | V111: 97.6
A112: 109 | B112: 1 | C112: 北海道 | D112: 1463 | E112: 上川総合振興局 | G112: 占冠村 | I112: しむかっぷむら | J112: 01030 | K112: 旭川 | L112: 0.898 | M112: 上川総合振興局占冠村 | N112: 111 | P112: 01 旭川計 | Q112: 01 旭川計 | R112: TRUE | T112: 09 真岡計 | U112: 0906 真岡計 | V112: 95.9
A113: 110 | B113: 1 | C113: 北海道 | D113: 1464 | E113: 上川総合振興局 | G113: 和寒町 | I113: わっさむちょう | J113: 01150 | K113: 名寄 | L113: 0.918 | M113: 上川総合振興局和寒町 | N113: 112 | P113: 01 名寄計 | Q113: 01 名寄計 | R113: TRUE | T113: 09 矢板計 | U113: 0907 矢板計 | V113: 98.4
A114: 111 | B114: 1 | C114: 北海道 | D114: 1465 | E114: 上川総合振興局 | G114: 剣淵町 | I114: けんぶちちょう | J114: 01150 | K114: 名寄 | L114: 0.918 | M114: 上川総合振興局剣淵町 | N114: 113 | P114: 01 名寄計 | Q114: 01 名寄計 | R114: TRUE | T114: 09 大田原計 | U114: 0908 大田原計 | V114: 97.3
A115: 112 | B115: 1 | C115: 北海道 | D115: 1468 | E115: 上川総合振興局 | G115: 下川町 | I115: しもかわちょう | J115: 01150 | K115: 名寄 | L115: 0.918 | M115: 上川総合振興局下川町 | N115: 114 | P115: 01 名寄計 | Q115: 01 名寄計 | R115: TRUE | T115: 09 小山計 | U115: 0909 小山計 | V115: 100.4
A116: 113 | B116: 1 | C116: 北海道 | D116: 1469 | E116: 上川総合振興局 | G116: 美深町 | I116: びふかちょう | J116: 01150 | K116: 名寄 | L116: 0.918 | M116: 上川総合振興局美深町 | N116: 115 | P116: 01 名寄計 | Q116: 01 名寄計 | R116: TRUE | T116: 09 日光計 | U116: 0911 日光計 | V116: 97
A117: 114 | B117: 1 | C117: 北海道 | D117: 1470 | E117: 上川総合振興局 | G117: 音威子府村 | I117: おといねっぷむら | J117: 01150 | K117: 名寄 | L117: 0.918 | M117: 上川総合振興局音威子府村 | N117: 116 | P117: 01 名寄計 | Q117: 01 名寄計 | R117: TRUE | T117: 09 黒磯計 | U117: 0912 黒磯計 | V117: 96.7
A118: 115 | B118: 1 | C118: 北海道 | D118: 1471 | E118: 上川総合振興局 | G118: 中川町 | I118: なかがわちょう | J118: 01150 | K118: 名寄 | L118: 0.918 | M118: 上川総合振興局中川町 | N118: 117 | P118: 01 名寄計 | Q118: 01 名寄計 | R118: TRUE | T118: 0
A119: 116 | B119: 1 | C119: 北海道 | D119: 1472 | E119: 上川総合振興局 | G119: 幌加内町 | I119: ほろかないちょう | J119: 01030 | K119: 旭川 | L119: 0.898 | M119: 上川総合振興局幌加内町 | N119: 118 | P119: 01 旭川計 | Q119: 01 旭川計 | R119: TRUE | T119: 群馬 | U119: 群馬 | V119: 98.8
A120: 117 | B120: 1 | C120: 北海道 | D120: 1481 | E120: 留萌振興局 | G120: 増毛町 | I120: ましけちょう | J120: 01140 | K120: 留萌 | L120: 0.897 | M120: 留萌振興局増毛町 | N120: 119 | P120: 01 留萌計 | Q120: 01 留萌計 | R120: TRUE | T120: 10 前橋計 | U120: 1001 前橋計 | V120: 95.6
A121: 118 | B121: 1 | C121: 北海道 | D121: 1482 | E121: 留萌振興局 | G121: 小平町 | I121: おびらちょう | J121: 01140 | K121: 留萌 | L121: 0.897 | M121: 留萌振興局小平町 | N121: 120 | P121: 01 留萌計 | Q121: 01 留萌計 | R121: TRUE | T121: 10 高崎計 | U121: 1002 高崎計 | V121: 100.9
A122: 119 | B122: 1 | C122: 北海道 | D122: 1483 | E122: 留萌振興局 | G122: 苫前町 | I122: とままえちょう | J122: 01140 | K122: 留萌 | L122: 0.897 | M122: 留萌振興局苫前町 | N122: 121 | P122: 01 留萌計 | Q122: 01 留萌計 | R122: TRUE | T122: 10 桐生計 | U122: 1003 桐生計 | V122: 94.3
A123: 120 | B123: 1 | C123: 北海道 | D123: 1484 | E123: 留萌振興局 | G123: 羽幌町 | I123: はぼろちょう | J123: 01140 | K123: 留萌 | L123: 0.897 | M123: 留萌振興局羽幌町 | N123: 122 | P123: 01 留萌計 | Q123: 01 留萌計 | R123: TRUE | T123: 10 伊勢崎計 | U123: 1004 伊勢崎計 | V123: 101.5
A124: 121 | B124: 1 | C124: 北海道 | D124: 1485 | E124: 留萌振興局 | G124: 初山別村 | I124: しょさんべつむら | J124: 01140 | K124: 留萌 | L124: 0.897 | M124: 留萌振興局初山別村 | N124: 123 | P124: 01 留萌計 | Q124: 01 留萌計 | R124: TRUE | T124: 10 太田計 | U124: 1005 太田計 | V124: 101.2
A125: 122 | B125: 1 | C125: 北海道 | D125: 1486 | E125: 留萌振興局 | G125: 遠別町 | I125: えんべつちょう | J125: 01120 | K125: 稚内 | L125: 0.914 | M125: 留萌振興局遠別町 | N125: 124 | P125: 01 稚内計 | Q125: 01 稚内計 | R125: TRUE | T125: 10 館林計 | U125: 1006 館林計 | V125: 99.6
A126: 123 | B126: 1 | C126: 北海道 | D126: 1487 | E126: 留萌振興局 | G126: 天塩町 | I126: てしおちょう | J126: 01120 | K126: 稚内 | L126: 0.914 | M126: 留萌振興局天塩町 | N126: 125 | P126: 01 稚内計 | Q126: 01 稚内計 | R126: TRUE | T126: 10 沼田計 | U126: 1007 沼田計 | V126: 96.8
A127: 124 | B127: 1 | C127: 北海道 | D127: 1511 | E127: 宗谷総合振興局 | G127: 猿払村 | I127: さるふつむら | J127: 01120 | K127: 稚内 | L127: 0.914 | M127: 宗谷総合振興局猿払村 | N127: 126 | P127: 01 稚内計 | Q127: 01 稚内計 | R127: TRUE | T127: 10 群馬富岡計 | U127: 1008 群馬富岡計 | V127: 96.9
A128: 125 | B128: 1 | C128: 北海道 | D128: 1512 | E128: 宗谷総合振興局 | G128: 浜頓別町 | I128: はまとんべつちょう | J128: 01150 | K128: 名寄 | L128: 0.918 | M128: 宗谷総合振興局浜頓別町 | N128: 127 | P128: 01 名寄計 | Q128: 01 名寄計 | R128: TRUE | T128: 10 藤岡計 | U128: 1009 藤岡計 | V128: 96
A129: 126 | B129: 1 | C129: 北海道 | D129: 1513 | E129: 宗谷総合振興局 | G129: 中頓別町 | I129: なかとんべつちょう | J129: 01150 | K129: 名寄 | L129: 0.918 | M129: 宗谷総合振興局中頓別町 | N129: 128 | P129: 01 名寄計 | Q129: 01 名寄計 | R129: TRUE | T129: 10 渋川計 | U129: 1010 渋川計 | V129: 97
A130: 127 | B130: 1 | C130: 北海道 | D130: 1514 | E130: 宗谷総合振興局 | G130: 枝幸町 | I130: えさしちょう | J130: 01150 | K130: 名寄 | L130: 0.918 | M130: 宗谷総合振興局枝幸町 | N130: 129 | P130: 01 名寄計 | Q130: 01 名寄計 | R130: TRUE | T130: 0
A131: 128 | B131: 1 | C131: 北海道 | D131: 1516 | E131: 宗谷総合振興局 | G131: 豊富町 | I131: とよとみちょう | J131: 01120 | K131: 稚内 | L131: =VLOOKUP(P131,$T:$V,3,FALSE)/100 -> 0.914 | M131: 宗谷総合振興局豊富町 | N131: 130 | P131: =IF(J131="","",MID(J131,1,2)&" ")&K131&IF(J131="","","計") -> 01 稚内計 | Q131: =VLOOKUP(P131,T:T,1,FALSE) -> 01 稚内計 | R131: =P131=Q131 -> TRUE | T131: =IF(LEN(U131)<=3,U131,LEFT(U131,2)&MID(U131,5,8)) -> 埼玉 | U131: 埼玉 | V131: 107
A132: 129 | B132: 1 | C132: 北海道 | D132: 1517 | E132: 宗谷総合振興局 | G132: 礼文町 | I132: れぶんちょう | J132: 01120 | K132: 稚内 | L132: 0.914 | M132: =E132&F132&G132&H132 -> 宗谷総合振興局礼文町 | N132: 131 | P132: 01 稚内計 | Q132: 01 稚内計 | R132: TRUE | T132: 11 川口計 | U132: 1101 川口計 | V132: 107.3
A133: 130 | B133: 1 | C133: 北海道 | D133: 1518 | E133: 宗谷総合振興局 | G133: 利尻町 | I133: りしりちょう | J133: 01120 | K133: 稚内 | L133: 0.914 | M133: 宗谷総合振興局利尻町 | N133: 132 | P133: 01 稚内計 | Q133: 01 稚内計 | R133: TRUE | T133: 11 熊谷計 | U133: 1102 熊谷計 | V133: 101.7
A134: 131 | B134: 1 | C134: 北海道 | D134: 1519 | E134: 宗谷総合振興局 | G134: 利尻富士町 | I134: りしりふじちょう | J134: 01120 | K134: 稚内 | L134: 0.914 | M134: 宗谷総合振興局利尻富士町 | N134: 133 | P134: 01 稚内計 | Q134: 01 稚内計 | R134: TRUE | T134: 11 大宮計 | U134: 1103 大宮計 | V134: 108.4
A135: 132 | B135: 1 | C135: 北海道 | D135: 1520 | E135: 宗谷総合振興局 | G135: 幌延町 | I135: ほろのべちょう | J135: 01120 | K135: 稚内 | L135: 0.914 | M135: 宗谷総合振興局幌延町 | N135: 134 | P135: 01 稚内計 | Q135: 01 稚内計 | R135: TRUE | T135: 11 川越計 | U135: 1104 川越計 | V135: 105.9
A136: 133 | B136: 1 | C136: 北海道 | D136: 1543 | E136: オホーツク総合振興局 | G136: 美幌町 | I136: びほろちょう | J136: 01050 | K136: 北見 | L136: 0.902 | M136: オホーツク総合振興局美幌町 | N136: 135 | P136: 01 北見計 | Q136: 01 北見計 | R136: TRUE | T136: 11 浦和計 | U136: 1105 浦和計 | V136: 108.9
A137: 134 | B137: 1 | C137: 北海道 | D137: 1544 | E137: オホーツク総合振興局 | G137: 津別町 | I137: つべつちょう | J137: 01050 | K137: 北見 | L137: 0.902 | M137: オホーツク総合振興局津別町 | N137: 136 | P137: 01 北見計 | Q137: 01 北見計 | R137: TRUE | T137: 11 所沢計 | U137: 1106 所沢計 | V137: 105.3
A138: 135 | B138: 1 | C138: 北海道 | D138: 1545 | E138: オホーツク総合振興局 | G138: 斜里町 | I138: しゃりちょう | J138: 01180 | K138: 網走 | L138: 0.9 | M138: オホーツク総合振興局斜里町 | N138: 137 | P138: 01 網走計 | Q138: 01 網走計 | R138: TRUE | T138: 11 秩父計 | U138: 1107 秩父計 | V138: 96.5
A139: 136 | B139: 1 | C139: 北海道 | D139: 1546 | E139: オホーツク総合振興局 | G139: 清里町 | I139: きよさとちょう | J139: 01180 | K139: 網走 | L139: 0.9 | M139: オホーツク総合振興局清里町 | N139: 138 | P139: 01 網走計 | Q139: 01 網走計 | R139: TRUE | T139: 11 春日部計 | U139: 1108 春日部計 | V139: 105
A140: 137 | B140: 1 | C140: 北海道 | D140: 1547 | E140: オホーツク総合振興局 | G140: 小清水町 | I140: こしみずちょう | J140: 01180 | K140: 網走 | L140: 0.9 | M140: オホーツク総合振興局小清水町 | N140: 139 | P140: 01 網走計 | Q140: 01 網走計 | R140: TRUE | T140: 11 行田計 | U140: 1109 行田計 | V140: 100.6
A141: 138 | B141: 1 | C141: 北海道 | D141: 1549 | E141: オホーツク総合振興局 | G141: 訓子府町 | I141: くんねっぷちょう | J141: 01050 | K141: 北見 | L141: 0.902 | M141: オホーツク総合振興局訓子府町 | N141: 140 | P141: 01 北見計 | Q141: 01 北見計 | R141: TRUE | T141: 11 草加計 | U141: 1110 草加計 | V141: 113.6
A142: 139 | B142: 1 | C142: 北海道 | D142: 1550 | E142: オホーツク総合振興局 | G142: 置戸町 | I142: おけとちょう | J142: 01050 | K142: 北見 | L142: 0.902 | M142: オホーツク総合振興局置戸町 | N142: 141 | P142: 01 北見計 | Q142: 01 北見計 | R142: TRUE | T142: 11 朝霞計 | U142: 1111 朝霞計 | V142: 106.8
A143: 140 | B143: 1 | C143: 北海道 | D143: 1552 | E143: オホーツク総合振興局 | G143: 佐呂間町 | I143: さろまちょう | J143: 01050 | K143: 北見 | L143: 0.902 | M143: オホーツク総合振興局佐呂間町 | N143: 142 | P143: 01 北見計 | Q143: 01 北見計 | R143: TRUE | T143: 11 越谷計 | U143: 1112 越谷計 | V143: 107.6
A144: 141 | B144: 1 | C144: 北海道 | D144: 1555 | E144: オホーツク総合振興局 | G144: 遠軽町 | I144: えんがるちょう | J144: 01050 | K144: 北見 | L144: 0.902 | M144: オホーツク総合振興局遠軽町 | N144: 143 | P144: 01 北見計 | Q144: 01 北見計 | R144: TRUE | T144: 0
A145: 142 | B145: 1 | C145: 北海道 | D145: 1559 | E145: オホーツク総合振興局 | G145: 湧別町 | I145: ゆうべつちょう | J145: 01050 | K145: 北見 | L145: 0.902 | M145: オホーツク総合振興局湧別町 | N145: 144 | P145: 01 北見計 | Q145: 01 北見計 | R145: TRUE | T145: 千葉 | U145: 千葉 | V145: 106.5
A146: 143 | B146: 1 | C146: 北海道 | D146: 1560 | E146: オホーツク総合振興局 | G146: 滝上町 | I146: たきのうえちょう | J146: 01060 | K146: 紋別 | L146: 0.9 | M146: オホーツク総合振興局滝上町 | N146: 145 | P146: 01 紋別計 | Q146: 01 紋別計 | R146: TRUE | T146: 12 千葉計 | U146: 1201 千葉計 | V146: 107.8
A147: 144 | B147: 1 | C147: 北海道 | D147: 1561 | E147: オホーツク総合振興局 | G147: 興部町 | I147: おこっぺちょう | J147: 01060 | K147: 紋別 | L147: 0.9 | M147: オホーツク総合振興局興部町 | N147: 146 | P147: 01 紋別計 | Q147: 01 紋別計 | R147: TRUE | T147: 12 市川計 | U147: 1202 市川計 | V147: 109
A148: 145 | B148: 1 | C148: 北海道 | D148: 1562 | E148: オホーツク総合振興局 | G148: 西興部村 | I148: にしおこっぺむら | J148: 01060 | K148: 紋別 | L148: 0.9 | M148: オホーツク総合振興局西興部村 | N148: 147 | P148: 01 紋別計 | Q148: 01 紋別計 | R148: TRUE | T148: 12 銚子計 | U148: 1203 銚子計 | V148: 100
A149: 146 | B149: 1 | C149: 北海道 | D149: 1563 | E149: オホーツク総合振興局 | G149: 雄武町 | I149: おうむちょう | J149: 01060 | K149: 紋別 | L149: 0.9 | M149: オホーツク総合振興局雄武町 | N149: 148 | P149: 01 紋別計 | Q149: 01 紋別計 | R149: TRUE | T149: 12 館山計 | U149: 1204 館山計 | V149: 98.4
A150: 147 | B150: 1 | C150: 北海道 | D150: 1564 | E150: オホーツク総合振興局 | G150: 大空町 | I150: おおぞらちょう | J150: 01180 | K150: 網走 | L150: 0.9 | M150: オホーツク総合振興局大空町 | N150: 149 | P150: 01 網走計 | Q150: 01 網走計 | R150: TRUE | T150: 12 木更津計 | U150: 1205 木更津計 | V150: 105.5
A151: 148 | B151: 1 | C151: 北海道 | D151: 1571 | E151: 胆振総合振興局 | G151: 豊浦町 | I151: とようらちょう | J151: 01100 | K151: 室蘭 | L151: 0.927 | M151: 胆振総合振興局豊浦町 | N151: 150 | P151: 01 室蘭計 | Q151: 01 室蘭計 | R151: TRUE | T151: 12 佐原計 | U151: 1206 佐原計 | V151: 99.8
A152: 149 | B152: 1 | C152: 北海道 | D152: 1575 | E152: 胆振総合振興局 | G152: 壮瞥町 | I152: そうべつちょう | J152: 01100 | K152: 室蘭 | L152: 0.927 | M152: 胆振総合振興局壮瞥町 | N152: 151 | P152: 01 室蘭計 | Q152: 01 室蘭計 | R152: TRUE | T152: 12 茂原計 | U152: 1207 茂原計 | V152: 102.6
A153: 150 | B153: 1 | C153: 北海道 | D153: 1578 | E153: 胆振総合振興局 | G153: 白老町 | I153: しらおいちょう | J153: 01190 | K153: 苫小牧 | L153: 0.944 | M153: 胆振総合振興局白老町 | N153: 152 | P153: 01 苫小牧計 | Q153: 01 苫小牧計 | R153: TRUE | T153: 12 松戸計 | U153: 1208 松戸計 | V153: 107.5
A154: 151 | B154: 1 | C154: 北海道 | D154: 1581 | E154: 胆振総合振興局 | G154: 厚真町 | I154: あつまちょう | J154: 01190 | K154: 苫小牧 | L154: 0.944 | M154: 胆振総合振興局厚真町 | N154: 153 | P154: 01 苫小牧計 | Q154: 01 苫小牧計 | R154: TRUE | T154: 12 船橋計 | U154: 1209 船橋計 | V154: 109.1
A155: 152 | B155: 1 | C155: 北海道 | D155: 1584 | E155: 胆振総合振興局 | G155: 洞爺湖町 | I155: とうやこちょう | J155: 01100 | K155: 室蘭 | L155: 0.927 | M155: 胆振総合振興局洞爺湖町 | N155: 154 | P155: 01 室蘭計 | Q155: 01 室蘭計 | R155: TRUE | T155: 12 成田計 | U155: 1210 成田計 | V155: 106.2
A156: 153 | B156: 1 | C156: 北海道 | D156: 1585 | E156: 胆振総合振興局 | G156: 安平町 | I156: あびらちょう | J156: 01190 | K156: 苫小牧 | L156: 0.944 | M156: 胆振総合振興局安平町 | N156: 155 | P156: 01 苫小牧計 | Q156: 01 苫小牧計 | R156: TRUE | T156: 12 千葉南計 | U156: 1211 千葉南計 | V156: 104.7
A157: 154 | B157: 1 | C157: 北海道 | D157: 1586 | E157: 胆振総合振興局 | G157: むかわ町 | I157: むかわちょう | J157: 01190 | K157: 苫小牧 | L157: 0.944 | M157: 胆振総合振興局むかわ町 | N157: 156 | P157: 01 苫小牧計 | Q157: 01 苫小牧計 | R157: TRUE | T157: 0
A158: 155 | B158: 1 | C158: 北海道 | D158: 1601 | E158: 日高振興局 | G158: 日高町 | I158: ひだかちょう | J158: 01190 | K158: 苫小牧 | L158: 0.944 | M158: 日高振興局日高町 | N158: 157 | P158: 01 苫小牧計 | Q158: 01 苫小牧計 | R158: TRUE | T158: 東京 | U158: 東京 | V158: 112.7
A159: 156 | B159: 1 | C159: 北海道 | D159: 1602 | E159: 日高振興局 | G159: 平取町 | I159: びらとりちょう | J159: 01190 | K159: 苫小牧 | L159: 0.944 | M159: 日高振興局平取町 | N159: 158 | P159: 01 苫小牧計 | Q159: 01 苫小牧計 | R159: TRUE | T159: 13 飯田橋計 | U159: 1301 飯田橋計 | V159: 113.5
A160: 157 | B160: 1 | C160: 北海道 | D160: 1604 | E160: 日高振興局 | G160: 新冠町 | I160: にいかっぷちょう | J160: 01160 | K160: 浦河 | L160: 0.931 | M160: 日高振興局新冠町 | N160: 159 | P160: 01 浦河計 | Q160: 01 浦河計 | R160: TRUE | T160: 13 上野計 | U160: 1303 上野計 | V160: 109.1
A161: 158 | B161: 1 | C161: 北海道 | D161: 1607 | E161: 日高振興局 | G161: 浦河町 | I161: うらかわちょう | J161: 01160 | K161: 浦河 | L161: 0.931 | M161: 日高振興局浦河町 | N161: 160 | P161: 01 浦河計 | Q161: 01 浦河計 | R161: TRUE | T161: 13 品川計 | U161: 1304 品川計 | V161: 113.6
A162: 159 | B162: 1 | C162: 北海道 | D162: 1608 | E162: 日高振興局 | G162: 様似町 | I162: さまにちょう | J162: 01160 | K162: 浦河 | L162: 0.931 | M162: 日高振興局様似町 | N162: 161 | P162: 01 浦河計 | Q162: 01 浦河計 | R162: TRUE | T162: 13 大森計 | U162: 1306 大森計 | V162: 111.6
A163: 160 | B163: 1 | C163: 北海道 | D163: 1609 | E163: 日高振興局 | G163: えりも町 | I163: えりもちょう | J163: 01160 | K163: 浦河 | L163: 0.931 | M163: 日高振興局えりも町 | N163: 162 | P163: 01 浦河計 | Q163: 01 浦河計 | R163: TRUE | T163: 13 渋谷計 | U163: 1307 渋谷計 | V163: 113.3
A164: 161 | B164: 1 | C164: 北海道 | D164: 1610 | E164: 日高振興局 | G164: 新ひだか町 | I164: しんひだかちょう | J164: 01160 | K164: 浦河 | L164: 0.931 | M164: =E164&F164&G164&H164 -> 日高振興局新ひだか町 | N164: 163 | P164: 01 浦河計 | Q164: 01 浦河計 | R164: TRUE | T164: 13 新宿計 | U164: 1308 新宿計 | V164: 115.5
A165: 162 | B165: 1 | C165: 北海道 | D165: 1631 | E165: 十勝総合振興局 | G165: 音更町 | I165: おとふけちょう | J165: 01040 | K165: 帯広 | L165: 0.946 | M165: 十勝総合振興局音更町 | N165: 164 | P165: 01 帯広計 | Q165: 01 帯広計 | R165: TRUE | T165: 13 池袋計 | U165: 1309 池袋計 | V165: 113.2
A166: 163 | B166: 1 | C166: 北海道 | D166: 1632 | E166: 十勝総合振興局 | G166: 士幌町 | I166: しほろちょう | J166: 01040 | K166: 帯広 | L166: 0.946 | M166: 十勝総合振興局士幌町 | N166: 165 | P166: 01 帯広計 | Q166: 01 帯広計 | R166: TRUE | T166: 13 王子計 | U166: 1310 王子計 | V166: 111
A167: 164 | B167: 1 | C167: 北海道 | D167: 1633 | E167: 十勝総合振興局 | G167: 上士幌町 | I167: かみしほろちょう | J167: 01040 | K167: 帯広 | L167: 0.946 | M167: 十勝総合振興局上士幌町 | N167: 166 | P167: 01 帯広計 | Q167: 01 帯広計 | R167: TRUE | T167: 13 足立計 | U167: 1311 足立計 | V167: 110.6
A168: 165 | B168: 1 | C168: 北海道 | D168: 1634 | E168: 十勝総合振興局 | G168: 鹿追町 | I168: しかおいちょう | J168: 01040 | K168: 帯広 | L168: 0.946 | M168: 十勝総合振興局鹿追町 | N168: 167 | P168: 01 帯広計 | Q168: 01 帯広計 | R168: TRUE | T168: 13 墨田計 | U168: 1312 墨田計 | V168: 114.1
A169: 166 | B169: 1 | C169: 北海道 | D169: 1635 | E169: 十勝総合振興局 | G169: 新得町 | I169: しんとくちょう | J169: 01040 | K169: 帯広 | L169: 0.946 | M169: 十勝総合振興局新得町 | N169: 168 | P169: 01 帯広計 | Q169: 01 帯広計 | R169: TRUE | T169: 13 木場計 | U169: 1313 木場計 | V169: 110.4
A170: 167 | B170: 1 | C170: 北海道 | D170: 1636 | E170: 十勝総合振興局 | G170: 清水町 | I170: しみずちょう | J170: 01040 | K170: 帯広 | L170: 0.946 | M170: 十勝総合振興局清水町 | N170: 169 | P170: 01 帯広計 | Q170: 01 帯広計 | R170: TRUE | T170: 13 八王子計 | U170: 1314 八王子計 | V170: 107.7
A171: 168 | B171: 1 | C171: 北海道 | D171: 1637 | E171: 十勝総合振興局 | G171: 芽室町 | I171: めむろちょう | J171: 01040 | K171: 帯広 | L171: 0.946 | M171: 十勝総合振興局芽室町 | N171: 170 | P171: 01 帯広計 | Q171: 01 帯広計 | R171: TRUE | T171: 13 立川計 | U171: 1315 立川計 | V171: 108
A172: 169 | B172: 1 | C172: 北海道 | D172: 1638 | E172: 十勝総合振興局 | G172: 中札内村 | I172: なかさつないむら | J172: 01040 | K172: 帯広 | L172: 0.946 | M172: 十勝総合振興局中札内村 | N172: 171 | P172: 01 帯広計 | Q172: 01 帯広計 | R172: TRUE | T172: 13 青梅計 | U172: 1316 青梅計 | V172: 108
A173: 170 | B173: 1 | C173: 北海道 | D173: 1639 | E173: 十勝総合振興局 | G173: 更別村 | I173: さらべつむら | J173: 01040 | K173: 帯広 | L173: 0.946 | M173: 十勝総合振興局更別村 | N173: 172 | P173: 01 帯広計 | Q173: 01 帯広計 | R173: TRUE | T173: 13 三鷹計 | U173: 1317 三鷹計 | V173: 111.5
A174: 171 | B174: 1 | C174: 北海道 | D174: 1641 | E174: 十勝総合振興局 | G174: 大樹町 | I174: たいきちょう | J174: 01040 | K174: 帯広 | L174: 0.946 | M174: 十勝総合振興局大樹町 | N174: 173 | P174: 01 帯広計 | Q174: 01 帯広計 | R174: TRUE | T174: 13 町田計 | U174: 1319 町田計 | V174: 109.3
A175: 172 | B175: 1 | C175: 北海道 | D175: 1642 | E175: 十勝総合振興局 | G175: 広尾町 | I175: ひろおちょう | J175: 01040 | K175: 帯広 | L175: 0.946 | M175: 十勝総合振興局広尾町 | N175: 174 | P175: 01 帯広計 | Q175: 01 帯広計 | R175: TRUE | T175: 13 府中計 | U175: 1320 府中計 | V175: 109.8
A176: 173 | B176: 1 | C176: 北海道 | D176: 1643 | E176: 十勝総合振興局 | G176: 幕別町 | I176: まくべつちょう | J176: 01040 | K176: 帯広 | L176: 0.946 | M176: 十勝総合振興局幕別町 | N176: 175 | P176: 01 帯広計 | Q176: 01 帯広計 | R176: TRUE | T176: 0
A177: 174 | B177: 1 | C177: 北海道 | D177: 1644 | E177: 十勝総合振興局 | G177: 池田町 | I177: いけだちょう | J177: 01040 | K177: 帯広 | L177: 0.946 | M177: 十勝総合振興局池田町 | N177: 176 | P177: 01 帯広計 | Q177: 01 帯広計 | R177: TRUE | T177: 神奈川 | U177: 神奈川 | V177: 109.8
A178: 175 | B178: 1 | C178: 北海道 | D178: 1645 | E178: 十勝総合振興局 | G178: 豊頃町 | I178: とよころちょう | J178: 01040 | K178: 帯広 | L178: 0.946 | M178: 十勝総合振興局豊頃町 | N178: 177 | P178: 01 帯広計 | Q178: 01 帯広計 | R178: TRUE | T178: 14 横浜計 | U178: 1401 横浜計 | V178: 112.4
A179: 176 | B179: 1 | C179: 北海道 | D179: 1646 | E179: 十勝総合振興局 | G179: 本別町 | I179: ほんべつちょう | J179: 01040 | K179: 帯広 | L179: 0.946 | M179: 十勝総合振興局本別町 | N179: 178 | P179: 01 帯広計 | Q179: 01 帯広計 | R179: TRUE | T179: 14 戸塚計 | U179: 1403 戸塚計 | V179: 108.2
A180: 177 | B180: 1 | C180: 北海道 | D180: 1647 | E180: 十勝総合振興局 | G180: 足寄町 | I180: あしょろちょう | J180: 01040 | K180: 帯広 | L180: 0.946 | M180: 十勝総合振興局足寄町 | N180: 179 | P180: 01 帯広計 | Q180: 01 帯広計 | R180: TRUE | T180: 14 川崎計 | U180: 1404 川崎計 | V180: 110.5
A181: 178 | B181: 1 | C181: 北海道 | D181: 1648 | E181: 十勝総合振興局 | G181: 陸別町 | I181: りくべつちょう | J181: 01040 | K181: 帯広 | L181: 0.946 | M181: 十勝総合振興局陸別町 | N181: 180 | P181: 01 帯広計 | Q181: 01 帯広計 | R181: TRUE | T181: 14 横須賀計 | U181: 1405 横須賀計 | V181: 106.1
A182: 179 | B182: 1 | C182: 北海道 | D182: 1649 | E182: 十勝総合振興局 | G182: 浦幌町 | I182: うらほろちょう | J182: 01040 | K182: 帯広 | L182: 0.946 | M182: 十勝総合振興局浦幌町 | N182: 181 | P182: 01 帯広計 | Q182: 01 帯広計 | R182: TRUE | T182: 14 平塚計 | U182: 1406 平塚計 | V182: 106.3
A183: 180 | B183: 1 | C183: 北海道 | D183: 1661 | E183: 釧路総合振興局 | G183: 釧路町 | I183: くしろちょう | J183: 01090 | K183: 釧路 | L183: 0.902 | M183: 釧路総合振興局釧路町 | N183: 182 | P183: 01 釧路計 | Q183: 01 釧路計 | R183: TRUE | T183: 14 小田原計 | U183: 1407 小田原計 | V183: 104.1
A184: 181 | B184: 1 | C184: 北海道 | D184: 1662 | E184: 釧路総合振興局 | G184: 厚岸町 | I184: あっけしちょう | J184: 01090 | K184: 釧路 | L184: 0.902 | M184: 釧路総合振興局厚岸町 | N184: 183 | P184: 01 釧路計 | Q184: 01 釧路計 | R184: TRUE | T184: 14 藤沢計 | U184: 1408 藤沢計 | V184: 108.4
A185: 182 | B185: 1 | C185: 北海道 | D185: 1663 | E185: 釧路総合振興局 | G185: 浜中町 | I185: はまなかちょう | J185: 01090 | K185: 釧路 | L185: 0.902 | M185: 釧路総合振興局浜中町 | N185: 184 | P185: 01 釧路計 | Q185: 01 釧路計 | R185: TRUE | T185: 14 相模原計 | U185: 1409 相模原計 | V185: 110.6
A186: 183 | B186: 1 | C186: 北海道 | D186: 1664 | E186: 釧路総合振興局 | G186: 標茶町 | I186: しべちゃちょう | J186: 01090 | K186: 釧路 | L186: 0.902 | M186: 釧路総合振興局標茶町 | N186: 185 | P186: 01 釧路計 | Q186: 01 釧路計 | R186: TRUE | T186: 14 厚木計 | U186: 1410 厚木計 | V186: 107.1
A187: 184 | B187: 1 | C187: 北海道 | D187: 1665 | E187: 釧路総合振興局 | G187: 弟子屈町 | I187: てしかがちょう | J187: 01090 | K187: 釧路 | L187: 0.902 | M187: 釧路総合振興局弟子屈町 | N187: 186 | P187: 01 釧路計 | Q187: 01 釧路計 | R187: TRUE | T187: 14 松田計 | U187: 1411 松田計 | V187: 105
A188: 185 | B188: 1 | C188: 北海道 | D188: 1667 | E188: 釧路総合振興局 | G188: 鶴居村 | I188: つるいむら | J188: 01090 | K188: 釧路 | L188: 0.902 | M188: 釧路総合振興局鶴居村 | N188: 187 | P188: 01 釧路計 | Q188: 01 釧路計 | R188: TRUE | T188: 14 横浜南計 | U188: 1412 横浜南計 | V188: 109
A189: 186 | B189: 1 | C189: 北海道 | D189: 1668 | E189: 釧路総合振興局 | G189: 白糠町 | I189: しらぬかちょう | J189: 01090 | K189: 釧路 | L189: 0.902 | M189: 釧路総合振興局白糠町 | N189: 188 | P189: 01 釧路計 | Q189: 01 釧路計 | R189: TRUE | T189: 14 川崎北計 | U189: 1414 川崎北計 | V189: 109.8
A190: 187 | B190: 1 | C190: 北海道 | D190: 1691 | E190: 根室振興局 | G190: 別海町 | I190: べっかいちょう | J190: 01200 | K190: 根室 | L190: 0.904 | M190: 根室振興局別海町 | N190: 189 | P190: 01 根室計 | Q190: 01 根室計 | R190: TRUE | T190: 14 港北計 | U190: 1415 港北計 | V190: 110.8
A191: 188 | B191: 1 | C191: 北海道 | D191: 1692 | E191: 根室振興局 | G191: 中標津町 | I191: なかしべつちょう | J191: 01200 | K191: 根室 | L191: 0.904 | M191: 根室振興局中標津町 | N191: 190 | P191: 01 根室計 | Q191: 01 根室計 | R191: TRUE | T191: 14 大和計 | U191: 1416 大和計 | V191: 107.1
A192: 189 | B192: 1 | C192: 北海道 | D192: 1693 | E192: 根室振興局 | G192: 標津町 | I192: しべつちょう | J192: 01200 | K192: 根室 | L192: 0.904 | M192: 根室振興局標津町 | N192: 191 | P192: 01 根室計 | Q192: 01 根室計 | R192: TRUE | T192: 0
A193: 190 | B193: 1 | C193: 北海道 | D193: 1694 | E193: 根室振興局 | G193: 羅臼町 | I193: らうすちょう | J193: 01200 | K193: 根室 | L193: 0.904 | M193: 根室振興局羅臼町 | N193: 192 | P193: 01 根室計 | Q193: 01 根室計 | R193: TRUE | T193: 新潟 | U193: 新潟 | V193: 94.6
A194: 191 | B194: 1 | C194: 北海道 | D194: 1695 | E194: 根室振興局 | G194: 色丹村 | I194: しこたんむら | J194: 01200 | K194: 根室 | L194: 0.904 | M194: 根室振興局色丹村 | N194: 193 | P194: 01 根室計 | Q194: 01 根室計 | R194: TRUE | T194: 15 新潟計 | U194: 1501 新潟計 | V194: 98.5
A195: 192 | B195: 1 | C195: 北海道 | D195: 1696 | E195: 根室振興局 | G195: 泊村 | I195: とまりむら | J195: 01200 | K195: 根室 | L195: =VLOOKUP(P195,$T:$V,3,FALSE)/100 -> 0.904 | M195: 根室振興局泊村 | N195: 194 | P195: =IF(J195="","",MID(J195,1,2)&" ")&K195&IF(J195="","","計") -> 01 根室計 | Q195: =VLOOKUP(P195,T:T,1,FALSE) -> 01 根室計 | R195: =P195=Q195 -> TRUE | T195: =IF(LEN(U195)<=3,U195,LEFT(U195,2)&MID(U195,5,8)) -> 15 長岡計 | U195: 1502 長岡計 | V195: 93.8
A196: 193 | B196: 1 | C196: 北海道 | D196: 1697 | E196: 根室振興局 | G196: 留夜別村 | I196: るよべつむら | J196: 01200 | K196: 根室 | L196: 0.904 | M196: 根室振興局留夜別村 | N196: 195 | P196: 01 根室計 | Q196: 01 根室計 | R196: TRUE | T196: 15 上越計 | U196: 1503 上越計 | V196: 93.9
A197: 194 | B197: 1 | C197: 北海道 | D197: 1698 | E197: 根室振興局 | G197: 留別村 | I197: るべつむら | J197: 01200 | K197: 根室 | L197: 0.904 | M197: 根室振興局留別村 | N197: 196 | P197: 01 根室計 | Q197: 01 根室計 | R197: TRUE | T197: 15 三条計 | U197: 1504 三条計 | V197: 93.9
A198: 195 | B198: 1 | C198: 北海道 | D198: 1699 | E198: 根室振興局 | G198: 紗那村 | I198: しゃなむら | J198: 01200 | K198: 根室 | L198: 0.904 | M198: 根室振興局紗那村 | N198: 197 | P198: 01 根室計 | Q198: 01 根室計 | R198: TRUE | T198: 15 柏崎計 | U198: 1505 柏崎計 | V198: 94
A199: 196 | B199: 1 | C199: 北海道 | D199: 1700 | E199: 根室振興局 | G199: 蘂取村 | I199: しべとろむら | J199: 01200 | K199: 根室 | L199: 0.904 | M199: 根室振興局蘂取村 | N199: 198 | P199: 01 根室計 | Q199: 01 根室計 | R199: TRUE | T199: 15 新発田計 | U199: 1506 新発田計 | V199: 93.8
C200: 青森 | K200: 青森 | L200: 0.849 | M200: 青森 | N200: 199 | P200: 青森 | Q200: 青森 | R200: TRUE | T200: 15 新津計 | U200: 1507 新津計 | V200: 93.2
... 1993 more rows
